ServiceArea,Service,ResponsibleUnit,ExpensesType,Narrative,DatePaid,Invoice,TransactionReference,NetAmount,CapitalRevenue,SupplierID,SupplierName,Postcode,UnrecoveredVAT
Director Digital & Customer En,Communications,Communications,Consultancy Fees,SOCIAL MEDIA MANAGEMENT,16/07/2021,REDACTED INVOICE NUMBER,145696,2600,Revenue,27915,24 Fingers Ltd,CM15 9BP,0.00
Director Of Environment,"Communities, Health & Leisure",Sports & Social Venues,Contracted Services,SOCIAL MEDIA MANAGEMENT,20/07/2021,REDACTED INVOICE NUMBER,146579,4478.51,Revenue,27915,24 Fingers Ltd,CM15 9BP,0.00
Director Of Environment,Open Spaces,Recreation Areas,Purchases - Materials,PEST CONTROL - KGPF,06/07/2021,REDACTED INVOICE NUMBER,144730,440,Revenue,29,A1 Environmental Pest Control,CM13 1LH,0.00
Director Corporate Resources,Asset Management,Asset Management,R&M Bldgs - General,WASP NEST - LONDON ROAD,20/07/2021,REDACTED INVOICE NUMBER,145489,240,Revenue,29,A1 Environmental Pest Control,CM13 1LH,0.00
Director Of Environment,Depot Management & Admin,Depot Management & Admin,R&M Bldgs - General,PEST CONTROL - DEPOT,27/07/2021,REDACTED INVOICE NUMBER,146435,70,Revenue,29,A1 Environmental Pest Control,CM13 1LH,0.00
Director Of Environment,Open Spaces,Recreation Areas,Purchases - Materials,PEST CONTROL - KGPF,30/07/2021,REDACTED INVOICE NUMBER,145890,440,Revenue,29,A1 Environmental Pest Control,CM13 1LH,0.00
Director Of Environment,Depot Management & Admin,Depot Management & Admin,Plant & Mcy - Repairs & Maint,CONSUMABLES,09/07/2021,REDACTED INVOICE NUMBER,144935,630,Revenue,31,A1 Pressure Washers Ltd,IP5 3RH,0.00
Capex Director Of C Resources,Asset Management,Brentwood Leisure Centre,Enhancements,BRENTWOOD CENTRE SUPPLY AND FIT POOL,13/07/2021,REDACTED INVOICE NUMBER,146431,8389,Capital,28401,Advanced Automated Access,CM13 3LH,0.00
Director Corporate Resources,Asset Management,Asset Management,R&M Bldgs - General,INVESTIGATION OF FEE VALUE - ALLEN FORD,23/07/2021,REDACTED INVOICE NUMBER,145363,4862.4,Revenue,28536,Agb  Environmental Ltd,CB8 0AT,0.00
Director Housing & Enforcement,Community Safety,Corporate Enforcement,Vehicle Hire,VAN HIRE,06/07/2021,REDACTED INVOICE NUMBER,144953,75,Revenue,1257,Ahl Fleet,RM14 3NX,0.00
Director Of Environment,Grounds Maintenance,Grounds Maintenance,Vehicle Hire,VAN HIRE,06/07/2021,REDACTED INVOICE NUMBER,144947,140,Revenue,1257,Ahl Fleet,RM14 3NX,0.00
Director Of Environment,Grounds Maintenance,Grounds Maintenance,Vehicle Hire,VAN HIRE,06/07/2021,REDACTED INVOICE NUMBER,144957,100,Revenue,1257,Ahl Fleet,RM14 3NX,0.00
Director Housing & Enforcement,Community Safety,Corporate Enforcement,Vehicle Hire,VAN HIRE,13/07/2021,REDACTED INVOICE NUMBER,145224,60,Revenue,1257,Ahl Fleet,RM14 3NX,0.00
Director Housing & Enforcement,Community Safety,Corporate Enforcement,Vehicle Hire,VAN HIRE,13/07/2021,REDACTED INVOICE NUMBER,145223,75,Revenue,1257,Ahl Fleet,RM14 3NX,0.00
Director Of Environment,Env Health & Licensing Admin,Env Health & Licensing Admin,Vehicle Hire,VAN HIRE,13/07/2021,REDACTED INVOICE NUMBER,144955,75,Revenue,1257,Ahl Fleet,RM14 3NX,0.00
Director Of Environment,Env Health & Licensing Admin,Env Health & Licensing Admin,Vehicle Hire,VAN HIRE,13/07/2021,REDACTED INVOICE NUMBER,144950,85,Revenue,1257,Ahl Fleet,RM14 3NX,0.00
Director Of Environment,Env Health & Licensing Admin,Env Health & Licensing Admin,Vehicle Hire,VAN HIRE,13/07/2021,REDACTED INVOICE NUMBER,144552,75,Revenue,1257,Ahl Fleet,RM14 3NX,0.00
Director Of Environment,Env Health & Licensing Admin,Env Health & Licensing Admin,Vehicle Hire,VAN HIRE,13/07/2021,REDACTED INVOICE NUMBER,145225,85,Revenue,1257,Ahl Fleet,RM14 3NX,0.00
Director Of Environment,Env Health & Licensing Admin,Env Health & Licensing Admin,Vehicle Hire,VAN HIRE,13/07/2021,REDACTED INVOICE NUMBER,145221,75,Revenue,1257,Ahl Fleet,RM14 3NX,0.00
Director Of Environment,Env Health & Licensing Admin,Env Health & Licensing Admin,Vehicle Hire,VAN HIRE,13/07/2021,REDACTED INVOICE NUMBER,144547,75,Revenue,1257,Ahl Fleet,RM14 3NX,0.00
Director Of Environment,Env Health & Licensing Admin,Env Health & Licensing Admin,Vehicle Hire,VAN HIRE,13/07/2021,REDACTED INVOICE NUMBER,144550,85,Revenue,1257,Ahl Fleet,RM14 3NX,0.00
Director Of Environment,Env Health & Licensing Admin,Env Health & Licensing Admin,Vehicle Hire,VAN HIRE,13/07/2021,REDACTED INVOICE NUMBER,144948,75,Revenue,1257,Ahl Fleet,RM14 3NX,0.00
Director Of Environment,Grounds Maintenance,Grounds Maintenance,Vehicle Hire,VAN HIRE,13/07/2021,REDACTED INVOICE NUMBER,145228,140,Revenue,1257,Ahl Fleet,RM14 3NX,0.00
Director Of Environment,Grounds Maintenance,Grounds Maintenance,Vehicle Hire,VAN HIRE,13/07/2021,REDACTED INVOICE NUMBER,145222,100,Revenue,1257,Ahl Fleet,RM14 3NX,0.00
Director Of Environment,Grounds Maintenance,Grounds Maintenance,Vehicle Hire,VAN HIRE,13/07/2021,REDACTED INVOICE NUMBER,145227,75,Revenue,1257,Ahl Fleet,RM14 3NX,0.00
Director Of Environment,Waste Management,Refuse Waste,Vehicle Hire,VAN HIRE,13/07/2021,REDACTED INVOICE NUMBER,145226,100,Revenue,1257,Ahl Fleet,RM14 3NX,0.00
Director Housing & Enforcement,Community Safety,Corporate Enforcement,Vehicle Hire,VAN HIRE,20/07/2021,REDACTED INVOICE NUMBER,145587,75,Revenue,1257,Ahl Fleet,RM14 3NX,0.00
Director Of Environment,Env Health & Licensing Admin,Env Health & Licensing Admin,Vehicle Hire,VAN HIRE,20/07/2021,REDACTED INVOICE NUMBER,145585,75,Revenue,1257,Ahl Fleet,RM14 3NX,0.00
Director Of Environment,Env Health & Licensing Admin,Env Health & Licensing Admin,Vehicle Hire,VAN HIRE,20/07/2021,REDACTED INVOICE NUMBER,145588,85,Revenue,1257,Ahl Fleet,RM14 3NX,0.00
Director Of Environment,Grounds Maintenance,Grounds Maintenance,Vehicle Hire,VAN HIRE,20/07/2021,REDACTED INVOICE NUMBER,145591,140,Revenue,1257,Ahl Fleet,RM14 3NX,0.00
Director Of Environment,Grounds Maintenance,Grounds Maintenance,Vehicle Hire,VAN HIRE,20/07/2021,REDACTED INVOICE NUMBER,145586,100,Revenue,1257,Ahl Fleet,RM14 3NX,0.00
Director Of Environment,Grounds Maintenance,Grounds Maintenance,Vehicle Hire,VAN HIRE,20/07/2021,REDACTED INVOICE NUMBER,145590,75,Revenue,1257,Ahl Fleet,RM14 3NX,0.00
Director Of Environment,Waste Management,Refuse Waste,Vehicle Hire,VAN HIRE,20/07/2021,REDACTED INVOICE NUMBER,145589,100,Revenue,1257,Ahl Fleet,RM14 3NX,0.00
Director Housing & Enforcement,Community Safety,Corporate Enforcement,Vehicle Hire,VAN HIRE,27/07/2021,REDACTED INVOICE NUMBER,145940,75.00,Revenue,1257,Ahl Fleet,RM14 3NX,0.00
Director Of Environment,Env Health & Licensing Admin,Env Health & Licensing Admin,Vehicle Hire,VAN HIRE,27/07/2021,REDACTED INVOICE NUMBER,145932,75.00,Revenue,1257,Ahl Fleet,RM14 3NX,0.00
Director Of Environment,Env Health & Licensing Admin,Env Health & Licensing Admin,Vehicle Hire,VAN HIRE,27/07/2021,REDACTED INVOICE NUMBER,145941,85.00,Revenue,1257,Ahl Fleet,RM14 3NX,0.00
Director Of Environment,Env Health & Licensing Admin,Env Health & Licensing Admin,Vehicle Hire,VAN HIRE,27/07/2021,REDACTED INVOICE NUMBER,146284,75,Revenue,1257,Ahl Fleet,RM14 3NX,0.00
Director Of Environment,Env Health & Licensing Admin,Env Health & Licensing Admin,Vehicle Hire,VAN HIRE,27/07/2021,REDACTED INVOICE NUMBER,146285,85,Revenue,1257,Ahl Fleet,RM14 3NX,0.00
Director Of Environment,Grounds Maintenance,Grounds Maintenance,Vehicle Hire,VAN HIRE,27/07/2021,REDACTED INVOICE NUMBER,145944,140.00,Revenue,1257,Ahl Fleet,RM14 3NX,0.00
Director Of Environment,Grounds Maintenance,Grounds Maintenance,Vehicle Hire,VAN HIRE,27/07/2021,REDACTED INVOICE NUMBER,145939,100,Revenue,1257,Ahl Fleet,RM14 3NX,0.00
Director Of Environment,Grounds Maintenance,Grounds Maintenance,Vehicle Hire,VAN HIRE,27/07/2021,REDACTED INVOICE NUMBER,145943,75,Revenue,1257,Ahl Fleet,RM14 3NX,0.00
Director Of Environment,Grounds Maintenance,Grounds Maintenance,Vehicle Hire,VAN HIRE,27/07/2021,REDACTED INVOICE NUMBER,145942,100,Revenue,1257,Ahl Fleet,RM14 3NX,0.00
Director Of Environment,Grounds Maintenance,Grounds Maintenance,Vehicle Hire,VAN HIRE,30/07/2021,REDACTED INVOICE NUMBER,146303,140,Revenue,1257,Ahl Fleet,RM14 3NX,0.00
Director Of Environment,Grounds Maintenance,Grounds Maintenance,Vehicle Hire,VAN HIRE,30/07/2021,REDACTED INVOICE NUMBER,146295,100,Revenue,1257,Ahl Fleet,RM14 3NX,0.00
Director Of Environment,Grounds Maintenance,Grounds Maintenance,Vehicle Hire,VAN HIRE,30/07/2021,REDACTED INVOICE NUMBER,146302,75,Revenue,1257,Ahl Fleet,RM14 3NX,0.00
Director Of Environment,Waste Management,Refuse Waste,Vehicle Hire,VAN HIRE,30/07/2021,REDACTED INVOICE NUMBER,146301,100,Revenue,1257,Ahl Fleet,RM14 3NX,0.00
Director Of Environment,Parking,Parking Services,Bank Charges,TRANSACTION CHARGES - JUNE '21,20/07/2021,REDACTED INVOICE NUMBER,146584,163.5,Revenue,28063,Aib Merchant Services (Pg Payments),.,0.00
Director Of Environment,Vehicle Fleet Management,Vehicle Fleet Management,Purchases - General Equipment,CYLINDER RENTAL - JUN '21,30/07/2021,REDACTED INVOICE NUMBER,145750,136.15,Revenue,95,Air Liquide Uk Limited,B46 1JY,0.00
Director Corporate Resources,Asset Management,Asset Management,R&M Bldgs - General,CAR PARK BARRIER. B/WOOD CENTRE,27/07/2021,REDACTED INVOICE NUMBER,146458,622,Revenue,128,All Ways Wired Ltd,CM13 1PU,0.00
Capex Director Of Environment,Corporate Services,King George'S Redevelopment,Enhancements,KGPF,13/07/2021,REDACTED INVOICE NUMBER,145659,584199.14,Capital,27165,Alliance Leisure Services Limited,TA6 3EW,0.00
Hra Expenditure,Supervision And Management,Rent Collection & Recovery,Bank Charges,PAYMENT PROCESSING,16/07/2021,REDACTED INVOICE NUMBER,145743,106.67,Revenue,132,Allpay.Net Limited,HR1 3SE,0.00
Hra Expenditure,Supervision And Management,Rent Collection & Recovery,Bank Charges,PAYMENT PROCESSING,16/07/2021,REDACTED INVOICE NUMBER,145742,489.45,Revenue,132,Allpay.Net Limited,HR1 3SE,0.00
Hra Expenditure,"Rents, Rates & Other Charges","Rents, Rates & Other Charges",Water,WATER SUPPLY,09/07/2021,REDACTED INVOICE NUMBER,144854,215.17,Revenue,28194,Anglian Water - Domestic Properties,PE29 6XU,0.00
Hra Expenditure,"Rents, Rates & Other Charges","Rents, Rates & Other Charges",Water,WATER SUPPLY,09/07/2021,REDACTED INVOICE NUMBER,144866,70.86,Revenue,28194,Anglian Water - Domestic Properties,PE29 6XU,0.00
Director Corporate Resources,Asset Management,Asset Management,Water,WATER SUPPLY,16/07/2021,REDACTED INVOICE NUMBER,145365,818.88,Revenue,28194,Anglian Water - Domestic Properties,PE29 6XU,0.00
Chief Executive,Executive Board,Senior Leadership Team,Project Management Support,PROFESSIONAL SERVICES,02/07/2021,REDACTED INVOICE NUMBER,144414,2400,Revenue,28188,Appletons Surveyors Ltd,TS18 1LS,0.00
Chief Executive,Executive Board,Senior Leadership Team,Project Management Support,PROFESSIONAL SERVICES,23/07/2021,REDACTED INVOICE NUMBER,146575,3000,Revenue,28188,Appletons Surveyors Ltd,TS18 1LS,0.00
Director Of Environment,Open Spaces,Buildings & Stakeholders,R&M Bldgs - General,TOILET HIRE - KGPF,16/07/2021,REDACTED INVOICE NUMBER,146316,560,Revenue,28674,Aqua Loo Toilet Hire,SS0 0RA,0.00
Director Of Environment,Open Spaces,Buildings & Stakeholders,R&M Bldgs - General,TOILET HIRE - KGPF,16/07/2021,REDACTED INVOICE NUMBER,146311,280,Revenue,28674,Aqua Loo Toilet Hire,SS0 0RA,0.00
Director Corporate Resources,Asset Management,Asset Management,R&M Bldgs - General,GREEN ENERGY REVIEW,16/07/2021,REDACTED INVOICE NUMBER,145503,2275,Revenue,27906,Arcus Consulting Llp,M33 7AR,0.00
Director Housing & Enforcement,Housing Advice & Enabling,Housing Enabling& Strategy,Consultancy Fees,HAWTHORN PROJECT - MAY '21,02/07/2021,REDACTED INVOICE NUMBER,144473,193.75,Revenue,28277,Ark Consultancy Ltd,B18 6DS,0.00
Capex Director Of Housing,Housing - Affordable Housing,Garage Site Development,Enhancements,Housing Strategy Support - JUN '21,30/07/2021,REDACTED INVOICE NUMBER,145914,10500,Capital,28277,Ark Consultancy Ltd,B18 6DS,0.00
Capex Director Of Housing,Housing - Affordable Housing,Garage Site Development,Enhancements,Strategic Housing Development - JUN '21,30/07/2021,REDACTED INVOICE NUMBER,145912,5618.75,Capital,28277,Ark Consultancy Ltd,B18 6DS,0.00
Capex Director Of Housing,Housing - Affordable Housing,Garage Site Development,Enhancements,Strategic Housing Development - JUN '21,30/07/2021,REDACTED INVOICE NUMBER,145913,4727.5,Capital,28277,Ark Consultancy Ltd,B18 6DS,0.00
Capex Director Of Housing,Housing - Affordable Housing,Garage Site Development,Enhancements,ZERO CARBON DEVELOPMENT - JUN '21,30/07/2021,REDACTED INVOICE NUMBER,145916,982.5,Capital,28277,Ark Consultancy Ltd,B18 6DS,0.00
Director Housing & Enforcement,Housing Advice & Enabling,Housing Enabling& Strategy,Consultancy Fees,Hawthorn Project - JUN '21,30/07/2021,REDACTED INVOICE NUMBER,145917,193.75,Revenue,28277,Ark Consultancy Ltd,B18 6DS,0.00
Director Of Environment,"Communities, Health & Leisure",Sports & Social Venues,Contracted Services,KING GEORGES PAVILLION QS - JUN '21,30/07/2021,REDACTED INVOICE NUMBER,145915,3769.78,Revenue,28277,Ark Consultancy Ltd,B18 6DS,0.00
Hra Expenditure,Special Services,Grounds Maintenance,R&M Grounds - Treework,TREE WORKS,20/07/2021,REDACTED INVOICE NUMBER,145921,630.5,Revenue,24920,Ascending Arbs Tree Services Ltd,CM4 0BL,0.00
Capex Director Of Environment,Other Environmental Services,Disabled Facilities Grant,Grants - General,12 Months Mechanical Maintanen,13/07/2021,REDACTED INVOICE NUMBER,145019,5058,Capital,217,Ascendit Lifts Limited,RH6 9GA,0.00
Capex Director Of Environment,Other Environmental Services,Disabled Facilities Grant,Grants - General,4 YEAR EXTENDED CONTRACT,13/07/2021,REDACTED INVOICE NUMBER,145020,595,Capital,217,Ascendit Lifts Limited,RH6 9GA,0.00
Director Of Environment,Parking,Parking Services,R&M Other - Car Parks,POT HOLE REPAIR. WILLIAM HUNTER WAY,16/07/2021,REDACTED INVOICE NUMBER,145104,185,Revenue,220,Ashe Green Civil Engineers Ltd,CM3 3PF,0.00
Director Of Environment,Vehicle Fleet Management,Vehicle Fleet Management,Vehicle R&M - External,VEHICLE REPAIRS,02/07/2021,REDACTED INVOICE NUMBER,144415,1219.95,Revenue,26506,Asm Truck Diagnostics Ltd,SS14 3EU,0.00
Director Of Environment,Vehicle Fleet Management,Vehicle Fleet Management,Vehicle R&M - External,VEHICLE REPAIRS,02/07/2021,REDACTED INVOICE NUMBER,144393,769.35,Revenue,26506,Asm Truck Diagnostics Ltd,SS14 3EU,0.00
Director Of Environment,Vehicle Fleet Management,Vehicle Fleet Management,Vehicle R&M - External,VEHICLE REPAIRS,02/07/2021,REDACTED INVOICE NUMBER,144401,460,Revenue,26506,Asm Truck Diagnostics Ltd,SS14 3EU,0.00
Director Of Environment,Vehicle Fleet Management,Vehicle Fleet Management,Vehicle R&M - External,VEHICLE REPAIRS,02/07/2021,REDACTED INVOICE NUMBER,144394,515,Revenue,26506,Asm Truck Diagnostics Ltd,SS14 3EU,0.00
Director Of Environment,Waste Management,Refuse Waste,Vehicle Hire,VEHICLE REPAIRS,09/07/2021,REDACTED INVOICE NUMBER,144858,170,Revenue,26506,Asm Truck Diagnostics Ltd,SS14 3EU,0.00
Director Of Environment,Vehicle Fleet Management,Vehicle Fleet Management,Vehicle R&M - External,HOURS OVER CHARGED,13/07/2021,REDACTED INVOICE NUMBER,146246,-885,Revenue,26506,Asm Truck Diagnostics Ltd,SS14 3EU,0.00
Director Of Environment,Vehicle Fleet Management,Vehicle Fleet Management,Vehicle R&M - External,VEHICLE REPAIRS,13/07/2021,REDACTED INVOICE NUMBER,144964,340,Revenue,26506,Asm Truck Diagnostics Ltd,SS14 3EU,0.00
Director Of Environment,Vehicle Fleet Management,Vehicle Fleet Management,Vehicle R&M - External,VEHICLE REPAIRS,13/07/2021,REDACTED INVOICE NUMBER,144966,340,Revenue,26506,Asm Truck Diagnostics Ltd,SS14 3EU,0.00
Director Of Environment,Vehicle Fleet Management,Vehicle Fleet Management,Vehicle R&M - External,VEHICLE REPAIRS,13/07/2021,REDACTED INVOICE NUMBER,144395,720,Revenue,26506,Asm Truck Diagnostics Ltd,SS14 3EU,0.00
Director Of Environment,Vehicle Fleet Management,Vehicle Fleet Management,Vehicle R&M - External,VEHICLE REPAIRS,13/07/2021,REDACTED INVOICE NUMBER,144967,340,Revenue,26506,Asm Truck Diagnostics Ltd,SS14 3EU,0.00
Director Of Environment,Vehicle Fleet Management,Vehicle Fleet Management,Vehicle R&M - External,VEHICLE REPAIRS,13/07/2021,REDACTED INVOICE NUMBER,144968,400,Revenue,26506,Asm Truck Diagnostics Ltd,SS14 3EU,0.00
Director Of Environment,Vehicle Fleet Management,Vehicle Fleet Management,Vehicle R&M - External,VEHICLE REPAIRS,13/07/2021,REDACTED INVOICE NUMBER,145036,656.81,Revenue,26506,Asm Truck Diagnostics Ltd,SS14 3EU,0.00
Director Of Environment,Vehicle Fleet Management,Vehicle Fleet Management,Vehicle R&M - External,VEHICLE REPAIRS,13/07/2021,REDACTED INVOICE NUMBER,144965,300,Revenue,26506,Asm Truck Diagnostics Ltd,SS14 3EU,0.00
Director Of Environment,Waste Management,Refuse Waste,Purchases - Bins,VEHICLE REPAIRS,13/07/2021,REDACTED INVOICE NUMBER,144965,40,Revenue,26506,Asm Truck Diagnostics Ltd,SS14 3EU,0.00
Director Of Environment,Vehicle Fleet Management,Vehicle Fleet Management,Vehicle Replacement Parts,VEHICLE REPAIRS,16/07/2021,REDACTED INVOICE NUMBER,145189,247.49,Revenue,26506,Asm Truck Diagnostics Ltd,SS14 3EU,0.00
Director Of Environment,Vehicle Fleet Management,Vehicle Fleet Management,Vehicle Replacement Parts,VEHICLE REPAIRS,16/07/2021,REDACTED INVOICE NUMBER,145188,20,Revenue,26506,Asm Truck Diagnostics Ltd,SS14 3EU,0.00
Director Of Environment,Vehicle Fleet Management,Vehicle Fleet Management,Vehicle Replacement Parts,VEHICLE REPAIRS,16/07/2021,REDACTED INVOICE NUMBER,145113,28.17,Revenue,26506,Asm Truck Diagnostics Ltd,SS14 3EU,0.00
Director Of Environment,Vehicle Fleet Management,Vehicle Fleet Management,Vehicle Replacement Parts,VEHICLE REPAIRS,16/07/2021,REDACTED INVOICE NUMBER,145116,190.15,Revenue,26506,Asm Truck Diagnostics Ltd,SS14 3EU,0.00
Director Of Environment,Vehicle Fleet Management,Vehicle Fleet Management,Vehicle Replacement Parts,VEHICLE REPAIRS,16/07/2021,REDACTED INVOICE NUMBER,145192,232.43,Revenue,26506,Asm Truck Diagnostics Ltd,SS14 3EU,0.00
Director Of Environment,Vehicle Fleet Management,Vehicle Fleet Management,Vehicle R&M - External,VEHICLE REPAIRS,16/07/2021,REDACTED INVOICE NUMBER,145189,540,Revenue,26506,Asm Truck Diagnostics Ltd,SS14 3EU,0.00
Director Of Environment,Vehicle Fleet Management,Vehicle Fleet Management,Vehicle R&M - External,VEHICLE REPAIRS,16/07/2021,REDACTED INVOICE NUMBER,145188,340,Revenue,26506,Asm Truck Diagnostics Ltd,SS14 3EU,0.00
Director Of Environment,Vehicle Fleet Management,Vehicle Fleet Management,Vehicle R&M - External,VEHICLE REPAIRS,16/07/2021,REDACTED INVOICE NUMBER,145117,340,Revenue,26506,Asm Truck Diagnostics Ltd,SS14 3EU,0.00
Director Of Environment,Vehicle Fleet Management,Vehicle Fleet Management,Vehicle R&M - External,VEHICLE REPAIRS,16/07/2021,REDACTED INVOICE NUMBER,145113,315,Revenue,26506,Asm Truck Diagnostics Ltd,SS14 3EU,0.00
Director Of Environment,Vehicle Fleet Management,Vehicle Fleet Management,Vehicle R&M - External,VEHICLE REPAIRS,16/07/2021,REDACTED INVOICE NUMBER,145099,340,Revenue,26506,Asm Truck Diagnostics Ltd,SS14 3EU,0.00
Director Of Environment,Vehicle Fleet Management,Vehicle Fleet Management,Vehicle R&M - External,VEHICLE REPAIRS,16/07/2021,REDACTED INVOICE NUMBER,145115,340,Revenue,26506,Asm Truck Diagnostics Ltd,SS14 3EU,0.00
Director Of Environment,Vehicle Fleet Management,Vehicle Fleet Management,Vehicle R&M - External,VEHICLE REPAIRS,16/07/2021,REDACTED INVOICE NUMBER,145116,340,Revenue,26506,Asm Truck Diagnostics Ltd,SS14 3EU,0.00
Director Of Environment,Vehicle Fleet Management,Vehicle Fleet Management,Vehicle R&M - External,VEHICLE REPAIRS,16/07/2021,REDACTED INVOICE NUMBER,145114,655.75,Revenue,26506,Asm Truck Diagnostics Ltd,SS14 3EU,0.00
Director Of Environment,Vehicle Fleet Management,Vehicle Fleet Management,Vehicle R&M - External,VEHICLE REPAIRS,16/07/2021,REDACTED INVOICE NUMBER,145190,608.88,Revenue,26506,Asm Truck Diagnostics Ltd,SS14 3EU,0.00
Director Of Environment,Vehicle Fleet Management,Vehicle Fleet Management,Vehicle R&M - External,VEHICLE REPAIRS,16/07/2021,REDACTED INVOICE NUMBER,145191,902.72,Revenue,26506,Asm Truck Diagnostics Ltd,SS14 3EU,0.00
Director Of Environment,Vehicle Fleet Management,Vehicle Fleet Management,Vehicle R&M - External,VEHICLE REPAIRS,16/07/2021,REDACTED INVOICE NUMBER,145192,495,Revenue,26506,Asm Truck Diagnostics Ltd,SS14 3EU,0.00
Director Of Environment,Vehicle Fleet Management,Vehicle Fleet Management,Vehicle R&M - External,VEHICLE REPAIRS,16/07/2021,REDACTED INVOICE NUMBER,145100,897.72,Revenue,26506,Asm Truck Diagnostics Ltd,SS14 3EU,0.00
Director Of Environment,Vehicle Fleet Management,Vehicle Fleet Management,Vehicle Replacement Parts,VEHICLE REPAIRS,20/07/2021,REDACTED INVOICE NUMBER,145347,135,Revenue,26506,Asm Truck Diagnostics Ltd,SS14 3EU,0.00
Director Of Environment,Vehicle Fleet Management,Vehicle Fleet Management,Vehicle Replacement Parts,VEHICLE REPAIRS,20/07/2021,REDACTED INVOICE NUMBER,145330,1950,Revenue,26506,Asm Truck Diagnostics Ltd,SS14 3EU,0.00
Director Of Environment,Vehicle Fleet Management,Vehicle Fleet Management,Vehicle Replacement Parts,VEHICLE REPAIRS,20/07/2021,REDACTED INVOICE NUMBER,145325,110,Revenue,26506,Asm Truck Diagnostics Ltd,SS14 3EU,0.00
Director Of Environment,Vehicle Fleet Management,Vehicle Fleet Management,Vehicle Replacement Parts,VEHICLE REPAIRS,20/07/2021,REDACTED INVOICE NUMBER,145346,20,Revenue,26506,Asm Truck Diagnostics Ltd,SS14 3EU,0.00
Director Of Environment,Vehicle Fleet Management,Vehicle Fleet Management,Vehicle Replacement Parts,VEHICLE REPAIRS,20/07/2021,REDACTED INVOICE NUMBER,145336,32.5,Revenue,26506,Asm Truck Diagnostics Ltd,SS14 3EU,0.00
Director Of Environment,Vehicle Fleet Management,Vehicle Fleet Management,Vehicle Replacement Parts,VEHICLE REPAIRS,20/07/2021,REDACTED INVOICE NUMBER,145335,201.25,Revenue,26506,Asm Truck Diagnostics Ltd,SS14 3EU,0.00
Director Of Environment,Vehicle Fleet Management,Vehicle Fleet Management,Vehicle R&M - External,VEHICLE REPAIRS,20/07/2021,REDACTED INVOICE NUMBER,145347,495,Revenue,26506,Asm Truck Diagnostics Ltd,SS14 3EU,0.00
Director Of Environment,Vehicle Fleet Management,Vehicle Fleet Management,Vehicle R&M - External,VEHICLE REPAIRS,20/07/2021,REDACTED INVOICE NUMBER,145345,585,Revenue,26506,Asm Truck Diagnostics Ltd,SS14 3EU,0.00
Director Of Environment,Vehicle Fleet Management,Vehicle Fleet Management,Vehicle R&M - External,VEHICLE REPAIRS,20/07/2021,REDACTED INVOICE NUMBER,145327,360,Revenue,26506,Asm Truck Diagnostics Ltd,SS14 3EU,0.00
Director Of Environment,Vehicle Fleet Management,Vehicle Fleet Management,Vehicle R&M - External,VEHICLE REPAIRS,20/07/2021,REDACTED INVOICE NUMBER,145330,810,Revenue,26506,Asm Truck Diagnostics Ltd,SS14 3EU,0.00
Director Of Environment,Vehicle Fleet Management,Vehicle Fleet Management,Vehicle R&M - External,VEHICLE REPAIRS,20/07/2021,REDACTED INVOICE NUMBER,145329,315,Revenue,26506,Asm Truck Diagnostics Ltd,SS14 3EU,0.00
Director Of Environment,Vehicle Fleet Management,Vehicle Fleet Management,Vehicle R&M - External,VEHICLE REPAIRS,20/07/2021,REDACTED INVOICE NUMBER,145328,589.4,Revenue,26506,Asm Truck Diagnostics Ltd,SS14 3EU,0.00
Director Of Environment,Vehicle Fleet Management,Vehicle Fleet Management,Vehicle R&M - External,VEHICLE REPAIRS,20/07/2021,REDACTED INVOICE NUMBER,145325,540,Revenue,26506,Asm Truck Diagnostics Ltd,SS14 3EU,0.00
Director Of Environment,Vehicle Fleet Management,Vehicle Fleet Management,Vehicle R&M - External,VEHICLE REPAIRS,20/07/2021,REDACTED INVOICE NUMBER,145346,360,Revenue,26506,Asm Truck Diagnostics Ltd,SS14 3EU,0.00
Director Of Environment,Vehicle Fleet Management,Vehicle Fleet Management,Vehicle R&M - External,VEHICLE REPAIRS,20/07/2021,REDACTED INVOICE NUMBER,145336,630,Revenue,26506,Asm Truck Diagnostics Ltd,SS14 3EU,0.00
Director Of Environment,Vehicle Fleet Management,Vehicle Fleet Management,Vehicle R&M - External,VEHICLE REPAIRS,20/07/2021,REDACTED INVOICE NUMBER,145324,935,Revenue,26506,Asm Truck Diagnostics Ltd,SS14 3EU,0.00
Director Of Environment,Vehicle Fleet Management,Vehicle Fleet Management,Vehicle R&M - External,VEHICLE REPAIRS,20/07/2021,REDACTED INVOICE NUMBER,145335,675,Revenue,26506,Asm Truck Diagnostics Ltd,SS14 3EU,0.00
Director Of Environment,Vehicle Fleet Management,Vehicle Fleet Management,Vehicle Replacement Parts,VEHICLE REPAIRS,30/07/2021,REDACTED INVOICE NUMBER,145712,53.29,Revenue,26506,Asm Truck Diagnostics Ltd,SS14 3EU,0.00
Director Of Environment,Vehicle Fleet Management,Vehicle Fleet Management,Vehicle Replacement Parts,VEHICLE REPAIRS,30/07/2021,REDACTED INVOICE NUMBER,145718,220,Revenue,26506,Asm Truck Diagnostics Ltd,SS14 3EU,0.00
Director Of Environment,Vehicle Fleet Management,Vehicle Fleet Management,Vehicle Replacement Parts,VEHICLE REPAIRS,30/07/2021,REDACTED INVOICE NUMBER,145713,10,Revenue,26506,Asm Truck Diagnostics Ltd,SS14 3EU,0.00
Director Of Environment,Vehicle Fleet Management,Vehicle Fleet Management,Vehicle Replacement Parts,VEHICLE REPAIRS,30/07/2021,REDACTED INVOICE NUMBER,145726,138.25,Revenue,26506,Asm Truck Diagnostics Ltd,SS14 3EU,0.00
Director Of Environment,Vehicle Fleet Management,Vehicle Fleet Management,Vehicle Replacement Parts,VEHICLE REPAIRS,30/07/2021,REDACTED INVOICE NUMBER,145721,118.75,Revenue,26506,Asm Truck Diagnostics Ltd,SS14 3EU,0.00
Director Of Environment,Vehicle Fleet Management,Vehicle Fleet Management,Vehicle R&M - External,VEHICLE REPAIRS,30/07/2021,REDACTED INVOICE NUMBER,145716,340,Revenue,26506,Asm Truck Diagnostics Ltd,SS14 3EU,0.00
Director Of Environment,Vehicle Fleet Management,Vehicle Fleet Management,Vehicle R&M - External,VEHICLE REPAIRS,30/07/2021,REDACTED INVOICE NUMBER,145720,190,Revenue,26506,Asm Truck Diagnostics Ltd,SS14 3EU,0.00
Director Of Environment,Vehicle Fleet Management,Vehicle Fleet Management,Vehicle R&M - External,VEHICLE REPAIRS,30/07/2021,REDACTED INVOICE NUMBER,145722,325,Revenue,26506,Asm Truck Diagnostics Ltd,SS14 3EU,0.00
Director Of Environment,Vehicle Fleet Management,Vehicle Fleet Management,Vehicle R&M - External,VEHICLE REPAIRS,30/07/2021,REDACTED INVOICE NUMBER,145723,55,Revenue,26506,Asm Truck Diagnostics Ltd,SS14 3EU,0.00
Director Of Environment,Vehicle Fleet Management,Vehicle Fleet Management,Vehicle R&M - External,VEHICLE REPAIRS,30/07/2021,REDACTED INVOICE NUMBER,145715,45,Revenue,26506,Asm Truck Diagnostics Ltd,SS14 3EU,0.00
Director Of Environment,Vehicle Fleet Management,Vehicle Fleet Management,Vehicle R&M - External,VEHICLE REPAIRS,30/07/2021,REDACTED INVOICE NUMBER,145714,246.25,Revenue,26506,Asm Truck Diagnostics Ltd,SS14 3EU,0.00
Director Of Environment,Vehicle Fleet Management,Vehicle Fleet Management,Vehicle R&M - External,VEHICLE REPAIRS,30/07/2021,REDACTED INVOICE NUMBER,145717,340,Revenue,26506,Asm Truck Diagnostics Ltd,SS14 3EU,0.00
Director Of Environment,Vehicle Fleet Management,Vehicle Fleet Management,Vehicle R&M - External,VEHICLE REPAIRS,30/07/2021,REDACTED INVOICE NUMBER,145719,340,Revenue,26506,Asm Truck Diagnostics Ltd,SS14 3EU,0.00
Director Of Environment,Vehicle Fleet Management,Vehicle Fleet Management,Vehicle R&M - External,VEHICLE REPAIRS,30/07/2021,REDACTED INVOICE NUMBER,145712,400,Revenue,26506,Asm Truck Diagnostics Ltd,SS14 3EU,0.00
Director Of Environment,Vehicle Fleet Management,Vehicle Fleet Management,Vehicle R&M - External,VEHICLE REPAIRS,30/07/2021,REDACTED INVOICE NUMBER,145718,120,Revenue,26506,Asm Truck Diagnostics Ltd,SS14 3EU,0.00
Director Of Environment,Vehicle Fleet Management,Vehicle Fleet Management,Vehicle R&M - External,VEHICLE REPAIRS,30/07/2021,REDACTED INVOICE NUMBER,145713,340,Revenue,26506,Asm Truck Diagnostics Ltd,SS14 3EU,0.00
Director Of Environment,Vehicle Fleet Management,Vehicle Fleet Management,Vehicle R&M - External,VEHICLE REPAIRS,30/07/2021,REDACTED INVOICE NUMBER,145726,585,Revenue,26506,Asm Truck Diagnostics Ltd,SS14 3EU,0.00
Director Of Environment,Vehicle Fleet Management,Vehicle Fleet Management,Vehicle R&M - External,VEHICLE REPAIRS,30/07/2021,REDACTED INVOICE NUMBER,145725,340,Revenue,26506,Asm Truck Diagnostics Ltd,SS14 3EU,0.00
Director Of Environment,Vehicle Fleet Management,Vehicle Fleet Management,Vehicle R&M - External,VEHICLE REPAIRS,30/07/2021,REDACTED INVOICE NUMBER,145721,557,Revenue,26506,Asm Truck Diagnostics Ltd,SS14 3EU,0.00
Director Of Environment,Grounds Maintenance,Grounds Maintenance,Purchases - General Equipment,KGPF - SAMPLES,20/07/2021,REDACTED INVOICE NUMBER,145196,280,Revenue,26600,Asmatt Limited,CM11 2YL,0.00
Director Of Environment,Grounds Maintenance,Grounds Maintenance,Purchases - General Equipment,MEMORIAL PARK - SHENFIELD ROAD,20/07/2021,REDACTED INVOICE NUMBER,145197,140,Revenue,26600,Asmatt Limited,CM11 2YL,0.00
Director Of Environment,Grounds Maintenance,Grounds Maintenance,Purchases - General Equipment,KGPF - FLOWER BEDS,23/07/2021,REDACTED INVOICE NUMBER,145467,1127,Revenue,26600,Asmatt Limited,CM11 2YL,0.00
Director Of Environment,Grounds Maintenance,Grounds Maintenance,Purchases - General Equipment,MEMORIAL PARK - FLOWER BEDS,23/07/2021,REDACTED INVOICE NUMBER,145468,350,Revenue,26600,Asmatt Limited,CM11 2YL,0.00
Hra Expenditure,Repairs And Maintenance,Planned Maintenance,Legal Fees,LEGAL FEES,23/07/2021,REDACTED INVOICE NUMBER,146765,3600,Revenue,192201P,Awh Legal Ltd,M12 6JH,0.00
Capex Director Of Housing,Housing - Hra,Housing Stock Rewiring,Enhancements,EMERGENCY LIGHTING - MAY '21,02/07/2021,REDACTED INVOICE NUMBER,144297,1278.64,Capital,27759,Axis Europe,E15 4PN,0.00
Hra Expenditure,Repairs And Maintenance,Planned Maintenance,R&M Fix & Fit - Electrical,EMERGENCY LIGHTING - MAY '21,02/07/2021,REDACTED INVOICE NUMBER,144297,216.9,Revenue,27759,Axis Europe,E15 4PN,0.00
Capex Director Of Housing,Housing - Hra,Major Voids,Enhancements,VOIDS - MAY '21,09/07/2021,REDACTED INVOICE NUMBER,144303,21883.28,Capital,27759,Axis Europe,E15 4PN,0.00
Hra Expenditure,Repairs And Maintenance,Responsive Void Repairs,R&M Bldgs - General,VOIDS - MAY '21,09/07/2021,REDACTED INVOICE NUMBER,144303,26390.95,Revenue,27759,Axis Europe,E15 4PN,0.00
Hra Expenditure,Repairs And Maintenance,Responsive Void Repairs,R&M Bldgs - Ppp,VOIDS - MAY '21,09/07/2021,REDACTED INVOICE NUMBER,144303,"4,410.00",Revenue,27759,Axis Europe,E15 4PN,0.00
Hra Expenditure,Repairs And Maintenance,Responsive Repairs Management,R&M Bldgs - Ppp,PPG - GARAGES - MAY 21,13/07/2021,REDACTED INVOICE NUMBER,144187,"1,457.32",Revenue,27759,Axis Europe,E15 4PN,0.00
Hra Expenditure,Repairs And Maintenance,Responsive Repairs Management,Customer Surveys,CPI Uplift Feb/March 21,16/07/2021,REDACTED INVOICE NUMBER,145200,3073.26,Revenue,27759,Axis Europe,E15 4PN,0.00
Hra Expenditure,Repairs And Maintenance,Planned Maintenance,R&M Fix & Fit - Gas Extra Ppp,3 GAS SERVICING - JUN '21,27/07/2021,REDACTED INVOICE NUMBER,145622,22488.25,Revenue,27759,Axis Europe,E15 4PN,0.00
Hra Expenditure,Repairs And Maintenance,Planned Maintenance,R&M Fix & Fit - Lifts,COMMUNAL HEATING - JUN '21,27/07/2021,REDACTED INVOICE NUMBER,145625,"3,307.47",Revenue,27759,Axis Europe,E15 4PN,0.00
Hra Expenditure,Repairs And Maintenance,Planned Maintenance,R&M Fix & Fit - Lifts,LIFT SERVICING - JUN '21,27/07/2021,REDACTED INVOICE NUMBER,145623,604,Revenue,27759,Axis Europe,E15 4PN,0.00
Hra Expenditure,Repairs And Maintenance,Planned Maintenance,R&M Fix & Fit - Lifts,STAIRLIFT SERVICING - JUN '21,27/07/2021,REDACTED INVOICE NUMBER,145624,335.56,Revenue,27759,Axis Europe,E15 4PN,0.00
Hra Expenditure,Repairs And Maintenance,Responsive Repairs Management,R&M Bldgs - Ppp,PPG GARAGES -  JUN '21,27/07/2021,REDACTED INVOICE NUMBER,145621,1457.32,Revenue,27759,Axis Europe,E15 4PN,0.00
Hra Expenditure,Repairs And Maintenance,Responsive Repairs Management,R&M Bldgs - Ppp,PPP - JUN '21,27/07/2021,REDACTED INVOICE NUMBER,145620,70666.2,Revenue,27759,Axis Europe,E15 4PN,0.00
Capex Director Of Housing,Housing - Hra,Boiler/ Heating  Replacement,Enhancements,BOILER INSTALLS - JUN '21,30/07/2021,REDACTED INVOICE NUMBER,145744,33876.73,Capital,27759,Axis Europe,E15 4PN,0.00
Capex Director Of Housing,Housing - Hra,Boiler/ Heating  Replacement,Enhancements,PPP EXCLUSIONS - JUN ' 21,30/07/2021,REDACTED INVOICE NUMBER,145746,232.38,Capital,27759,Axis Europe,E15 4PN,0.00
Capex Director Of Housing,Housing - Hra,Disabled Adaptations,Enhancements,PPP EXCLUSIONS - JUN ' 21,30/07/2021,REDACTED INVOICE NUMBER,145746,15016.41,Capital,27759,Axis Europe,E15 4PN,0.00
Capex Director Of Housing,Housing - Hra,Housing Stock - Doors,Enhancements,PPP EXCLUSIONS - JUN ' 21,30/07/2021,REDACTED INVOICE NUMBER,145746,"1,895.10",Capital,27759,Axis Europe,E15 4PN,0.00
Capex Director Of Housing,Housing - Hra,Housing Stock -Health & Safety,Enhancements,COMMUNAL - JUN '21,30/07/2021,REDACTED INVOICE NUMBER,145764,3127.57,Capital,27759,Axis Europe,E15 4PN,0.00
Capex Director Of Housing,Housing - Hra,Housing Stock Kitchens,Enhancements,PPP EXCLUSIONS - JUN ' 21,30/07/2021,REDACTED INVOICE NUMBER,145746,5218.53,Capital,27759,Axis Europe,E15 4PN,0.00
Capex Director Of Housing,Housing - Hra,Housing Stock Re-Roofing,Enhancements,PPP EXCLUSIONS - JUN ' 21,30/07/2021,REDACTED INVOICE NUMBER,145746,2201.22,Capital,27759,Axis Europe,E15 4PN,0.00
Capex Director Of Housing,Housing - Hra,Housing Stock Rewiring,Enhancements,EMERGENCY LIGHTING - JUN '21,30/07/2021,REDACTED INVOICE NUMBER,145738,12713.23,Capital,27759,Axis Europe,E15 4PN,0.00
Capex Director Of Housing,Housing - Hra,Housing Stock - Water,Enhancements,WATER HYGIENE PROFRAMME - JUN '21,30/07/2021,REDACTED INVOICE NUMBER,145740,6452.3,Capital,27759,Axis Europe,E15 4PN,0.00
Capex Director Of Housing,Housing - Hra,Hsg Stock - Security/ Boundary,Enhancements,PPP EXCLUSIONS - JUN ' 21,30/07/2021,REDACTED INVOICE NUMBER,145746,2907.66,Capital,27759,Axis Europe,E15 4PN,0.00
Capex Director Of Housing,Housing - Hra,Major Voids,Enhancements,PPP EXCLUSIONS - JUN ' 21,30/07/2021,REDACTED INVOICE NUMBER,145746,8270.67,Capital,27759,Axis Europe,E15 4PN,0.00
Capex Director Of Housing,Housing - Hra,Major Voids,Enhancements,VOIDS - JUN '21,30/07/2021,REDACTED INVOICE NUMBER,145763,"59,601.15",Capital,27759,Axis Europe,E15 4PN,0.00
Capex Director Of Housing,Housing - Hra,Structural,Enhancements,PPP EXCLUSIONS - JUN ' 21,30/07/2021,REDACTED INVOICE NUMBER,145746,604.92,Capital,27759,Axis Europe,E15 4PN,0.00
Hra Expenditure,Repairs And Maintenance,Planned Maintenance,R&M Fix & Fit - Electrical,EMERGENCY LIGHTING - JUN '21,30/07/2021,REDACTED INVOICE NUMBER,145738,7154.8,Revenue,27759,Axis Europe,E15 4PN,0.00
Hra Expenditure,Repairs And Maintenance,Planned Maintenance,R&M Fix & Fit - Tanks,COMMUNAL - JUN '21,30/07/2021,REDACTED INVOICE NUMBER,145764,"1,588.10",Revenue,27759,Axis Europe,E15 4PN,0.00
Hra Expenditure,Repairs And Maintenance,Planned Maintenance,R&M Fix & Fit - Tanks,WATER HYGIENE PROFRAMME - JUN '21,30/07/2021,REDACTED INVOICE NUMBER,145740,2130.4,Revenue,27759,Axis Europe,E15 4PN,0.00
Hra Expenditure,Repairs And Maintenance,Responsive Repairs Management,Pest Control,COMMUNAL - JUN '21,30/07/2021,REDACTED INVOICE NUMBER,145764,322.22,Revenue,27759,Axis Europe,E15 4PN,0.00
Hra Expenditure,Repairs And Maintenance,Responsive Repairs Management,R&M Bldgs - Asbestos,COMMUNAL - JUN '21,30/07/2021,REDACTED INVOICE NUMBER,145764,540.88,Revenue,27759,Axis Europe,E15 4PN,0.00
Hra Expenditure,Repairs And Maintenance,Responsive Repairs Management,R&M Bldgs - Asbestos,PPP EXCLUSIONS - JUN ' 21,30/07/2021,REDACTED INVOICE NUMBER,145746,1282.21,Revenue,27759,Axis Europe,E15 4PN,0.00
Hra Expenditure,Repairs And Maintenance,Responsive Repairs Management,R&M Bldgs - General,PPG EXCLUSIONS - JUN '21,30/07/2021,REDACTED INVOICE NUMBER,145765,172.61,Revenue,27759,Axis Europe,E15 4PN,0.00
Hra Expenditure,Repairs And Maintenance,Responsive Repairs Management,R&M Bldgs - General,PPP EXCLUSIONS - JUN ' 21,30/07/2021,REDACTED INVOICE NUMBER,145746,7840.01,Revenue,27759,Axis Europe,E15 4PN,0.00
Hra Expenditure,Repairs And Maintenance,Responsive Repairs Management,R&M Fix & Fit - Communal,COMMUNAL - JUN '21,30/07/2021,REDACTED INVOICE NUMBER,145764,14379.34,Revenue,27759,Axis Europe,E15 4PN,0.00
Hra Expenditure,Repairs And Maintenance,Responsive Repairs Management,R&M Fix & Fit - Electrical,PPP EXCLUSIONS - JUN ' 21,30/07/2021,REDACTED INVOICE NUMBER,145746,491.74,Revenue,27759,Axis Europe,E15 4PN,0.00
Hra Expenditure,Repairs And Maintenance,Responsive Repairs Management,R&M Fix & Fit - Gas Repairs,COMMERCIAL GAS - JUN '21,30/07/2021,REDACTED INVOICE NUMBER,145745,5065.32,Revenue,27759,Axis Europe,E15 4PN,0.00
Hra Expenditure,Repairs And Maintenance,Responsive Repairs Management,R&M Fix & Fit - Gas Repairs,GAS EXCLUSIONS - JUN '21,30/07/2021,REDACTED INVOICE NUMBER,145737,1448.51,Revenue,27759,Axis Europe,E15 4PN,0.00
Hra Expenditure,Repairs And Maintenance,Responsive Void Repairs,R&M Bldgs - General,VOIDS - JUN '21,30/07/2021,REDACTED INVOICE NUMBER,145763,13031.79,Revenue,27759,Axis Europe,E15 4PN,0.00
Hra Expenditure,Repairs And Maintenance,Responsive Void Repairs,R&M Bldgs - Ppp,VOIDS - JUN '21,30/07/2021,REDACTED INVOICE NUMBER,145763,3430,Revenue,27759,Axis Europe,E15 4PN,0.00
Hra Expenditure,Supervision And Management,Managing Tenancies,Decant Costs,COMMERCIAL GAS - JUN '21,30/07/2021,REDACTED INVOICE NUMBER,145745,1765.61,Revenue,27759,Axis Europe,E15 4PN,0.00
Director Corporate Resources,Council Tax & Nndr,Council Tax & Nndr Team,Contracted Services,REVS AND BENS SERVICE CHARGE - 21/22,02/07/2021,REDACTED INVOICE NUMBER,144486,56635.56,Revenue,306,Basildon Borough Council,SS14 0DF,0.00
Director Corporate Resources,Revs & Bens Customer Support,Revenue Support,Contracted Services,REVS AND BENS SERVICE CHARGE - 21/22,02/07/2021,REDACTED INVOICE NUMBER,144486,33981.33,Revenue,306,Basildon Borough Council,SS14 0DF,0.00
Director Corporate Resources,Council Tax & Nndr,Council Tax & Nndr Team,Contracted Services,Annual Service Charge. 2021 / 22,20/07/2021,REDACTED INVOICE NUMBER,145933,"56,635.56",Revenue,306,Basildon Borough Council,SS14 0DF,0.00
Director Corporate Resources,Revs & Bens Customer Support,Revenue Support,Contracted Services,Annual Service Charge. 2021 / 22,20/07/2021,REDACTED INVOICE NUMBER,145933,33981.33,Revenue,306,Basildon Borough Council,SS14 0DF,0.00
Director Corporate Resources,Office Accommodation,Office Facilities Management,R&M Bldgs - General,LANYARDS,06/07/2021,REDACTED INVOICE NUMBER,144517,149.00,Revenue,23820,Bates Office Services Limited,ME2 2LS,0.00
Director Corporate Resources,Internal Audit,Internal Audit,Contracted Services,INTERNAL AUDIT SERVICES,13/07/2021,REDACTED INVOICE NUMBER,145628,22481.25,Revenue,23544,Bdo Llp,SO14 3TL,0.00
Director Corporate Resources,Corporate Management,Corporate Management Costs,Audit Fee,HB CERTIFICATION AUDIT - 19/20,16/07/2021,REDACTED INVOICE NUMBER,145788,14850,Revenue,23544,Bdo Llp,SO14 3TL,0.00
Director Corporate Resources,Asset Management,Asset Management,Electricity,ELECTRICITY SUPPLY,27/07/2021,REDACTED INVOICE NUMBER,145459,725.75,Revenue,321,Beechwood Surgery,CM14 5WF,0.00
Director Of Environment,Depot Management & Admin,Depot Management & Admin,R&M Bldgs - General,DUSTMATS - LIFT AND LAY - AUG '21,23/07/2021,REDACTED INVOICE NUMBER,145730,173.92,Revenue,4767,Berendsen Uk Ltd,RG24 8NE,0.00
Director Of Planning & Economy,Economic Development Total,Economic Development,Other Fees & Service,EVENTS,30/07/2021,REDACTED INVOICE NUMBER,147088,600.00,Revenue,194576P,Best Day Events,CM13 3DX,0.00
Director Corporate Resources,Corporate Management,Corporate Management Costs,Treasury - Brokerage Fees Gen,BROKERAGE FEES,06/07/2021,REDACTED INVOICE NUMBER,144531,1008.22,Revenue,26245,Bgc Brokers Lp,E14 5RD,0.00
Director Of Law & Governance,Legal Services & Data Protect,Legal Services & Data Protect,Legal Fees,LEGAL FEES,06/07/2021,REDACTED INVOICE NUMBER,145787,350,Revenue,359,Birketts Llp,CM2 0AP,0.00
Director Of Law & Governance,Legal Services & Data Protect,Legal Services & Data Protect,Legal Fees,LEGAL FEES,09/07/2021,REDACTED INVOICE NUMBER,144870,200,Revenue,359,Birketts Llp,CM2 0AP,0.00
Director Of Law & Governance,Legal Services & Data Protect,Legal Services & Data Protect,Legal Fees,RIGHT TO BUY,09/07/2021,REDACTED INVOICE NUMBER,145907,507.5,Revenue,359,Birketts Llp,CM2 0AP,0.00
Director Corporate Resources,Asset Management,Asset Management,Solicitor Fees,PROFESSIONAL FEES - re willowbrook hall,13/07/2021,REDACTED INVOICE NUMBER,145747,2220,Revenue,359,Birketts Llp,CM2 0AP,0.00
Director Of Law & Governance,Legal Services & Data Protect,Legal Services & Data Protect,Legal Fees,LEASE EXTENSION,16/07/2021,REDACTED INVOICE NUMBER,145911,656,Revenue,359,Birketts Llp,CM2 0AP,0.00
Director Of Law & Governance,Legal Services & Data Protect,Legal Services & Data Protect,Legal Fees,SAAS CONTRACT WITH IKEN,16/07/2021,REDACTED INVOICE NUMBER,145582,600,Revenue,359,Birketts Llp,CM2 0AP,0.00
Director Of Law & Governance,Legal Services & Data Protect,Legal Services & Data Protect,Legal Fees,LEGAL FEES,23/07/2021,REDACTED INVOICE NUMBER,146841,156,Revenue,359,Birketts Llp,CM2 0AP,0.00
Director Of Law & Governance,Legal Services & Data Protect,Legal Services & Data Protect,Legal Fees,BRENTWOOD LEISURE CENTRE,23/07/2021,REDACTED INVOICE NUMBER,146633,4140,Revenue,359,Birketts Llp,CM2 0AP,0.00
Director Of Law & Governance,Legal Services & Data Protect,Legal Services & Data Protect,Legal Fees,"CRAIGIELEA, CHIVERS ROAD",23/07/2021,REDACTED INVOICE NUMBER,145486,1245,Revenue,359,Birketts Llp,CM2 0AP,0.00
Director Of Law & Governance,Legal Services & Data Protect,Legal Services & Data Protect,Legal Fees,LAND AT RUSTIC DENE,23/07/2021,REDACTED INVOICE NUMBER,145487,450,Revenue,359,Birketts Llp,CM2 0AP,0.00
Director Of Law & Governance,Legal Services & Data Protect,Legal Services & Data Protect,Legal Fees,LICENCE AGREEMENT - NETWROK RAIL,23/07/2021,REDACTED INVOICE NUMBER,146708,862.5,Revenue,359,Birketts Llp,CM2 0AP,0.00
Director Of Law & Governance,Legal Services & Data Protect,Legal Services & Data Protect,Legal Fees,RIGHT TO BUY,23/07/2021,REDACTED INVOICE NUMBER,146714,459,Revenue,359,Birketts Llp,CM2 0AP,0.00
Director Of Law & Governance,Legal Services & Data Protect,Legal Services & Data Protect,Legal Fees,RIGHT TO BUY,23/07/2021,REDACTED INVOICE NUMBER,146709,500.00,Revenue,359,Birketts Llp,CM2 0AP,0.00
Director Of Law & Governance,Legal Services & Data Protect,Legal Services & Data Protect,Court Fees,COURT FEES,27/07/2021,REDACTED INVOICE NUMBER,146293,355.00,Revenue,359,Birketts Llp,CM2 0AP,0.00
Director Of Law & Governance,Legal Services & Data Protect,Legal Services & Data Protect,Legal Fees,LEGAL FEES,27/07/2021,REDACTED INVOICE NUMBER,146298,258,Revenue,359,Birketts Llp,CM2 0AP,0.00
Director Of Law & Governance,Legal Services & Data Protect,Legal Services & Data Protect,Legal Fees,LEGAL FEES,27/07/2021,REDACTED INVOICE NUMBER,146306,357,Revenue,359,Birketts Llp,CM2 0AP,0.00
Director Of Law & Governance,Legal Services & Data Protect,Legal Services & Data Protect,Legal Fees,LEGAL FEES,27/07/2021,REDACTED INVOICE NUMBER,146293,335,Revenue,359,Birketts Llp,CM2 0AP,0.00
Director Of Law & Governance,Legal Services & Data Protect,Legal Services & Data Protect,Legal Fees,LEGAL FEES,27/07/2021,REDACTED INVOICE NUMBER,146304,150,Revenue,359,Birketts Llp,CM2 0AP,0.00
Director Of Law & Governance,Legal Services & Data Protect,Legal Services & Data Protect,Legal Fees,LEGAL FEES,27/07/2021,REDACTED INVOICE NUMBER,146300,262.5,Revenue,359,Birketts Llp,CM2 0AP,0.00
Director Of Law & Governance,Legal Services & Data Protect,Legal Services & Data Protect,Legal Fees,LEGAL FEES,27/07/2021,REDACTED INVOICE NUMBER,146296,325,Revenue,359,Birketts Llp,CM2 0AP,0.00
Director Of Law & Governance,Legal Services & Data Protect,Legal Services & Data Protect,Legal Fees,LEGAL FEES,27/07/2021,REDACTED INVOICE NUMBER,146299,596,Revenue,359,Birketts Llp,CM2 0AP,0.00
Director Of Law & Governance,Legal Services & Data Protect,Legal Services & Data Protect,Legal Fees,LEGAL FEES,27/07/2021,REDACTED INVOICE NUMBER,146297,527.5,Revenue,359,Birketts Llp,CM2 0AP,0.00
Director Of Law & Governance,Legal Services & Data Protect,Legal Services & Data Protect,Legal Fees,LEGAL FEES,27/07/2021,REDACTED INVOICE NUMBER,146294,150,Revenue,359,Birketts Llp,CM2 0AP,0.00
Director Of Law & Governance,Legal Services & Data Protect,Legal Services & Data Protect,Legal Fees,LEGAL FEES,27/07/2021,REDACTED INVOICE NUMBER,146305,650,Revenue,359,Birketts Llp,CM2 0AP,0.00
Director Of Law & Governance,Legal Services & Data Protect,Legal Services & Data Protect,Legal Fees,LEGAL FEES,27/07/2021,REDACTED INVOICE NUMBER,146291,161.5,Revenue,359,Birketts Llp,CM2 0AP,0.00
Director Of Law & Governance,Legal Services & Data Protect,Legal Services & Data Protect,Legal Fees,LEGAL FEES,27/07/2021,REDACTED INVOICE NUMBER,146715,506.00,Revenue,359,Birketts Llp,CM2 0AP,0.00
Director Of Law & Governance,Legal Services & Data Protect,Legal Services & Data Protect,Legal Fees,LEGAL FEES,30/07/2021,REDACTED INVOICE NUMBER,147072,112.5,Revenue,359,Birketts Llp,CM2 0AP,0.00
Director Of Law & Governance,Legal Services & Data Protect,Legal Services & Data Protect,Legal Fees,LEGAL FEES,30/07/2021,REDACTED INVOICE NUMBER,146635,1000,Revenue,359,Birketts Llp,CM2 0AP,0.00
Director Of Law & Governance,Legal Services & Data Protect,Legal Services & Data Protect,Legal Fees,LEGAL FEES,30/07/2021,REDACTED INVOICE NUMBER,146716,120,Revenue,359,Birketts Llp,CM2 0AP,0.00
Director Of Law & Governance,Legal Services & Data Protect,Legal Services & Data Protect,Legal Fees,LEGAL FEES,30/07/2021,REDACTED INVOICE NUMBER,145896,1212,Revenue,359,Birketts Llp,CM2 0AP,0.00
Director Of Law & Governance,Legal Services & Data Protect,Legal Services & Data Protect,Legal Fees,LEGAL FEES,30/07/2021,REDACTED INVOICE NUMBER,146634,400,Revenue,359,Birketts Llp,CM2 0AP,0.00
Director Of Environment,Waste Management,Recycling - Dry,Advertising - General,GRAPHIC DESIGN,20/07/2021,REDACTED INVOICE NUMBER,145463,320,Revenue,391,Braintree District Council,CM7 9HB,0.00
Director Of Environment,"Communities, Health & Leisure",Sports & Social Venues,Purchases - Materials,MATERIALS,09/07/2021,REDACTED INVOICE NUMBER,145898,750.3,Revenue,189490P,Brenntag Uk Limited,SE10 0QW,0.00
Director Of Environment,"Communities, Health & Leisure",Sports & Social Venues,Purchases - Materials,MATERIALS,19/07/2021,REDACTED INVOICE NUMBER,146589,-724.5,Revenue,189490P,Brenntag Uk Limited,SE10 0QW,0.00
Director Of Environment,"Communities, Health & Leisure",Sports & Social Venues,Purchases - Materials,MATERIALS,19/07/2021,REDACTED INVOICE NUMBER,146704,724.5,Revenue,189490P,Brenntag Uk Limited,SE10 0QW,0.00
Director Of Environment,"Communities, Health & Leisure",Sports & Social Venues,Purchases - Materials,MATERIALS,23/07/2021,REDACTED INVOICE NUMBER,145089,724.5,Revenue,189490P,Brenntag Uk Limited,SE10 0QW,0.00
Director Of Environment,Parking,Parking Services,Telephones - General,PHONE CHARGES,27/07/2021,REDACTED INVOICE NUMBER,145734,100.74,Revenue,415,Brentwood Communications Ltd,CM3 8EW,0.00
Capex Director Of Housing,Housing - Affordable Housing,Maple Close,Enhancements,RECHARGE OF COSTS - MAPLE CLOSE,27/07/2021,REDACTED INVOICE NUMBER,146762,9100,Capital,185870P,Brentwood Development Partnership Llp,W1D 3QR,0.00
Director Of Environment,Street Services,Street Cleansing,Purchases - General Equipment,MATERIALS,13/07/2021,REDACTED INVOICE NUMBER,145652,21.96,Revenue,433,Brentwood Fencing Supplies Ltd,CM15 9JH,0.00
Hra Expenditure,Repairs And Maintenance,Responsive Repairs Management,Other Fees & Service,PROGRAM ENTRY PHONES - MASEFIELD COURT,02/07/2021,REDACTED INVOICE NUMBER,144820,180,Revenue,444,Brentwood Lock & Safe,CM15 9DL,0.00
Director Corporate Resources,Office Accommodation,Office Facilities Management,R&M Bldgs - General,CHANGE LOCKS - TOWN HALL,06/07/2021,REDACTED INVOICE NUMBER,145209,69.95,Revenue,444,Brentwood Lock & Safe,CM15 9DL,0.00
Director Of Environment,Grounds Maintenance,Grounds Maintenance,Purchases - General Equipment,KEY CUTTING,06/07/2021,REDACTED INVOICE NUMBER,145199,20,Revenue,444,Brentwood Lock & Safe,CM15 9DL,0.00
Director Of Environment,Grounds Maintenance,Grounds Maintenance,Purchases - General Equipment,KEY TAGS,06/07/2021,REDACTED INVOICE NUMBER,144506,6,Revenue,444,Brentwood Lock & Safe,CM15 9DL,0.00
Hra Expenditure,Repairs And Maintenance,Responsive Repairs Management,Other Fees & Service,KEY CUTTING,09/07/2021,REDACTED INVOICE NUMBER,145364,10,Revenue,444,Brentwood Lock & Safe,CM15 9DL,0.00
Hra Expenditure,Repairs And Maintenance,Responsive Repairs Management,Other Fees & Service,KEY CUTTING,13/07/2021,REDACTED INVOICE NUMBER,145488,12,Revenue,444,Brentwood Lock & Safe,CM15 9DL,0.00
Director Corporate Resources,Asset Management,Asset Management,R&M Bldgs - General,LOCK CHANGE - MERRYMEAD,27/07/2021,REDACTED INVOICE NUMBER,145904,76.8,Revenue,444,Brentwood Lock & Safe,CM15 9DL,0.00
Hra Expenditure,Repairs And Maintenance,Responsive Repairs Management,R&M Fix & Fit - Door Entry,SUPPLY KEYS,30/07/2021,REDACTED INVOICE NUMBER,146710,15,Revenue,444,Brentwood Lock & Safe,CM15 9DL,0.00
Capex Director Of C Resources,Asset Management,Brentwood Leisure Centre,Enhancements,EHHANCEMENTS,02/07/2021,REDACTED INVOICE NUMBER,145027,4057.75,Capital,445,Brentwood M + E Services Ltd,CM6 3HT,0.00
Director Corporate Resources,Asset Management,Asset Management,R&M Bldgs - General,CHLORINATION,02/07/2021,REDACTED INVOICE NUMBER,145035,1240,Revenue,445,Brentwood M + E Services Ltd,CM6 3HT,0.00
Director Corporate Resources,Asset Management,Asset Management,R&M Bldgs - General,CHLORINATION,02/07/2021,REDACTED INVOICE NUMBER,145030,1340,Revenue,445,Brentwood M + E Services Ltd,CM6 3HT,0.00
Director Corporate Resources,Asset Management,Asset Management,R&M Bldgs - General,CHLORINATION,02/07/2021,REDACTED INVOICE NUMBER,145034,1140,Revenue,445,Brentwood M + E Services Ltd,CM6 3HT,0.00
Director Corporate Resources,Asset Management,Asset Management,R&M Bldgs - General,CHLORINATION,02/07/2021,REDACTED INVOICE NUMBER,145031,1540,Revenue,445,Brentwood M + E Services Ltd,CM6 3HT,0.00
Director Corporate Resources,Asset Management,Asset Management,R&M Bldgs - General,CHLORINATION,02/07/2021,REDACTED INVOICE NUMBER,145023,1436.25,Revenue,445,Brentwood M + E Services Ltd,CM6 3HT,0.00
Director Corporate Resources,Asset Management,Asset Management,R&M Bldgs - General,REPAIRS,02/07/2021,REDACTED INVOICE NUMBER,145029,2505.5,Revenue,445,Brentwood M + E Services Ltd,CM6 3HT,0.00
Capex Director Of C Resources,Asset Management,Brentwood Leisure Centre,Enhancements,WATER HEATER REPAIRS - B/WOOD CENTRE,09/07/2021,REDACTED INVOICE NUMBER,145208,160,Capital,445,Brentwood M + E Services Ltd,CM6 3HT,0.00
Director Corporate Resources,Asset Management,Asset Management,R&M Bldgs - General,LEGIONELLA WORKS - DEPOT,09/07/2021,REDACTED INVOICE NUMBER,145314,6091.25,Revenue,445,Brentwood M + E Services Ltd,CM6 3HT,0.00
Director Corporate Resources,Asset Management,Asset Management,R&M Bldgs - General,TEMP WATER HEATER - POPLARS HALL,13/07/2021,REDACTED INVOICE NUMBER,145315,2162.75,Revenue,445,Brentwood M + E Services Ltd,CM6 3HT,0.00
Director Corporate Resources,Asset Management,Asset Management,R&M Bldgs - General,HEATER SERVICING - DEPOT,16/07/2021,REDACTED INVOICE NUMBER,145028,1350,Revenue,445,Brentwood M + E Services Ltd,CM6 3HT,0.00
Capex Director Of C Resources,Asset Management,Asset Management Strategy,Enhancements,S/F TAPS - BISHOPS HALL,20/07/2021,REDACTED INVOICE NUMBER,145637,2430,Capital,445,Brentwood M + E Services Ltd,CM6 3HT,0.00
Director Corporate Resources,Asset Management,Asset Management,R&M Bldgs - General,2 THE KEYS,27/07/2021,REDACTED INVOICE NUMBER,146852,610,Revenue,445,Brentwood M + E Services Ltd,CM6 3HT,0.00
Director Corporate Resources,Asset Management,Asset Management,R&M Bldgs - General,Legionella works,27/07/2021,REDACTED INVOICE NUMBER,146858,791.05,Revenue,445,Brentwood M + E Services Ltd,CM6 3HT,0.00
Director Of Environment,"Communities, Health & Leisure",Community Development,Purchases - Materials,MATERIALS,13/07/2021,REDACTED INVOICE NUMBER,146424,235,Revenue,194088P,Brentwood Mutual Aid,CO9 4DJ,0.00
Director Of Law & Governance,Democratic Services & Support,Civic Services & Support,Chairmans Civic Expenditure,TOWN TWINNING EXPENSES,16/07/2021,REDACTED INVOICE NUMBER,146229,1000,Revenue,194017P,Brentwood/Montbazon Town Twinning Association,CM14 4PX,0.00
Hra Expenditure,Repairs And Maintenance,Responsive Void Repairs,Electricity,ELECTRICITY SUPPLY,02/07/2021,REDACTED INVOICE NUMBER,145052,19.42,Revenue,492,British Gas Trading Limited (Please Use),GU95 1AB,0.00
Hra Expenditure,Repairs And Maintenance,Responsive Void Repairs,Electricity,ELECTRICITY SUPPLY,06/07/2021,REDACTED INVOICE NUMBER,145871,4.03,Revenue,492,British Gas Trading Limited (Please Use),GU95 1AB,0.00
Hra Expenditure,Repairs And Maintenance,Responsive Void Repairs,Electricity,ELECTRICITY SUPPLY,06/07/2021,REDACTED INVOICE NUMBER,145250,68.57,Revenue,492,British Gas Trading Limited (Please Use),GU95 1AB,0.00
Hra Expenditure,Repairs And Maintenance,Responsive Void Repairs,Electricity,ELECTRICITY SUPPLY,06/07/2021,REDACTED INVOICE NUMBER,145475,273.35,Revenue,492,British Gas Trading Limited (Please Use),GU95 1AB,0.00
Hra Expenditure,Repairs And Maintenance,Responsive Void Repairs,Electricity,ELECTRICITY SUPPLY,06/07/2021,REDACTED INVOICE NUMBER,145599,22.41,Revenue,492,British Gas Trading Limited (Please Use),GU95 1AB,0.00
Hra Expenditure,Repairs And Maintenance,Responsive Void Repairs,Electricity,ELECTRICITY SUPPLY,06/07/2021,REDACTED INVOICE NUMBER,143658,290.16,Revenue,492,British Gas Trading Limited (Please Use),GU95 1AB,0.00
Hra Expenditure,Repairs And Maintenance,Responsive Void Repairs,Gas,GAS SUPPLY,06/07/2021,REDACTED INVOICE NUMBER,143375,20.73,Revenue,492,British Gas Trading Limited (Please Use),GU95 1AB,0.00
Hra Expenditure,Repairs And Maintenance,Responsive Void Repairs,Gas,GAS SUPPLY,20/07/2021,REDACTED INVOICE NUMBER,146314,24.59,Revenue,492,British Gas Trading Limited (Please Use),GU95 1AB,0.00
Hra Expenditure,Repairs And Maintenance,Responsive Void Repairs,Electricity,ELECTRICITY SUPPLY,30/07/2021,REDACTED INVOICE NUMBER,146887,18.86,Revenue,492,British Gas Trading Limited (Please Use),GU95 1AB,0.00
Hra Expenditure,Repairs And Maintenance,Responsive Void Repairs,Gas,GAS SUPPLY,30/07/2021,REDACTED INVOICE NUMBER,146719,-0.12,Revenue,492,British Gas Trading Limited (Please Use),GU95 1AB,0.00
Director Corporate Resources,Human Resources,Human Resources,Training Expenses,FIRST AID AT WORK REQUALIFICATION,27/07/2021,REDACTED INVOICE NUMBER,145701,398,Revenue,497,British Red Cross,M50 2GT,0.00
Director Of Environment,Vehicle Fleet Management,Vehicle Fleet Management,Vehicle R&M - External,CONTRACT MAINTENANCE - JUN '21,02/07/2021,REDACTED INVOICE NUMBER,144516,548.6,Revenue,28207,Bucher Municipal Limited,RH4 1XF,0.00
Director Of Environment,Health & Food Safety,Food & Health Support,Agency Staff,PROJECT MANAGEMENT SUPPORT,09/07/2021,REDACTED INVOICE NUMBER,145045,1469.88,Revenue,28337,Buckingham Futures,HA7 4AW,0.00
Director Of Environment,Health & Food Safety,Food & Health Support,Agency Staff,PROJECT MANAGEMENT SUPPORT,23/07/2021,REDACTED INVOICE NUMBER,145460,1822.77,Revenue,28337,Buckingham Futures,HA7 4AW,0.00
Director Corporate Resources,Design And Print Services,Design & Print Services,Stationery - Paper,PRINTER SUPPLIES,02/07/2021,REDACTED INVOICE NUMBER,140804,595.2,Revenue,559,Canon Uk Ltd,RH2 8BF,0.00
Director Corporate Resources,Design And Print Services,Design & Print Services,Stationery - Paper,PRINTER SUPPLIES,06/07/2021,REDACTED INVOICE NUMBER,145597,417.62,Revenue,559,Canon Uk Ltd,RH2 8BF,0.00
Director Corporate Resources,Corporate Management,Corporate Management Costs,Bank Charges,TRANSACTION CHARGES - JUN '21,20/07/2021,REDACTED INVOICE NUMBER,146413,221.5,Revenue,23084,Capita Bus. Serv Ltd (Pg Payments),DL1 9HN,0.00
Director Corporate Resources,Corporate Management,Corporate Management Costs,Bank Charges,TRANSACTION CHARGES,30/07/2021,REDACTED INVOICE NUMBER,146984,5946.44,Revenue,23084,Capita Bus. Serv Ltd (Pg Payments),DL1 9HN,0.00
Director Of Environment,Parking,Parking Services,Telephones - General,PHONE CHARGES,30/07/2021,REDACTED INVOICE NUMBER,146559,32.21,Revenue,22769,Catalyst Amc Ltd,B77 3QU,0.00
Director Of Environment,Vehicle Fleet Management,Vehicle Fleet Management,Vehicle R&M - External,TRACTOR REPAIRS ,09/07/2021,REDACTED INVOICE NUMBER,146266,662.31,Revenue,28229,Causeway Tractors Limited,BL4 8NE,0.00
Capex Director Digital & C.E,Ict Services,Ict Strategy,Enhancements,IT EQUIPMENT,09/07/2021,REDACTED INVOICE NUMBER,144836,1472.25,Capital,586,Ccs Media Ltd,RM1 3PJ,0.00
Capex Director Digital & C.E,Ict Services,Ict Hardware,Enhancements,IT EQUIPMENT,16/07/2021,REDACTED INVOICE NUMBER,145095,911.24,Capital,586,Ccs Media Ltd,RM1 3PJ,0.00
Director Of Environment,Golf Course,Golf Course,Vehicle - Fuel,GASOIL,27/07/2021,REDACTED INVOICE NUMBER,145929,1179.8,Revenue,22987,Certas Energy (Trading As Butler Fuels),WA3 6XG,0.00
Director Of Environment,"Communities, Health & Leisure",Health & Wellbeing,Grants - General,MENTAL HEALTH SMALL GRANTS PAYMENT,13/07/2021,REDACTED INVOICE NUMBER,146450,3348,Revenue,191349P,Chat 1st Cic,CM2 6GZ,0.00
Balance Sheet,Balance Sheet,Balance Sheet,Highways Stores,CLOTHING,30/07/2021,REDACTED INVOICE NUMBER,145735,287.24,Revenue,645,Chelmsford Safety Supplies,CM1 3AG,0.00
Balance Sheet,Balance Sheet,Balance Sheet,Highways Stores,CLOTHING / BOOTS,30/07/2021,REDACTED INVOICE NUMBER,144274,512.5,Revenue,645,Chelmsford Safety Supplies,CM1 3AG,0.00
Director Of Law & Governance,Legal Services & Data Protect,Legal Services & Data Protect,Legal Fees,LEGAL FEES,02/07/2021,REDACTED INVOICE NUMBER,145497,6667.52,Revenue,178457P,Cheshire Estate And Legal,L3 9AG,0.00
Director Of Environment,Parking,Parking Services,Managed Services,HOSTING FACILITIES - JUL '21,23/07/2021,REDACTED INVOICE NUMBER,145729,80,Revenue,656,Chipside Limited,SN15 5FD,0.00
Hra Expenditure,Supervision And Management,Managing Tenancies,Subscriptions,ADDITIONAL ASSETS AND SUPPORT. 21/22,20/07/2021,REDACTED INVOICE NUMBER,145212,137.91,Revenue,693,Civica Uk Ltd,DY1 4TD,0.00
Balance Sheet,Balance Sheet,Balance Sheet,Insurance Account,INSURANCE CLAIM,02/07/2021,REDACTED INVOICE NUMBER,145232,0,Revenue,716,Clyde + Co,EC3A 7AR,0.00
Balance Sheet,Balance Sheet,Balance Sheet,Insurance Account,INSURANCE CLAIM,02/07/2021,REDACTED INVOICE NUMBER,145233,0,Revenue,716,Clyde + Co,EC3A 7AR,0.00
Director Of Environment,Golf Course,Golf Course,Purchases - Materials,MATERIALS - HARTSWOOD GOLD COURSE,30/07/2021,REDACTED INVOICE NUMBER,146439,90,Revenue,729,Collier Turf Care Ltd,PE32 2NA,0.00
Director Of Law & Governance,Legal Services & Data Protect,Legal Services & Data Protect,Legal Fees,LICENSING ACT 2003 HEARING,23/07/2021,REDACTED INVOICE NUMBER,145490,1750,Revenue,27606,Cornerstone Barristers,WC1R 5JH,0.00
Director Of Environment,Health & Food Safety,Food Safety Enforcement,Analytical Services,FOOD HYGIENE INSPECTIONS,13/07/2021,REDACTED INVOICE NUMBER,145119,1155,Revenue,792,D Barham Limited,CO2 7HW,0.00
Director Of Environment,Health & Food Safety,Food Safety Enforcement,Analytical Services,FOOD HYGIENE INSPECTIONS - JUN '21,30/07/2021,REDACTED INVOICE NUMBER,145789,425,Revenue,792,D Barham Limited,CO2 7HW,0.00
Director Of Planning & Economy,Planning Policy Total,Planning Policy,Contracted Services,Local Plan,02/07/2021,REDACTED INVOICE NUMBER,144524,7200,Revenue,26869,D.U.P. Limited,EC2A 4NE,0.00
Director Of Environment,"Communities, Health & Leisure",Health & Wellbeing,Grants - General,MENTAL HEALTH SMALL GRANT PAYMENT,27/07/2021,REDACTED INVOICE NUMBER,146472,3548,Revenue,167515P,Dance Network Association,CO1 1PT,0.00
Director Of Environment,Vehicle Fleet Management,Vehicle Fleet Management,Purchases - General Equipment,LAUNDRY,27/07/2021,REDACTED INVOICE NUMBER,145662,13.15,Revenue,817,Danes Of Colchester Limited,CO4 9RY,0.00
Director Of Environment,Vehicle Fleet Management,Vehicle Fleet Management,Purchases - General Equipment,LAUNDRY,30/07/2021,REDACTED INVOICE NUMBER,145684,13.15,Revenue,817,Danes Of Colchester Limited,CO4 9RY,0.00
Director Of Environment,Vehicle Fleet Management,Vehicle Fleet Management,Vehicle Replacement Parts,VEHICLE PARTS,02/07/2021,REDACTED INVOICE NUMBER,144366,24.1,Revenue,25512,David Huggett Mf Ltd,EM8 7NH,0.00
Director Of Environment,Vehicle Fleet Management,Vehicle Fleet Management,Vehicle Replacement Parts,VEHICLE PARTS,02/07/2021,REDACTED INVOICE NUMBER,144514,9.16,Revenue,25512,David Huggett Mf Ltd,EM8 7NH,0.00
Director Of Environment,Vehicle Fleet Management,Vehicle Fleet Management,Vehicle Replacement Parts,VEHICLE PARTS,02/07/2021,REDACTED INVOICE NUMBER,144369,110.46,Revenue,25512,David Huggett Mf Ltd,EM8 7NH,0.00
Director Of Environment,Vehicle Fleet Management,Vehicle Fleet Management,Vehicle Replacement Parts,VEHICLE PARTS,02/07/2021,REDACTED INVOICE NUMBER,144482,255,Revenue,25512,David Huggett Mf Ltd,EM8 7NH,0.00
Director Of Environment,Vehicle Fleet Management,Vehicle Fleet Management,Vehicle Replacement Parts,VEHICLE PARTS,02/07/2021,REDACTED INVOICE NUMBER,144481,26.94,Revenue,25512,David Huggett Mf Ltd,EM8 7NH,0.00
Director Of Environment,Vehicle Fleet Management,Vehicle Fleet Management,Vehicle Replacement Parts,VEHICLE PARTS,02/07/2021,REDACTED INVOICE NUMBER,144480,190.78,Revenue,25512,David Huggett Mf Ltd,EM8 7NH,0.00
Director Of Environment,Vehicle Fleet Management,Vehicle Fleet Management,Vehicle Replacement Parts,VEHICLE PARTS,02/07/2021,REDACTED INVOICE NUMBER,144508,17,Revenue,25512,David Huggett Mf Ltd,EM8 7NH,0.00
Director Of Environment,Vehicle Fleet Management,Vehicle Fleet Management,Vehicle Replacement Parts,VEHICLE PARTS,02/07/2021,REDACTED INVOICE NUMBER,144368,51,Revenue,25512,David Huggett Mf Ltd,EM8 7NH,0.00
Director Of Environment,Vehicle Fleet Management,Vehicle Fleet Management,Vehicle Replacement Parts,VEHICLE PARTS,02/07/2021,REDACTED INVOICE NUMBER,144367,37.2,Revenue,25512,David Huggett Mf Ltd,EM8 7NH,0.00
Director Of Environment,Vehicle Fleet Management,Vehicle Fleet Management,Vehicle - Fuel,VEHICLE PARTS,06/07/2021,REDACTED INVOICE NUMBER,144537,257,Revenue,25512,David Huggett Mf Ltd,EM8 7NH,0.00
Director Of Environment,Vehicle Fleet Management,Vehicle Fleet Management,Vehicle Replacement Parts,VEHICLE PARTS,06/07/2021,REDACTED INVOICE NUMBER,144804,265,Revenue,25512,David Huggett Mf Ltd,EM8 7NH,0.00
Director Of Environment,Vehicle Fleet Management,Vehicle Fleet Management,Vehicle Replacement Parts,VEHICLE PARTS,06/07/2021,REDACTED INVOICE NUMBER,144538,147.07,Revenue,25512,David Huggett Mf Ltd,EM8 7NH,0.00
Director Of Environment,Vehicle Fleet Management,Vehicle Fleet Management,Vehicle Replacement Parts,VEHICLE PARTS,06/07/2021,REDACTED INVOICE NUMBER,144539,43.84,Revenue,25512,David Huggett Mf Ltd,EM8 7NH,0.00
Balance Sheet,Balance Sheet,Balance Sheet,Highways Stores,VEHICLE PARTS,09/07/2021,REDACTED INVOICE NUMBER,144838,385,Revenue,25512,David Huggett Mf Ltd,EM8 7NH,0.00
Director Of Environment,Vehicle Fleet Management,Vehicle Fleet Management,Vehicle - Fuel,VEHICLE PARTS,09/07/2021,REDACTED INVOICE NUMBER,144840,36.16,Revenue,25512,David Huggett Mf Ltd,EM8 7NH,0.00
Director Of Environment,Vehicle Fleet Management,Vehicle Fleet Management,Vehicle - Fuel,VEHICLE PARTS,09/07/2021,REDACTED INVOICE NUMBER,144863,75.68,Revenue,25512,David Huggett Mf Ltd,EM8 7NH,0.00
Director Of Environment,Vehicle Fleet Management,Vehicle Fleet Management,Vehicle Replacement Parts,VEHICLE PARTS,09/07/2021,REDACTED INVOICE NUMBER,144842,75.68,Revenue,25512,David Huggett Mf Ltd,EM8 7NH,0.00
Director Of Environment,Vehicle Fleet Management,Vehicle Fleet Management,Vehicle Replacement Parts,VEHICLE PARTS,09/07/2021,REDACTED INVOICE NUMBER,144841,36.16,Revenue,25512,David Huggett Mf Ltd,EM8 7NH,0.00
Director Of Environment,Vehicle Fleet Management,Vehicle Fleet Management,Vehicle Replacement Parts,VEHICLE PARTS,09/07/2021,REDACTED INVOICE NUMBER,144839,60.92,Revenue,25512,David Huggett Mf Ltd,EM8 7NH,0.00
Director Of Environment,Vehicle Fleet Management,Vehicle Fleet Management,Vehicle Replacement Parts,VEHICLE PARTS,09/07/2021,REDACTED INVOICE NUMBER,144864,17.12,Revenue,25512,David Huggett Mf Ltd,EM8 7NH,0.00
Director Of Environment,Vehicle Fleet Management,Vehicle Fleet Management,Vehicle Replacement Parts,VEHICLE PARTS,09/07/2021,REDACTED INVOICE NUMBER,144837,1217.04,Revenue,25512,David Huggett Mf Ltd,EM8 7NH,0.00
Director Of Environment,Vehicle Fleet Management,Vehicle Fleet Management,Vehicle - Fuel,VEHICLE PARTS,13/07/2021,REDACTED INVOICE NUMBER,145047,82.33,Revenue,25512,David Huggett Mf Ltd,EM8 7NH,0.00
Director Of Environment,Vehicle Fleet Management,Vehicle Fleet Management,Vehicle - Fuel,VEHICLE PARTS,13/07/2021,REDACTED INVOICE NUMBER,145049,150,Revenue,25512,David Huggett Mf Ltd,EM8 7NH,0.00
Director Of Environment,Vehicle Fleet Management,Vehicle Fleet Management,Vehicle Replacement Parts,VEHICLE PARTS,13/07/2021,REDACTED INVOICE NUMBER,145048,377.37,Revenue,25512,David Huggett Mf Ltd,EM8 7NH,0.00
Director Of Environment,Vehicle Fleet Management,Vehicle Fleet Management,Vehicle Replacement Parts,VEHICLE PARTS,13/07/2021,REDACTED INVOICE NUMBER,146323,-8.76,Revenue,25512,David Huggett Mf Ltd,EM8 7NH,0.00
Director Of Environment,Vehicle Fleet Management,Vehicle Fleet Management,Vehicle Replacement Parts,VEHICLE PARTS,13/07/2021,REDACTED INVOICE NUMBER,145069,76.95,Revenue,25512,David Huggett Mf Ltd,EM8 7NH,0.00
Director Of Environment,Vehicle Fleet Management,Vehicle Fleet Management,Vehicle Replacement Parts,VEHICLE PARTS,13/07/2021,REDACTED INVOICE NUMBER,145068,549.5,Revenue,25512,David Huggett Mf Ltd,EM8 7NH,0.00
Director Of Environment,Vehicle Fleet Management,Vehicle Fleet Management,Vehicle Replacement Parts,VEHICLE PARTS,16/07/2021,REDACTED INVOICE NUMBER,145098,46.4,Revenue,25512,David Huggett Mf Ltd,EM8 7NH,0.00
Director Of Environment,Vehicle Fleet Management,Vehicle Fleet Management,Vehicle Replacement Parts,VEHICLE PARTS,16/07/2021,REDACTED INVOICE NUMBER,145124,16.66,Revenue,25512,David Huggett Mf Ltd,EM8 7NH,0.00
Director Of Environment,Vehicle Fleet Management,Vehicle Fleet Management,Vehicle Replacement Parts,VEHICLE PARTS,16/07/2021,REDACTED INVOICE NUMBER,145096,176.66,Revenue,25512,David Huggett Mf Ltd,EM8 7NH,0.00
Director Of Environment,Vehicle Fleet Management,Vehicle Fleet Management,Vehicle Replacement Parts,VEHICLE PARTS,16/07/2021,REDACTED INVOICE NUMBER,145097,65.18,Revenue,25512,David Huggett Mf Ltd,EM8 7NH,0.00
Director Of Environment,Vehicle Fleet Management,Vehicle Fleet Management,Vehicle Replacement Parts,VEHICLE PARTS,20/07/2021,REDACTED INVOICE NUMBER,145350,251.83,Revenue,25512,David Huggett Mf Ltd,EM8 7NH,0.00
Director Of Environment,Vehicle Fleet Management,Vehicle Fleet Management,Vehicle Replacement Parts,VEHICLE PARTS,20/07/2021,REDACTED INVOICE NUMBER,145351,30.35,Revenue,25512,David Huggett Mf Ltd,EM8 7NH,0.00
Director Of Environment,Vehicle Fleet Management,Vehicle Fleet Management,Vehicle Replacement Parts,VEHICLE PARTS,20/07/2021,REDACTED INVOICE NUMBER,145352,19.92,Revenue,25512,David Huggett Mf Ltd,EM8 7NH,0.00
Director Of Environment,Vehicle Fleet Management,Vehicle Fleet Management,Vehicle Replacement Parts,VEHICLE PARTS,20/07/2021,REDACTED INVOICE NUMBER,145243,113.24,Revenue,25512,David Huggett Mf Ltd,EM8 7NH,0.00
Director Of Environment,Vehicle Fleet Management,Vehicle Fleet Management,Vehicle Replacement Parts,VEHICLE PARTS,23/07/2021,REDACTED INVOICE NUMBER,145376,93.5,Revenue,25512,David Huggett Mf Ltd,EM8 7NH,0.00
Director Of Environment,Vehicle Fleet Management,Vehicle Fleet Management,Vehicle Replacement Parts,VEHICLE PARTS,23/07/2021,REDACTED INVOICE NUMBER,145375,165.93,Revenue,25512,David Huggett Mf Ltd,EM8 7NH,0.00
Director Of Environment,Vehicle Fleet Management,Vehicle Fleet Management,Vehicle Replacement Parts,VEHICLE PARTS,23/07/2021,REDACTED INVOICE NUMBER,145373,195,Revenue,25512,David Huggett Mf Ltd,EM8 7NH,0.00
Director Of Environment,Vehicle Fleet Management,Vehicle Fleet Management,Vehicle Replacement Parts,VEHICLE PARTS,23/07/2021,REDACTED INVOICE NUMBER,145374,21.4,Revenue,25512,David Huggett Mf Ltd,EM8 7NH,0.00
Director Of Environment,Vehicle Fleet Management,Vehicle Fleet Management,Vehicle Replacement Parts,VEHICLE PARTS,23/07/2021,REDACTED INVOICE NUMBER,145397,23.5,Revenue,25512,David Huggett Mf Ltd,EM8 7NH,0.00
Director Of Environment,Vehicle Fleet Management,Vehicle Fleet Management,Vehicle Replacement Parts,VEHICLE PARTS,23/07/2021,REDACTED INVOICE NUMBER,145399,543.52,Revenue,25512,David Huggett Mf Ltd,EM8 7NH,0.00
Director Of Environment,Vehicle Fleet Management,Vehicle Fleet Management,Vehicle Replacement Parts,VEHICLE PARTS,23/07/2021,REDACTED INVOICE NUMBER,145398,170.95,Revenue,25512,David Huggett Mf Ltd,EM8 7NH,0.00
Director Of Environment,Vehicle Fleet Management,Vehicle Fleet Management,Vehicle Replacement Parts,VEHICLE PARTS,23/07/2021,REDACTED INVOICE NUMBER,145396,30.35,Revenue,25512,David Huggett Mf Ltd,EM8 7NH,0.00
Director Of Environment,Grounds Maintenance,Grounds Maintenance,Vehicle Replacement Parts,VEHICLE PARTS,27/07/2021,REDACTED INVOICE NUMBER,145644,10.48,Revenue,25512,David Huggett Mf Ltd,EM8 7NH,0.00
Director Of Environment,Vehicle Fleet Management,Vehicle Fleet Management,Vehicle - Fuel,VEHICLE PARTS,27/07/2021,REDACTED INVOICE NUMBER,143675,30.11,Revenue,25512,David Huggett Mf Ltd,EM8 7NH,0.00
Director Of Environment,Vehicle Fleet Management,Vehicle Fleet Management,Vehicle - Fuel,VEHICLE PARTS,27/07/2021,REDACTED INVOICE NUMBER,143672,24.5,Revenue,25512,David Huggett Mf Ltd,EM8 7NH,0.00
Director Of Environment,Vehicle Fleet Management,Vehicle Fleet Management,Vehicle Replacement Parts,VEHICLE PARTS,27/07/2021,REDACTED INVOICE NUMBER,145645,10.38,Revenue,25512,David Huggett Mf Ltd,EM8 7NH,0.00
Director Of Environment,Vehicle Fleet Management,Vehicle Fleet Management,Vehicle Replacement Parts,VEHICLE PARTS,27/07/2021,REDACTED INVOICE NUMBER,145643,91.13,Revenue,25512,David Huggett Mf Ltd,EM8 7NH,0.00
Director Of Environment,Vehicle Fleet Management,Vehicle Fleet Management,Vehicle Replacement Parts,VEHICLE PARTS,27/07/2021,REDACTED INVOICE NUMBER,145646,43,Revenue,25512,David Huggett Mf Ltd,EM8 7NH,0.00
Director Of Environment,Vehicle Fleet Management,Vehicle Fleet Management,Vehicle Replacement Parts,VEHICLE PARTS,27/07/2021,REDACTED INVOICE NUMBER,145647,513.08,Revenue,25512,David Huggett Mf Ltd,EM8 7NH,0.00
Director Of Environment,Vehicle Fleet Management,Vehicle Fleet Management,Vehicle Replacement Parts,VEHICLE PARTS,27/07/2021,REDACTED INVOICE NUMBER,145648,12.56,Revenue,25512,David Huggett Mf Ltd,EM8 7NH,0.00
Director Of Environment,Vehicle Fleet Management,Vehicle Fleet Management,Vehicle Replacement Parts,CREDIT NOTE,27/07/2021,REDACTED INVOICE NUMBER,146899,-71.66,Revenue,25512,David Huggett Mf Ltd,EM8 7NH,0.00
Director Of Environment,Vehicle Fleet Management,Vehicle Fleet Management,Vehicle Replacement Parts,VEHICLE PARTS,27/07/2021,REDACTED INVOICE NUMBER,142950,62.49,Revenue,25512,David Huggett Mf Ltd,EM8 7NH,0.00
Director Of Environment,Vehicle Fleet Management,Vehicle Fleet Management,Vehicle Replacement Parts,VEHICLE PARTS,27/07/2021,REDACTED INVOICE NUMBER,143674,37.46,Revenue,25512,David Huggett Mf Ltd,EM8 7NH,0.00
Director Of Environment,Grounds Maintenance,Grounds Maintenance,Vehicle Replacement Parts,TRAILER PARTS,30/07/2021,REDACTED INVOICE NUMBER,145683,22.46,Revenue,25512,David Huggett Mf Ltd,EM8 7NH,0.00
Director Of Environment,Vehicle Fleet Management,Vehicle Fleet Management,Vehicle Replacement Parts,VEHICLE PARTS,30/07/2021,REDACTED INVOICE NUMBER,145883,186.6,Revenue,25512,David Huggett Mf Ltd,EM8 7NH,0.00
Director Of Environment,Vehicle Fleet Management,Vehicle Fleet Management,Vehicle Replacement Parts,VEHICLE PARTS,30/07/2021,REDACTED INVOICE NUMBER,145685,123.02,Revenue,25512,David Huggett Mf Ltd,EM8 7NH,0.00
Director Of Environment,Vehicle Fleet Management,Vehicle Fleet Management,Vehicle Replacement Parts,VEHICLE PARTS,30/07/2021,REDACTED INVOICE NUMBER,145755,6.28,Revenue,25512,David Huggett Mf Ltd,EM8 7NH,0.00
Director Of Environment,Vehicle Fleet Management,Vehicle Fleet Management,Vehicle Replacement Parts,VEHICLE PARTS,30/07/2021,REDACTED INVOICE NUMBER,145752,162,Revenue,25512,David Huggett Mf Ltd,EM8 7NH,0.00
Director Of Environment,Vehicle Fleet Management,Vehicle Fleet Management,Vehicle Replacement Parts,VEHICLE PARTS,30/07/2021,REDACTED INVOICE NUMBER,145751,11.53,Revenue,25512,David Huggett Mf Ltd,EM8 7NH,0.00
Director Of Environment,Vehicle Fleet Management,Vehicle Fleet Management,Vehicle Replacement Parts,VEHICLE PARTS,30/07/2021,REDACTED INVOICE NUMBER,145753,110.46,Revenue,25512,David Huggett Mf Ltd,EM8 7NH,0.00
Director Of Environment,Vehicle Fleet Management,Vehicle Fleet Management,Vehicle Replacement Parts,VEHICLE PARTS,30/07/2021,REDACTED INVOICE NUMBER,145754,26.94,Revenue,25512,David Huggett Mf Ltd,EM8 7NH,0.00
Director Of Planning & Economy,Building Control,Building Control - Chargeable,Other Professional Fees,STRUCTURAL WORKS,27/07/2021,REDACTED INVOICE NUMBER,145609,55.5,Revenue,25248,Davies Burton Sweetlove Limited,CM2 5PW,0.00
Director Of Planning & Economy,Building Control,Building Control - Chargeable,Other Professional Fees,STRUCTURAL WORKS,27/07/2021,REDACTED INVOICE NUMBER,145608,166.5,Revenue,25248,Davies Burton Sweetlove Limited,CM2 5PW,0.00
Director Of Environment,Vehicle Fleet Management,Vehicle Fleet Management,Vehicle Replacement Parts,VEHICLE PARTS,02/07/2021,REDACTED INVOICE NUMBER,144510,205.88,Revenue,861,Dennis Eagle Ltd,CV34 6TE,0.00
Director Of Environment,Vehicle Fleet Management,Vehicle Fleet Management,Vehicle Replacement Parts,VEHICLE PARTS,06/07/2021,REDACTED INVOICE NUMBER,144543,447,Revenue,861,Dennis Eagle Ltd,CV34 6TE,0.00
Director Of Environment,Vehicle Fleet Management,Vehicle Fleet Management,Vehicle Replacement Parts,VEHICLE PARTS,06/07/2021,REDACTED INVOICE NUMBER,144805,61.35,Revenue,861,Dennis Eagle Ltd,CV34 6TE,0.00
Director Of Environment,Vehicle Fleet Management,Vehicle Fleet Management,Vehicle Replacement Parts,VEHICLE PARTS,09/07/2021,REDACTED INVOICE NUMBER,144860,125.95,Revenue,861,Dennis Eagle Ltd,CV34 6TE,0.00
Director Of Environment,Vehicle Fleet Management,Vehicle Fleet Management,Vehicle Replacement Parts,VEHICLE PARTS,09/07/2021,REDACTED INVOICE NUMBER,144859,53.04,Revenue,861,Dennis Eagle Ltd,CV34 6TE,0.00
Director Of Environment,Vehicle Fleet Management,Vehicle Fleet Management,Vehicle Replacement Parts,VEHICLE PARTS,09/07/2021,REDACTED INVOICE NUMBER,144865,173.63,Revenue,861,Dennis Eagle Ltd,CV34 6TE,0.00
Director Of Environment,Vehicle Fleet Management,Vehicle Fleet Management,Vehicle Replacement Parts,VEHICLE PARTS,09/07/2021,REDACTED INVOICE NUMBER,144937,170.24,Revenue,861,Dennis Eagle Ltd,CV34 6TE,0.00
Director Of Environment,Vehicle Fleet Management,Vehicle Fleet Management,Vehicle Replacement Parts,VEHICLE PARTS,16/07/2021,REDACTED INVOICE NUMBER,145357,495.57,Revenue,861,Dennis Eagle Ltd,CV34 6TE,0.00
Director Of Environment,Vehicle Fleet Management,Vehicle Fleet Management,Vehicle Replacement Parts,VEHICLE PARTS,16/07/2021,REDACTED INVOICE NUMBER,145360,80,Revenue,861,Dennis Eagle Ltd,CV34 6TE,0.00
Director Of Environment,Vehicle Fleet Management,Vehicle Fleet Management,Vehicle Replacement Parts,VEHICLE PARTS,16/07/2021,REDACTED INVOICE NUMBER,145361,292.23,Revenue,861,Dennis Eagle Ltd,CV34 6TE,0.00
Director Of Environment,Vehicle Fleet Management,Vehicle Fleet Management,Vehicle Replacement Parts,VEHICLE PARTS,30/07/2021,REDACTED INVOICE NUMBER,145690,242.62,Revenue,861,Dennis Eagle Ltd,CV34 6TE,0.00
Director Of Environment,Grounds Maintenance,Grounds Maintenance,R&M Grounds - Bedding Plants,PLANTS,06/07/2021,REDACTED INVOICE NUMBER,145875,5918.44,Revenue,28450,Downs View Nurseries Ltd,PO20 7LW,0.00
Director Of Environment,Golf Course,Golf Course,Agency Staff,PROJECT MANAGEMENT SUPPORT,06/07/2021,REDACTED INVOICE NUMBER,145366,488,Revenue,28029,Driver Hire (Chelmsford & Harlow),CM8 1BA,0.00
Director Of Environment,Grounds Maintenance,Grounds Maintenance,Agency Staff,PROJECT MANAGEMENT SUPPORT,06/07/2021,REDACTED INVOICE NUMBER,145359,564.25,Revenue,28029,Driver Hire (Chelmsford & Harlow),CM8 1BA,0.00
Director Of Environment,Grounds Maintenance,Grounds Maintenance,Agency Staff,PROJECT MANAGEMENT SUPPORT,06/07/2021,REDACTED INVOICE NUMBER,145366,2824.08,Revenue,28029,Driver Hire (Chelmsford & Harlow),CM8 1BA,0.00
Director Of Environment,Parking,Parking Services,Agency Staff,PROJECT MANAGEMENT SUPPORT,06/07/2021,REDACTED INVOICE NUMBER,145358,664.15,Revenue,28029,Driver Hire (Chelmsford & Harlow),CM8 1BA,0.00
Director Of Environment,Street Services,Street Cleansing,Agency Staff,PROJECT MANAGEMENT SUPPORT,06/07/2021,REDACTED INVOICE NUMBER,145359,564.25,Revenue,28029,Driver Hire (Chelmsford & Harlow),CM8 1BA,0.00
Director Of Environment,Waste Management,Waste Collection Support,Agency Staff,PROJECT MANAGEMENT SUPPORT,06/07/2021,REDACTED INVOICE NUMBER,145359,5407.43,Revenue,28029,Driver Hire (Chelmsford & Harlow),CM8 1BA,0.00
Director Of Environment,Golf Course,Golf Course,Agency Staff,PROJECT MANAGEMENT SUPPORT,13/07/2021,REDACTED INVOICE NUMBER,145636,602.38,Revenue,28029,Driver Hire (Chelmsford & Harlow),CM8 1BA,0.00
Director Of Environment,Grounds Maintenance,Grounds Maintenance,Agency Staff,PROJECT MANAGEMENT SUPPORT,13/07/2021,REDACTED INVOICE NUMBER,145636,2799.93,Revenue,28029,Driver Hire (Chelmsford & Harlow),CM8 1BA,0.00
Director Of Environment,Parking,Parking Services,Agency Staff,PROJECT MANAGEMENT SUPPORT,13/07/2021,REDACTED INVOICE NUMBER,145634,664.15,Revenue,28029,Driver Hire (Chelmsford & Harlow),CM8 1BA,0.00
Director Of Environment,Street Services,Street Cleansing,Agency Staff,PROJECT MANAGEMENT SUPPORT,13/07/2021,REDACTED INVOICE NUMBER,145635,1228.5,Revenue,28029,Driver Hire (Chelmsford & Harlow),CM8 1BA,0.00
Director Of Environment,Waste Management,Waste Collection Support,Agency Staff,PROJECT MANAGEMENT SUPPORT,13/07/2021,REDACTED INVOICE NUMBER,145635,5610.95,Revenue,28029,Driver Hire (Chelmsford & Harlow),CM8 1BA,0.00
Director Of Environment,Golf Course,Golf Course,Agency Staff,PROJECT MANAGEMENT SUPPORT,20/07/2021,REDACTED INVOICE NUMBER,146242,708.23,Revenue,28029,Driver Hire (Chelmsford & Harlow),CM8 1BA,0.00
Director Of Environment,Grounds Maintenance,Grounds Maintenance,Agency Staff,PROJECT MANAGEMENT SUPPORT,20/07/2021,REDACTED INVOICE NUMBER,146242,2793.14,Revenue,28029,Driver Hire (Chelmsford & Harlow),CM8 1BA,0.00
Director Of Environment,Parking,Parking Services,Agency Staff,PROJECT MANAGEMENT SUPPORT,20/07/2021,REDACTED INVOICE NUMBER,146234,538.51,Revenue,28029,Driver Hire (Chelmsford & Harlow),CM8 1BA,0.00
Capex Director Of Housing,Housing - Hra,Asbestos,Enhancements,Asbestos Removal/Remediation,06/07/2021,REDACTED INVOICE NUMBER,144525,21840,Capital,28327,Ductclean Uk Ltd,AI7 1JQ,0.00
Hra Expenditure,Supervision And Management,Managing Tenancies,Purchases - Materials,PAINT PACK,06/07/2021,REDACTED INVOICE NUMBER,145205,191.75,Revenue,937,Dulux Decorator Centres,CM13 1XA,0.00
Hra Expenditure,Repairs And Maintenance,Responsive Void Repairs,Electricity,ELECTRICITY SUPPLY,02/07/2021,REDACTED INVOICE NUMBER,145246,254.8,Revenue,959,E.On,NG1 6HD,0.00
Director Of Environment,Grounds Maintenance,Grounds Maintenance,Purchases - General Equipment,ONSITE ASSESMENT AND TESTING,27/07/2021,REDACTED INVOICE NUMBER,146335,2160,Revenue,28556,Earlsmere Limited,S70 2LW,0.00
Director Corporate Resources,Human Resources,Human Resources,Project Management Support,Talent Bank,02/07/2021,REDACTED INVOICE NUMBER,144962,"2,100.00",Revenue,970,East Of England Local Government Associat,IP33 3YU,0.00
Director Corporate Resources,Human Resources,Human Resources,Project Management Support,Talent Bank,02/07/2021,REDACTED INVOICE NUMBER,143900,"1,500.00",Revenue,970,East Of England Local Government Associat,IP33 3YU,0.00
Director Corporate Resources,Human Resources,Human Resources,Project Management Support,Talent Bank,02/07/2021,REDACTED INVOICE NUMBER,143901,600,Revenue,970,East Of England Local Government Associat,IP33 3YU,0.00
Director Corporate Resources,Payroll,Payroll,Project Management Support,Talent Bank,02/07/2021,REDACTED INVOICE NUMBER,143899,6300,Revenue,970,East Of England Local Government Associat,IP33 3YU,0.00
Director Corporate Resources,Human Resources,Human Resources,Standards Investigations,TALENT BANK,09/07/2021,REDACTED INVOICE NUMBER,145238,"3,500.00",Revenue,970,East Of England Local Government Associat,IP33 3YU,0.00
Director Corporate Resources,Human Resources,Human Resources,Project Management Support,TALENT BANK,20/07/2021,REDACTED INVOICE NUMBER,145202,"1,500.00",Revenue,970,East Of England Local Government Associat,IP33 3YU,0.00
Director Corporate Resources,Payroll,Payroll,Project Management Support,TALENT BANK,20/07/2021,REDACTED INVOICE NUMBER,145203,"2,100.00",Revenue,970,East Of England Local Government Associat,IP33 3YU,0.00
Balance Sheet,Balance Sheet,Balance Sheet,Ctax 15 Jan Prior Surplus Ecc,PRECEPTS - JULY '21,09/07/2021,REDACTED INVOICE NUMBER,145879,9729,Revenue,22442,Ecc Precept,.,0.00
Balance Sheet,Balance Sheet,Balance Sheet,C Tax Ecc Precept,PRECEPTS - JULY '21,09/07/2021,REDACTED INVOICE NUMBER,145879,"4,053,242.00",Revenue,22442,Ecc Precept,.,0.00
Director Corporate Resources,Council Tax & Nndr,Council Tax Collection,Grants/Contributions - Ecc,PRECEPTS - JULY '21,09/07/2021,REDACTED INVOICE NUMBER,145879,"-5,641.00",Revenue,22442,Ecc Precept,.,0.00
Balance Sheet,Balance Sheet,Balance Sheet,Ctax 15 Jan Prior Surplus Ecc,PRECEPTS - AUGUST '21,30/07/2021,REDACTED INVOICE NUMBER,147101,9729,Revenue,22442,Ecc Precept,.,0.00
Balance Sheet,Balance Sheet,Balance Sheet,C Tax Ecc Precept,PRECEPTS - AUGUST '21,30/07/2021,REDACTED INVOICE NUMBER,147101,"4,053,242.00",Revenue,22442,Ecc Precept,.,0.00
Director Corporate Resources,Council Tax & Nndr,Council Tax Collection,Grants/Contributions - Ecc,PRECEPTS - AUGUST '21,30/07/2021,REDACTED INVOICE NUMBER,147101,-5641,Revenue,22442,Ecc Precept,.,0.00
Hra Expenditure,Supervision And Management,Policy And Management,Consultancy Fees,OPEN BOOK REVIEW - 20/21,16/07/2021,REDACTED INVOICE NUMBER,145724,1147.5,Revenue,27607,Echelon Consultancy Limited,AL1 4TB,0.00
Hra Expenditure,Supervision And Management,Rent Collection & Recovery,Other Professional Fees,EPC'S,02/07/2021,REDACTED INVOICE NUMBER,144275,135,Revenue,22377,Eco Approach Ltd,BR3 1AT,0.00
Director Housing & Enforcement,Community Safety,Corporate Enforcement,Vehicle Hire,VEHICLE GRAPHICS,20/07/2021,REDACTED INVOICE NUMBER,145313,550,Revenue,28648,Efficient Signs & Print Ltd,E11 3DH,0.00
Director Of Law & Governance,Electoral Services,Election Services,Election Advances,REGISTRATION FEES,09/07/2021,REDACTED INVOICE NUMBER,144925,917.75,Revenue,1000,Electoral Reform Services,N8 0NW,0.00
Director Of Law & Governance,Electoral Services,Election Services,Election Advances,POSTAL PACKS - ELECTIONS 2021,16/07/2021,REDACTED INVOICE NUMBER,145629,280,Revenue,1000,Electoral Reform Services,N8 0NW,0.00
Director Of Environment,Grounds Maintenance,Grounds Maintenance,Purchases - General Equipment,MACHINERY PARTS,16/07/2021,REDACTED INVOICE NUMBER,145123,25.29,Revenue,1050,Ernest Doe & Sons Ltd,CM9 6QH,0.00
Director Of Environment,Cemeteries,Cemeteries,Purchases - General Equipment,MACHINERY REPAIRS  ,30/07/2021,REDACTED INVOICE NUMBER,145874,179.99,Revenue,1050,Ernest Doe & Sons Ltd,CM9 6QH,0.00
Director Of Environment,Grounds Maintenance,Grounds Maintenance,Purchases - General Equipment,MACHINERY PARTS,30/07/2021,REDACTED INVOICE NUMBER,145946,405,Revenue,1050,Ernest Doe & Sons Ltd,CM9 6QH,0.00
Director Of Environment,Grounds Maintenance,Grounds Maintenance,Purchases - Materials,MACHINERY PARTS,30/07/2021,REDACTED INVOICE NUMBER,145947,273.09,Revenue,1050,Ernest Doe & Sons Ltd,CM9 6QH,0.00
Director Of Environment,Grounds Maintenance,Grounds Maintenance,Purchases - Materials,MACHINERY PARTS,30/07/2021,REDACTED INVOICE NUMBER,145948,132.82,Revenue,1050,Ernest Doe & Sons Ltd,CM9 6QH,0.00
Director Of Environment,Grounds Maintenance,Grounds Maintenance,Vehicle R&M - External,VEHICLE REPAIRS,30/07/2021,REDACTED INVOICE NUMBER,145778,1136.88,Revenue,1050,Ernest Doe & Sons Ltd,CM9 6QH,0.00
Director Corporate Resources,Corporate Management,Corporate Management Costs,Audit Fee,AUDIT SERVICES - 20/21,30/07/2021,REDACTED INVOICE NUMBER,145639,13091.25,Revenue,1052,Ernst + Young Llp,SE1 2AF,0.00
Hra Expenditure,"Rents, Rates & Other Charges","Rents, Rates & Other Charges",Water,WATER SUPPLY,09/07/2021,REDACTED INVOICE NUMBER,145934,30.98,Revenue,1058,Essex + Suffolk Water,DH1 9TX,0.00
Capex Director Of Housing,Housing - Hra,Housing Stock - Water,Enhancements,PIPE RENEWAL,23/07/2021,REDACTED INVOICE NUMBER,146426,1796.07,Capital,1058,Essex + Suffolk Water,DH1 9TX,0.00
Hra Expenditure,Repairs And Maintenance,Responsive Void Repairs,Water,WATER SUPPLY,30/07/2021,REDACTED INVOICE NUMBER,146595,116,Revenue,1058,Essex + Suffolk Water,DH1 9TX,0.00
Director Of Planning & Economy,Land Charges,Land Charges,Search Fees,SEARCHES - APRIL '21,02/07/2021,REDACTED INVOICE NUMBER,144483,252,Revenue,1075,Essex County Council,CM1 1JZ,0.00
Balance Sheet,Balance Sheet,Balance Sheet,Agency - Csp,ESSEX YOUTH SERVICE,16/07/2021,REDACTED INVOICE NUMBER,145583,1000,Revenue,1069,Essex County Council,CM1 1JZ,0.00
Director Of Planning & Economy,Land Charges,Land Charges,Search Fees,Search Fees May 2021,23/07/2021,REDACTED INVOICE NUMBER,145454,364,Revenue,1075,Essex County Council,CM1 1JZ,0.00
Director Of Environment,Cemeteries,Cemeteries,Purchases - General Equipment,PETROL WATER PUMP,16/07/2021,REDACTED INVOICE NUMBER,145927,28,Revenue,1096,Essex Hire + Sales Ltd,CM15 9DZ,0.00
Director Digital & Customer En,Digital Servs & Transformation,Ict Services,Contracted Services,DPO SERVICES,30/07/2021,REDACTED INVOICE NUMBER,145671,1600,Revenue,28137,Evalian Ltd,SO32 2HD,0.00
Director Corporate Resources,Corporate Fraud,Fraud,Software Support & Maintenance,SEARCHES - JUN '21,30/07/2021,REDACTED INVOICE NUMBER,145700,59,Revenue,1126,Experian Ltd,NG80 1ZZ,0.00
Director Of Environment,Open Spaces,Recreation Areas,R&M Grounds - Play Equipment,CONCRETE REPAIRS - KGPF SKATE PARK,06/07/2021,REDACTED INVOICE NUMBER,144815,930,Revenue,1134,F.J.Britten Landscapes Ltd,CM3 8BG,0.00
Director Of Environment,Open Spaces,Buildings & Stakeholders,R&M Grounds - Fencing,RELOCATE FENCING - KGPF,16/07/2021,REDACTED INVOICE NUMBER,145076,450,Revenue,1134,F.J.Britten Landscapes Ltd,CM3 8BG,0.00
Capex Director Of Environment,S106 Former Elliots Nightclub,S106 Former Elliots Nightclub,Enhancements,DISABLED ACCESS - KGPF BOWLS CLUB,30/07/2021,REDACTED INVOICE NUMBER,145756,6985,Capital,1134,F.J.Britten Landscapes Ltd,CM3 8BG,0.00
Balance Sheet,Balance Sheet,Balance Sheet,Ctax 15 Jan Prior Surplus Fire,PRECEPTS - JULY '21,09/07/2021,REDACTED INVOICE NUMBER,145880,544,Revenue,22443,Fire Precept,.,0.00
Balance Sheet,Balance Sheet,Balance Sheet,C Tax Fire Precept,PRECEPTS - JULY '21,09/07/2021,REDACTED INVOICE NUMBER,145880,223351,Revenue,22443,Fire Precept,.,0.00
Balance Sheet,Balance Sheet,Balance Sheet,Nndr Fire Est Share(Precept),PRECEPTS - JULY '21,09/07/2021,REDACTED INVOICE NUMBER,145880,24472,Revenue,22443,Fire Precept,.,0.00
Director Corporate Resources,Council Tax & Nndr,Council Tax Collection,Grants/Contributions - Fire,PRECEPTS - JULY '21,09/07/2021,REDACTED INVOICE NUMBER,145880,-342,Revenue,22443,Fire Precept,.,0.00
Balance Sheet,Balance Sheet,Balance Sheet,Ctax 15 Jan Prior Surplus Fire,PRECEPTS - AUGUST '21,30/07/2021,REDACTED INVOICE NUMBER,147102,544,Revenue,22443,Fire Precept,.,0.00
Balance Sheet,Balance Sheet,Balance Sheet,C Tax Fire Precept,PRECEPTS - AUGUST '21,30/07/2021,REDACTED INVOICE NUMBER,147102,223351,Revenue,22443,Fire Precept,.,0.00
Balance Sheet,Balance Sheet,Balance Sheet,Nndr Fire Est Share(Precept),PRECEPTS - AUGUST '21,30/07/2021,REDACTED INVOICE NUMBER,147102,24472,Revenue,22443,Fire Precept,.,0.00
Director Corporate Resources,Council Tax & Nndr,Council Tax Collection,Grants/Contributions - Fire,PRECEPTS - AUGUST '21,30/07/2021,REDACTED INVOICE NUMBER,147102,-1869,Revenue,22443,Fire Precept,.,0.00
Director Of Environment,Golf Course,Golf Course,Bank Charges,DD JUL 21,09/07/2021,REDACTED INVOICE NUMBER,146254,23.19,Revenue,27884,First Data Global Leasing (Dd Payments),SS14 3WF,0.00
Director Of Environment,"Communities, Health & Leisure",Sports & Social Venues,Bank Charges,DIRECT DEBIT JUL 21,27/07/2021,REDACTED INVOICE NUMBER,146759,40,Revenue,27884,First Data Global Leasing (Dd Payments),SS14 3WF,0.00
Director Of Environment,Golf Course,Golf Course,Purchases - Materials,CONSUMABLES,06/07/2021,REDACTED INVOICE NUMBER,145081,389,Revenue,25575,Firstcall Corporation Ltd,DE24 8AJ,0.00
Director Of Environment,Golf Course,Golf Course,Purchases - Materials,MATERIALS,06/07/2021,REDACTED INVOICE NUMBER,145084,354,Revenue,25575,Firstcall Corporation Ltd,DE24 8AJ,0.00
Director Of Environment,Golf Course,Golf Course,Purchases - Materials,MATERIALS,06/07/2021,REDACTED INVOICE NUMBER,145082,319.5,Revenue,25575,Firstcall Corporation Ltd,DE24 8AJ,0.00
Director Of Environment,Golf Course,Golf Course,Purchases - Materials,MATERIALS,06/07/2021,REDACTED INVOICE NUMBER,145083,405.64,Revenue,25575,Firstcall Corporation Ltd,DE24 8AJ,0.00
Capex Director Of C Resources,Asset Management,Asset Management Strategy,Enhancements,DECORATIONS - NIGHTINGALE CENTRE,06/07/2021,REDACTED INVOICE NUMBER,144544,31330,Capital,1163,Fisk Building Contractors Ltd,CM11 1PW,0.00
Director Corporate Resources,Asset Management,Asset Management,R&M Bldgs - General,DEEP CLEAN. INGATESTONE TOILETS,06/07/2021,REDACTED INVOICE NUMBER,144545,620,Revenue,1163,Fisk Building Contractors Ltd,CM11 1PW,0.00
Capex Director Of C Resources,Asset Management,Brentwood Leisure Centre,Enhancements,WINDOW REPAIRS - BRENTWOOD CENTRE,09/07/2021,REDACTED INVOICE NUMBER,144852,450,Capital,1163,Fisk Building Contractors Ltd,CM11 1PW,0.00
Capex Director Of C Resources,Asset Management,Brentwood Leisure Centre,Enhancements,DOOR REPAIRS - BRENTWOOD CENTRE,13/07/2021,REDACTED INVOICE NUMBER,145032,932,Capital,1163,Fisk Building Contractors Ltd,CM11 1PW,0.00
Capex Director Of C Resources,Asset Management,Brentwood Leisure Centre,Enhancements,Roof lipht Replacement,13/07/2021,REDACTED INVOICE NUMBER,145033,450,Capital,1163,Fisk Building Contractors Ltd,CM11 1PW,0.00
Capex Director Of C Resources,Asset Management,Brentwood Leisure Centre,R&M Bldgs - General,Brentwood Centre Verbal works,13/07/2021,REDACTED INVOICE NUMBER,145056,1709,Capital,1163,Fisk Building Contractors Ltd,CM11 1PW,0.00
Capex Director Of C Resources,Asset Management,Brentwood Leisure Centre,Enhancements,Brentwood Centre - Poolside,16/07/2021,REDACTED INVOICE NUMBER,145230,14506,Capital,1163,Fisk Building Contractors Ltd,CM11 1PW,0.00
Director Corporate Resources,Asset Management,Asset Management,R&M Bldgs - General,Woodman Road Cemetery Chapel,16/07/2021,REDACTED INVOICE NUMBER,145231,25468,Revenue,1163,Fisk Building Contractors Ltd,CM11 1PW,0.00
Director Corporate Resources,Asset Management,Asset Management,R&M Bldgs - General,BACK DOOR REPAIR,20/07/2021,REDACTED INVOICE NUMBER,146464,720,Revenue,1163,Fisk Building Contractors Ltd,CM11 1PW,0.00
Director Of Environment,"Communities, Health & Leisure",Sports & Social Venues,Contracted Services,REPAIRS,09/07/2021,REDACTED INVOICE NUMBER,146319,70,Revenue,194077P,Fittech,CM1 4XY,0.00
Director Of Environment,Parking,Parking Services,Equipment & Tools - R&M,Services for Parking Equipment,09/07/2021,REDACTED INVOICE NUMBER,145062,295.8,Revenue,4187,Flowbird Smart City Uk Ltd (Was Parkeon),BH12 5AG,0.00
Director Of Environment,Parking,Parking Services,Equipment & Tools - R&M,Services for Parking Equipment - JUL '21,16/07/2021,REDACTED INVOICE NUMBER,145219,342,Revenue,4187,Flowbird Smart City Uk Ltd (Was Parkeon),BH12 5AG,0.00
Director Of Environment,Parking,Parking Services,Equipment & Tools - R&M,CLEANER CARD,23/07/2021,REDACTED INVOICE NUMBER,145400,518,Revenue,4187,Flowbird Smart City Uk Ltd (Was Parkeon),BH12 5AG,0.00
Director Of Environment,"Communities, Health & Leisure",Health & Wellbeing,Grants - General,MENTAL HEALTH SMALL GRANT PAYMENT,13/07/2021,REDACTED INVOICE NUMBER,146451,472,Revenue,169316P,Forget Me Not Activity Club,CM12 9LP,0.00
Director Corporate Resources,Office Accommodation,Office Facilities Management,R&M Bldgs - General,BRENTWOOD TOWN HALL COVER,09/07/2021,REDACTED INVOICE NUMBER,144862,1290,Revenue,28227,Four-Two Logistics Limited,CM22 7WE,0.00
Director Corporate Resources,Design And Print Services,Design & Print Services,Stationery - Paper,PAPER SUPPLIES,13/07/2021,REDACTED INVOICE NUMBER,145495,1121.45,Revenue,1199,Fulton Paper,CM11 2PY,0.00
Director Of Environment,Parking,Parking Services,Cash Collection,CONTRACT SERVICES - JUL '21,02/07/2021,REDACTED INVOICE NUMBER,144515,221.22,Revenue,23898,G4s Secure Solutions (Uk) Ltd,SM1 4LD,0.00
Hra Expenditure,Repairs And Maintenance,Planned Maintenance,Contracted Services,DOMESTIC ELECTRIC AUDIT - JUN '21,30/07/2021,REDACTED INVOICE NUMBER,145950,481,Revenue,27976,Gas Contract Services Ltd,ME2 4NZ,0.00
Hra Expenditure,Repairs And Maintenance,Planned Maintenance,Contracted Services,DOMESTIC GAS AUDIT - JUN '21,30/07/2021,REDACTED INVOICE NUMBER,145697,1978,Revenue,27976,Gas Contract Services Ltd,ME2 4NZ,0.00
Hra Expenditure,Repairs And Maintenance,Responsive Void Repairs,Gas,GAS SUPPLY,02/07/2021,REDACTED INVOICE NUMBER,145256,108.83,Revenue,1222,Gazprom Energy,M3 3GY,0.00
Hra Expenditure,Special Services,Chichester House,Gas,GAS SUPPLY,02/07/2021,REDACTED INVOICE NUMBER,145310,691.69,Revenue,1222,Gazprom Energy,M3 3GY,0.00
Hra Expenditure,Special Services,Communal Heating,Gas,GAS SUPPLY,02/07/2021,REDACTED INVOICE NUMBER,145310,296.43,Revenue,1222,Gazprom Energy,M3 3GY,0.00
Hra Expenditure,Special Services,Communal Heating,Gas,GAS SUPPLY,02/07/2021,REDACTED INVOICE NUMBER,145308,689.26,Revenue,1222,Gazprom Energy,M3 3GY,0.00
Hra Expenditure,Special Services,Communal Heating,Gas,GAS SUPPLY,02/07/2021,REDACTED INVOICE NUMBER,145260,187.53,Revenue,1222,Gazprom Energy,M3 3GY,0.00
Hra Expenditure,Special Services,Communal Heating,Gas,GAS SUPPLY,02/07/2021,REDACTED INVOICE NUMBER,145309,312.56,Revenue,1222,Gazprom Energy,M3 3GY,0.00
Hra Expenditure,Special Services,Drake House,Gas,GAS SUPPLY,02/07/2021,REDACTED INVOICE NUMBER,145306,1640.24,Revenue,1222,Gazprom Energy,M3 3GY,0.00
Hra Expenditure,Special Services,Four Oaks,Gas,GAS SUPPLY,02/07/2021,REDACTED INVOICE NUMBER,145255,351.33,Revenue,1222,Gazprom Energy,M3 3GY,0.00
Hra Expenditure,Special Services,Oldfields,Gas,GAS SUPPLY,02/07/2021,REDACTED INVOICE NUMBER,145309,722.71,Revenue,1222,Gazprom Energy,M3 3GY,0.00
Hra Expenditure,Special Services,St Georges Court,Gas,GAS SUPPLY,02/07/2021,REDACTED INVOICE NUMBER,145308,1280.09,Revenue,1222,Gazprom Energy,M3 3GY,0.00
Hra Expenditure,Special Services,The Gables,Gas,GAS SUPPLY,02/07/2021,REDACTED INVOICE NUMBER,145260,705.55,Revenue,1222,Gazprom Energy,M3 3GY,0.00
Hra Expenditure,Special Services,Victoria Court,Gas,GAS SUPPLY,02/07/2021,REDACTED INVOICE NUMBER,145309,918.12,Revenue,1222,Gazprom Energy,M3 3GY,0.00
Director Of Environment,Open Spaces,Buildings & Stakeholders,Gas,GAS SUPPLY,27/07/2021,REDACTED INVOICE NUMBER,146838,123.09,Revenue,1222,Gazprom Energy,M3 3GY,0.00
Hra Expenditure,Repairs And Maintenance,Responsive Void Repairs,Gas,GAS SUPPLY,30/07/2021,REDACTED INVOICE NUMBER,146878,84.13,Revenue,1222,Gazprom Energy,M3 3GY,0.00
Hra Expenditure,Special Services,Chichester House,Gas,GAS SUPPLY,30/07/2021,REDACTED INVOICE NUMBER,146972,523.85,Revenue,1222,Gazprom Energy,M3 3GY,0.00
Hra Expenditure,Special Services,Communal Heating,Gas,GAS SUPPLY,30/07/2021,REDACTED INVOICE NUMBER,146972,224.48,Revenue,1222,Gazprom Energy,M3 3GY,0.00
Hra Expenditure,Special Services,Communal Heating,Gas,GAS SUPPLY,30/07/2021,REDACTED INVOICE NUMBER,146965,39.68,Revenue,1222,Gazprom Energy,M3 3GY,0.00
Hra Expenditure,Special Services,Communal Heating,Gas,GAS SUPPLY,30/07/2021,REDACTED INVOICE NUMBER,146966,23.19,Revenue,1222,Gazprom Energy,M3 3GY,0.00
Hra Expenditure,Special Services,Communal Heating,Gas,GAS SUPPLY,30/07/2021,REDACTED INVOICE NUMBER,146962,5.37,Revenue,1222,Gazprom Energy,M3 3GY,0.00
Hra Expenditure,Special Services,Communal Heating,Gas,GAS SUPPLY,30/07/2021,REDACTED INVOICE NUMBER,146971,419.69,Revenue,1222,Gazprom Energy,M3 3GY,0.00
Hra Expenditure,Special Services,Communal Lighting,Gas,GAS SUPPLY,30/07/2021,REDACTED INVOICE NUMBER,146967,6.67,Revenue,1222,Gazprom Energy,M3 3GY,0.00
Hra Expenditure,Special Services,Drake House,Gas,GAS SUPPLY,30/07/2021,REDACTED INVOICE NUMBER,146970,985.77,Revenue,1222,Gazprom Energy,M3 3GY,0.00
Hra Expenditure,Special Services,Four Oaks,Gas,GAS SUPPLY,30/07/2021,REDACTED INVOICE NUMBER,146964,267.75,Revenue,1222,Gazprom Energy,M3 3GY,0.00
Hra Expenditure,Special Services,Ingleton House,Gas,GAS SUPPLY,30/07/2021,REDACTED INVOICE NUMBER,146965,119.05,Revenue,1222,Gazprom Energy,M3 3GY,0.00
Hra Expenditure,Special Services,St Georges Court,Gas,GAS SUPPLY,30/07/2021,REDACTED INVOICE NUMBER,146971,779.47,Revenue,1222,Gazprom Energy,M3 3GY,0.00
Director Of Environment,Waste Management,Refuse Waste,Equipment & Tools - R&M,BAGS SUPPLIED,30/07/2021,REDACTED INVOICE NUMBER,145935,738.06,Revenue,25265,General Business Holdings Ltd,CM8 3DH,0.00
Director Of Environment,"Communities, Health & Leisure",Sports & Social Venues,Computer & Software Purchases,Hosting - Additional,27/07/2021,REDACTED INVOICE NUMBER,145642,150,Revenue,28376,Gladstone Mrm Ltd,OX10 9BT,0.00
Director Corporate Resources,Office Accommodation,Office Facilities Management,R&M Bldgs - General,REPAIRS,02/07/2021,REDACTED INVOICE NUMBER,138568,-17.43,Revenue,1251,Glasdon U.K.Ltd,FY4 4UL,0.00
Director Corporate Resources,Office Accommodation,Office Facilities Management,R&M Bldgs - General,GLASS COLLECTION SACK KIT,02/07/2021,REDACTED INVOICE NUMBER,144383,106.68,Revenue,1251,Glasdon U.K.Ltd,FY4 4UL,0.00
Director Of Planning & Economy,Economic Development Total,Economic Development,Other Fees & Service,fees,20/07/2021,REDACTED INVOICE NUMBER,145895,753,Revenue,193672P,Global Media Group Services Ltd,WC2H 7LA,0.00
Director Corporate Resources,Asset Management,Asset Management,R&M Bldgs - General,FOGGING / DEEP CLEANING - DEPOT,09/07/2021,REDACTED INVOICE NUMBER,145899,490,Revenue,28558,Greenzest Ltd,RG17 0EY,0.00
Director Corporate Resources,Asset Management,Asset Management,Search Fees,LAND REG DD'S JUNE 2021,09/07/2021,REDACTED INVOICE NUMBER,146258,63,Revenue,22013,H M Land Registry,.,0.00
Director Of Environment,Open Spaces,Amenity Greens,Search Fees,LAND REG DD'S JUNE 2021,09/07/2021,REDACTED INVOICE NUMBER,146258,9,Revenue,22013,H M Land Registry,.,0.00
Director Of Planning & Economy,Planning Development Managemt,Planning Development Managemt,Search Fees,LAND REG DD'S JUNE 2021,09/07/2021,REDACTED INVOICE NUMBER,146258,63,Revenue,22013,H M Land Registry,.,0.00
Hra Expenditure,Supervision And Management,Rent Collection & Recovery,Search Fees,LAND REG DD'S JUNE 2021,09/07/2021,REDACTED INVOICE NUMBER,146258,6,Revenue,22013,H M Land Registry,.,0.00
Capex Director Of Housing,Housing - Affordable Housing,17 Crescent Road,Enhancements,PROFESSIONAL FEES,30/07/2021,REDACTED INVOICE NUMBER,144416,2821.25,Capital,28405,Hamson Barron Smith Ltd,NR6 6EQ,0.00
Capex Director Of Housing,Housing - Affordable Housing,17 Crescent Road,Enhancements,PROFESSIONAL FEES - KING EDWARD ROAD,30/07/2021,REDACTED INVOICE NUMBER,145681,840,Capital,28405,Hamson Barron Smith Ltd,NR6 6EQ,0.00
Director Of Environment,Vehicle Fleet Management,Vehicle Fleet Management,Purchases - General Equipment,MACHINERY MAINTENANCE,02/07/2021,REDACTED INVOICE NUMBER,144833,186.25,Revenue,1322,Haps Garage Equipment Ltd,SS7 3YT,0.00
Director Of Environment,Vehicle Fleet Management,Vehicle Fleet Management,Purchases - General Equipment,WORKSHOP MACHINERY,20/07/2021,REDACTED INVOICE NUMBER,145469,916.2,Revenue,1322,Haps Garage Equipment Ltd,SS7 3YT,0.00
Director Of Environment,Vehicle Fleet Management,Vehicle Fleet Management,Vehicle Replacement Parts,VEHICLE PARTS,02/07/2021,REDACTED INVOICE NUMBER,144509,214.21,Revenue,1329,Harris Commercial Repairs Limited,RM20 4AU,0.00
Director Of Environment,Vehicle Fleet Management,Vehicle Fleet Management,Vehicle Replacement Parts,VEHICLE PARTS,06/07/2021,REDACTED INVOICE NUMBER,144938,185,Revenue,1329,Harris Commercial Repairs Limited,RM20 4AU,0.00
Director Of Environment,Vehicle Fleet Management,Vehicle Fleet Management,Vehicle R&M - External,MOT - LS20 XCL,16/07/2021,REDACTED INVOICE NUMBER,145307,191,Revenue,1329,Harris Commercial Repairs Limited,RM20 4AU,0.00
Director Of Environment,Vehicle Fleet Management,Vehicle Fleet Management,Vehicle Replacement Parts,MONTHLY SERVICE - TRAILER,30/07/2021,REDACTED INVOICE NUMBER,145771,125,Revenue,1329,Harris Commercial Repairs Limited,RM20 4AU,0.00
Director Of Environment,Vehicle Fleet Management,Vehicle Fleet Management,Vehicle R&M - External,MONTHLY SERVICE,30/07/2021,REDACTED INVOICE NUMBER,145774,255,Revenue,1329,Harris Commercial Repairs Limited,RM20 4AU,0.00
Director Of Environment,Vehicle Fleet Management,Vehicle Fleet Management,Vehicle R&M - External,MOT TEST,06/07/2021,REDACTED INVOICE NUMBER,144960,213,Revenue,28491,Harris Truck And Van Ltd (Witham),RM20 4AU,0.00
Director Of Environment,Vehicle Fleet Management,Vehicle Fleet Management,Vehicle R&M - External,MOT TEST,09/07/2021,REDACTED INVOICE NUMBER,145022,213,Revenue,28491,Harris Truck And Van Ltd (Witham),RM20 4AU,0.00
Director Of Environment,Vehicle Fleet Management,Vehicle Fleet Management,Vehicle R&M - External,MOT TEST,23/07/2021,REDACTED INVOICE NUMBER,145693,191,Revenue,28491,Harris Truck And Van Ltd (Witham),RM20 4AU,0.00
Hra Expenditure,Special Services,Sheltered Welfare Services,Contracted Services,SEC GUARD - INGLETON HOUSE - CALL OUT,02/07/2021,REDACTED INVOICE NUMBER,145344,100,Revenue,1353,Headline Security Limited,CM14 4RA,0.00
Hra Expenditure,Special Services,Sheltered Welfare Services,Contracted Services,SEC GUARD - INGLETON HOUSE - CALL OUT,02/07/2021,REDACTED INVOICE NUMBER,145341,100,Revenue,1353,Headline Security Limited,CM14 4RA,0.00
Hra Expenditure,Special Services,Sheltered Welfare Services,Contracted Services,SEC GUARD - INGLETON HOUSE - CALL OUT,02/07/2021,REDACTED INVOICE NUMBER,145353,100,Revenue,1353,Headline Security Limited,CM14 4RA,0.00
Hra Expenditure,Special Services,Sheltered Welfare Services,Contracted Services,SEC GUARD - INGLETON HOUSE - CALL OUT,02/07/2021,REDACTED INVOICE NUMBER,145354,100,Revenue,1353,Headline Security Limited,CM14 4RA,0.00
Hra Expenditure,Special Services,Sheltered Welfare Services,Contracted Services,SEC GUARD - INGLETON HOUSE - CALL OUT,02/07/2021,REDACTED INVOICE NUMBER,145349,100,Revenue,1353,Headline Security Limited,CM14 4RA,0.00
Hra Expenditure,Special Services,Sheltered Welfare Services,Contracted Services,SEC GUARD. INGLETON HOUSE - W/C 17.5.21,02/07/2021,REDACTED INVOICE NUMBER,145342,"1,890.00",Revenue,1353,Headline Security Limited,CM14 4RA,0.00
Hra Expenditure,Special Services,Sheltered Welfare Services,Contracted Services,SEC GUARD - INGLETON HOUSE - W/C 3.5.21,02/07/2021,REDACTED INVOICE NUMBER,145339,1980,Revenue,1353,Headline Security Limited,CM14 4RA,0.00
Hra Expenditure,Special Services,Sheltered Welfare Services,Contracted Services,SEC GUARDS. INGLETON HOUSE - W/C 10.5.21,02/07/2021,REDACTED INVOICE NUMBER,145343,1890,Revenue,1353,Headline Security Limited,CM14 4RA,0.00
Hra Expenditure,Special Services,Sheltered Welfare Services,Contracted Services,SEC GUARDS - INGLETON HOUSE - W/C 31.5.2,02/07/2021,REDACTED INVOICE NUMBER,145337,1980,Revenue,1353,Headline Security Limited,CM14 4RA,0.00
Hra Expenditure,Special Services,Sheltered Welfare Services,Contracted Services,SEC GUARDS - INGLETON HOUSE - W/C 7.6.21,02/07/2021,REDACTED INVOICE NUMBER,145338,1890,Revenue,1353,Headline Security Limited,CM14 4RA,0.00
Hra Expenditure,Special Services,Sheltered Welfare Services,Contracted Services,SEC GUARD - INGLETON HOUSE - APR '21,06/07/2021,REDACTED INVOICE NUMBER,145499,100,Revenue,1353,Headline Security Limited,CM14 4RA,0.00
Hra Expenditure,Special Services,Sheltered Welfare Services,Contracted Services,SEC GUARD - INGLETON HOUSE - JUN '21,06/07/2021,REDACTED INVOICE NUMBER,145501,100,Revenue,1353,Headline Security Limited,CM14 4RA,0.00
Hra Expenditure,Special Services,Sheltered Welfare Services,Contracted Services,SEC GUARD - INGLETON HOUSE - MAY '21,06/07/2021,REDACTED INVOICE NUMBER,145498,100,Revenue,1353,Headline Security Limited,CM14 4RA,0.00
Hra Expenditure,Special Services,Sheltered Welfare Services,Contracted Services,SEC GUARD - INGLETON HOUSE - W/C 21.6.21,06/07/2021,REDACTED INVOICE NUMBER,145500,1890,Revenue,1353,Headline Security Limited,CM14 4RA,0.00
Hra Expenditure,Supervision And Management,Policy And Management,Contracted Services,SEC GUARD - DRAKE HOUSE - W/C 24.5.21,06/07/2021,REDACTED INVOICE NUMBER,145348,2160,Revenue,1353,Headline Security Limited,CM14 4RA,0.00
Hra Expenditure,Supervision And Management,Policy And Management,Contracted Services,SEC GUARDS - DRAKE HOUSE - W/C 21.6.21,06/07/2021,REDACTED INVOICE NUMBER,145461,1890,Revenue,1353,Headline Security Limited,CM14 4RA,0.00
Hra Expenditure,Supervision And Management,Policy And Management,Contracted Services,SEC GUARDS - DRAKE HOUSE - W/C 7.6.21,06/07/2021,REDACTED INVOICE NUMBER,145462,1890,Revenue,1353,Headline Security Limited,CM14 4RA,0.00
Hra Expenditure,Special Services,Sheltered Welfare Services,Contracted Services,SEC GUARD - INGLETON HOUSE - APR/MAY'21,09/07/2021,REDACTED INVOICE NUMBER,145631,6030,Revenue,1353,Headline Security Limited,CM14 4RA,0.00
Hra Expenditure,Special Services,Sheltered Welfare Services,Contracted Services,SEC GUARD - INGLETON HOUSE - W/C 28.6.21,09/07/2021,REDACTED INVOICE NUMBER,145667,1890,Revenue,1353,Headline Security Limited,CM14 4RA,0.00
Hra Expenditure,Special Services,Sheltered Welfare Services,Contracted Services,SEC GUARDS - INGLETON HOUSE - JUN '21,09/07/2021,REDACTED INVOICE NUMBER,145668,100,Revenue,1353,Headline Security Limited,CM14 4RA,0.00
Hra Expenditure,Special Services,Sheltered Welfare Services,Contracted Services,SEC GUARDS - INGLETON HOUSE -W/C 14.6.21,09/07/2021,REDACTED INVOICE NUMBER,145669,1890,Revenue,1353,Headline Security Limited,CM14 4RA,0.00
Hra Expenditure,Supervision And Management,Policy And Management,Contracted Services,SEC GUARD - DRAKEHOUSE - W/C 28.6.21,09/07/2021,REDACTED INVOICE NUMBER,145664,1890,Revenue,1353,Headline Security Limited,CM14 4RA,0.00
Hra Expenditure,Supervision And Management,Policy And Management,Contracted Services,SEC GUARDS - DRAKE HOUSE - W/C 14.6.21,09/07/2021,REDACTED INVOICE NUMBER,145666,1890,Revenue,1353,Headline Security Limited,CM14 4RA,0.00
Hra Expenditure,Special Services,Sheltered Welfare Services,Contracted Services,SEC GUARD. INGLETON HOUSE. JUL'21,16/07/2021,REDACTED INVOICE NUMBER,146447,100,Revenue,1353,Headline Security Limited,CM14 4RA,0.00
Hra Expenditure,Special Services,Sheltered Welfare Services,Contracted Services,SEC GUARD. INGLETON HOUSE. W/C 5.7.21,16/07/2021,REDACTED INVOICE NUMBER,146445,1890,Revenue,1353,Headline Security Limited,CM14 4RA,0.00
Hra Expenditure,Supervision And Management,Policy And Management,Contracted Services,SEC GUARDS. DRAKE HOUSE. W/C 5.7.21,16/07/2021,REDACTED INVOICE NUMBER,146263,1890,Revenue,1353,Headline Security Limited,CM14 4RA,0.00
Hra Expenditure,Repairs And Maintenance,Planned Maintenance,Contracted Services,SECURITY GUARDS,23/07/2021,REDACTED INVOICE NUMBER,146846,100,Revenue,1353,Headline Security Limited,CM14 4RA,0.00
Hra Expenditure,Special Services,Sheltered Welfare Services,Contracted Services,SEC GUARDS - INGLETON HOUSE - W/C 11.7.2,30/07/2021,REDACTED INVOICE NUMBER,146845,"1,890.00",Revenue,1353,Headline Security Limited,CM14 4RA,0.00
Hra Expenditure,Supervision And Management,Policy And Management,Contracted Services,SEC GUARDS - DRAKE HOUSE - W/C 11.7.21,30/07/2021,REDACTED INVOICE NUMBER,146847,"1,890.00",Revenue,1353,Headline Security Limited,CM14 4RA,0.00
Director Of Environment,"Communities, Health & Leisure",Sports & Social Venues,Contracted Services,PROJECT MANAGEMENT SUPPORT,06/07/2021,REDACTED INVOICE NUMBER,145902,144.36,Revenue,193676P,REDACTED PERSONAL DATA,REDACTED,0.00
Director Corporate Resources,Asset Management,Asset Management,R&M Bldgs - General,FIRE ALARM SERVICE - AUG'21 - OCT'21,30/07/2021,REDACTED INVOICE NUMBER,145781,209.5,Revenue,24088,Hewes Security,CM3 5WA,0.00
Director Of Environment,Parking,Parking Services,Equipment & Tools - R&M,CHATHAM WAY CAR PARK - ROAD MARKING,02/07/2021,REDACTED INVOICE NUMBER,145249,525,Revenue,1380,Highline Roadmarkings Limited,CM3 6HA,0.00
Director Corporate Resources,Office Accommodation,Office Accommodation,National Insurance Class1a,NATIONAL INSURANCE,02/07/2021,REDACTED INVOICE NUMBER,145657,815.99,Revenue,142712P,Hm Revenue & Customs Team (Nic&Eo),NE98 1ZZ,0.00
Director Corporate Resources,Office Accommodation,Office Accommodation,National Insurance Class1a,2020 - 21 CLASS 1 NI,02/07/2021,REDACTED INVOICE NUMBER,145710,815.99,Revenue,142712P,Hm Revenue & Customs Team (Nic&Eo),NE98 1ZZ,0.00
Director Housing & Enforcement,Homelessness,Homelessness Admin,National Insurance Class1a,NATIONAL INSURANCE,02/07/2021,REDACTED INVOICE NUMBER,145657,341.28,Revenue,142712P,Hm Revenue & Customs Team (Nic&Eo),NE98 1ZZ,0.00
Director Housing & Enforcement,Homelessness,Homelessness Admin,National Insurance Class1a,2020 - 21 CLASS 1 NI,02/07/2021,REDACTED INVOICE NUMBER,145710,341.28,Revenue,142712P,Hm Revenue & Customs Team (Nic&Eo),NE98 1ZZ,0.00
Director Of Environment,Licensing,Licensing Team & Support,National Insurance Class1a,NATIONAL INSURANCE,02/07/2021,REDACTED INVOICE NUMBER,145657,830.62,Revenue,142712P,Hm Revenue & Customs Team (Nic&Eo),NE98 1ZZ,0.00
Director Of Environment,Licensing,Licensing Team & Support,National Insurance Class1a,2020 - 21 CLASS 1 NI,02/07/2021,REDACTED INVOICE NUMBER,145710,830.62,Revenue,142712P,Hm Revenue & Customs Team (Nic&Eo),NE98 1ZZ,0.00
Director Of Environment,Waste Management,Refuse Waste,National Insurance Class1a,NATIONAL INSURANCE,02/07/2021,REDACTED INVOICE NUMBER,145657,745.48,Revenue,142712P,Hm Revenue & Customs Team (Nic&Eo),NE98 1ZZ,0.00
Director Of Environment,Waste Management,Refuse Waste,National Insurance Class1a,2020 - 21 CLASS 1 NI,02/07/2021,REDACTED INVOICE NUMBER,145710,745.48,Revenue,142712P,Hm Revenue & Customs Team (Nic&Eo),NE98 1ZZ,0.00
Hra Expenditure,Supervision And Management,Rent Collection & Recovery,Court Fees,COURT FEES,09/07/2021,REDACTED INVOICE NUMBER,145888,355,Revenue,1397,Hmcts,NP20 9FN,0.00
Director Of Law & Governance,Legal Services & Data Protect,Legal Services & Data Protect,Court Fees,COURT FEES,13/07/2021,REDACTED INVOICE NUMBER,145910,355,Revenue,1397,Hmcts,NP20 9FN,0.00
Director Of Environment,Open Spaces,Recreation Areas,Purchases - General Equipment,ISEKI REPAIRS,02/07/2021,REDACTED INVOICE NUMBER,145071,60,Revenue,1419,Hopedima Engineering Ltd,CM14 5SU,0.00
Director Of Environment,Cemeteries,Cemeteries,Purchases - General Equipment,JOHN DEERE REPAIRS,09/07/2021,REDACTED INVOICE NUMBER,145370,90,Revenue,1419,Hopedima Engineering Ltd,CM14 5SU,0.00
Director Of Environment,Grounds Maintenance,Grounds Maintenance,Vehicle R&M - External,REPAIRS,16/07/2021,REDACTED INVOICE NUMBER,145655,166.16,Revenue,1419,Hopedima Engineering Ltd,CM14 5SU,0.00
Director Of Environment,Cemeteries,Cemeteries,Purchases - General Equipment,REPAIRS,23/07/2021,REDACTED INVOICE NUMBER,146260,131.42,Revenue,1419,Hopedima Engineering Ltd,CM14 5SU,0.00
Director Of Environment,Licensing,Animal & P.Health Licensing,Kennel & Vet Fees,VET FEES,13/07/2021,REDACTED INVOICE NUMBER,145326,175.39,Revenue,1423,House & Jackson,CM4 0LE,0.00
Hra Expenditure,Supervision And Management,Policy And Management,Subscriptions,HOMESWAPPER SUBSCRIPTION - 21/22,09/07/2021,REDACTED INVOICE NUMBER,144088,5431.37,Revenue,1425,Housing Partners Limited,WR5 2ZX,0.00
Hra Expenditure,Supervision And Management,Managing Tenancies,Subscriptions,HOMESWAPPER LISTS. MAR - MAY '21,16/07/2021,REDACTED INVOICE NUMBER,145121,185.1,Revenue,1425,Housing Partners Limited,WR5 2ZX,0.00
Hra Expenditure,Supervision And Management,Policy And Management,Training Expenses,DELEGATE FEE,02/07/2021,REDACTED INVOICE NUMBER,145384,125.00,Revenue,1430,Hqn Limited,YO31 7JA,0.00
Director Of Environment,Env Health & Licensing Admin,Env Health & Licensing Admin,Agency Staff,PROJECT MANAGEMENT SUPPORT,13/07/2021,REDACTED INVOICE NUMBER,144324,6688,Revenue,28449,Hsg Facilities Management Ltd,CF24 5EL,0.00
Director Housing & Enforcement,Community Safety,Corporate Enforcement,Service Charges - Others,FPN - MAY / JUN '21,30/07/2021,REDACTED INVOICE NUMBER,145663,2650,Revenue,28449,Hsg Facilities Management Ltd,CF24 5EL,0.00
Director Of Environment,Env Health & Licensing Admin,Env Health & Licensing Admin,Agency Staff,PROJECT MANAGEMENT SUPPORT,30/07/2021,REDACTED INVOICE NUMBER,145783,7392,Revenue,28449,Hsg Facilities Management Ltd,CF24 5EL,0.00
Capex Director Digital & C.E,Equipment Purchase,Equipment Purchase,Purchases - General Equipment,PRINTER / SCANNER,23/07/2021,REDACTED INVOICE NUMBER,145931,11000,Capital,25054,Hussey Knights,CM13 1TN,0.00
Director Of Environment,"Communities, Health & Leisure",Sports & Social Venues,Purchases - General Equipment,COLLECT HTH DE-DUSTED GRANULES,02/07/2021,REDACTED INVOICE NUMBER,145063,160,Revenue,1466,Hydrospec Ltd,CM13 1TG,0.00
Capex Director Of C Resources,Asset Management,Brentwood Leisure Centre,Enhancements,IT EQUIPMENT,09/07/2021,REDACTED INVOICE NUMBER,144923,511.5,Capital,1467,Hytec Information Security Ltd,TW11 9AA,0.00
Director Digital & Customer En,Digital Servs & Transformation,Ict Services,Internet Services,MANAGED CYBER SECURITY JUL'21 - SEP'21,09/07/2021,REDACTED INVOICE NUMBER,144916,9000,Revenue,1467,Hytec Information Security Ltd,TW11 9AA,0.00
Director Of Law & Governance,Electoral Services,Register Of Electors,Purchases - General Equipment,SATCHELS,06/07/2021,REDACTED INVOICE NUMBER,145872,64.5,Revenue,21934,Icf Grimsby Ltd,DN35 8BL,0.00
Director Of Environment,Env Health Team & Support,Env Health Team & Support,Software Support & Maintenance,ANNUAL MAINTENANCE 21/22,30/07/2021,REDACTED INVOICE NUMBER,144877,1664.37,Revenue,1485,Idox Software Ltd,G1 3RS,0.00
Capex Director Of C Resources,Corporate Finance,E-Financial,Treasury - Brokerage Fees Gen,BROKERAGE FEES,30/07/2021,REDACTED INVOICE NUMBER,145686,2027.4,Capital,27847,Imperial Treasury Services Ltd,SG14 1PJ,0.00
Director Of Environment,"Communities, Health & Leisure",Health & Wellbeing,Grants - General,MENTAL HEALTH SMALL GRANT PAYMENT,27/07/2021,REDACTED INVOICE NUMBER,146475,2940,Revenue,1503,Ingatestone And Fryerning Parish Council,CM4 0BE,0.00
Director Of Environment,Open Spaces,Recreation Areas,R&M Grounds - Treework,TREE WORKS,16/07/2021,REDACTED INVOICE NUMBER,146321,2100,Revenue,1507,Ingatestone Tree Surgery,CM15 0TZ,0.00
Director Of Environment,Vehicle Fleet Management,Vehicle Fleet Management,Vehicle Replacement Parts,VEHICLE PARTS,02/07/2021,REDACTED INVOICE NUMBER,144365,131.5,Revenue,1533,Interwaste Municipal Limited,WV10 7PA,0.00
Director Of Environment,Vehicle Fleet Management,Vehicle Fleet Management,Vehicle Replacement Parts,VEHICLE PARTS,16/07/2021,REDACTED INVOICE NUMBER,145067,641.42,Revenue,1533,Interwaste Municipal Limited,WV10 7PA,0.00
Director Of Environment,Vehicle Fleet Management,Vehicle Fleet Management,Vehicle Replacement Parts,VEHICLE PARTS,16/07/2021,REDACTED INVOICE NUMBER,145066,1216.46,Revenue,1533,Interwaste Municipal Limited,WV10 7PA,0.00
Director Of Environment,Vehicle Fleet Management,Vehicle Fleet Management,Vehicle Replacement Parts,VEHICLE PARTS ,27/07/2021,REDACTED INVOICE NUMBER,145580,595.03,Revenue,1533,Interwaste Municipal Limited,WV10 7PA,0.00
Director Of Environment,Golf Course,Golf Course,R&M Grounds - General,CAP OFF IRRIGATION. HARTSWOOD GC,27/07/2021,REDACTED INVOICE NUMBER,146712,330,Revenue,23967,Irrigation And Water Ltd,NR18 0WZ,0.00
Director Corporate Resources,Asset Management,Asset Management,R&M Bldgs - General,"ASBESTOS DISPOSAL - CEMETERY, WOODMAN RD",02/07/2021,REDACTED INVOICE NUMBER,144390,420,Revenue,28545,Ismay Asbestos Services,SS14 2PS,0.00
Director Corporate Resources,Design And Print Services,Design & Print Services,Other Fees & Service,ARTWORK FOR TOWN HALL,16/07/2021,REDACTED INVOICE NUMBER,146432,132.00,Revenue,173968P,J S Creates,CM1 4EP,0.00
Hra Expenditure,Supervision And Management,Policy And Management,Other Professional Fees,A4 FULL COLOUR BOOKLET,27/07/2021,REDACTED INVOICE NUMBER,146434,276,Revenue,173968P,J S Creates,CM1 4EP,0.00
Director Of Environment,"Communities, Health & Leisure",Sports & Social Venues,Contracted Services,PROJECT MANAGEMENT SUPPORT,06/07/2021,REDACTED INVOICE NUMBER,145901,24.06,Revenue,193675P,REDACTED PERSONAL DATA,REDACTED,0.00
Director Of Planning & Economy,Planning Policy Total,Planning Policy,Software Support & Maintenance,OpusConsult 01/06/21,30/07/2021,REDACTED INVOICE NUMBER,145749,4130,Revenue,18741,Jdi Solutions Ltd,EN1 4RA,0.00
Director Of Environment,Vehicle Fleet Management,Vehicle Fleet Management,Vehicle Replacement Parts,VEHICLE PARTS,02/07/2021,REDACTED INVOICE NUMBER,145311,278.65,Revenue,25305,Jennings Engineering Supplies Ltd,CM3 6LG,0.00
Director Of Environment,Vehicle Fleet Management,Vehicle Fleet Management,Vehicle - Fuel,VEHICLE PARTS,09/07/2021,REDACTED INVOICE NUMBER,145321,288.3,Revenue,25305,Jennings Engineering Supplies Ltd,CM3 6LG,0.00
Director Of Environment,Vehicle Fleet Management,Vehicle Fleet Management,Vehicle Replacement Parts,VEHICLE PARTS,16/07/2021,REDACTED INVOICE NUMBER,145600,280.59,Revenue,25305,Jennings Engineering Supplies Ltd,CM3 6LG,0.00
Director Of Environment,Vehicle Fleet Management,Vehicle Fleet Management,Vehicle Replacement Parts,VEHICLE PARTS,20/07/2021,REDACTED INVOICE NUMBER,145320,61.1,Revenue,25305,Jennings Engineering Supplies Ltd,CM3 6LG,0.00
Director Of Environment,Vehicle Fleet Management,Vehicle Fleet Management,Vehicle Replacement Parts,VEHICLE PARTS,23/07/2021,REDACTED INVOICE NUMBER,146313,323.95,Revenue,25305,Jennings Engineering Supplies Ltd,CM3 6LG,0.00
Director Of Environment,Vehicle Fleet Management,Vehicle Fleet Management,Vehicle Replacement Parts,VEHICLE PARTS,30/07/2021,REDACTED INVOICE NUMBER,146840,252.1,Revenue,25305,Jennings Engineering Supplies Ltd,CM3 6LG,0.00
Director Of Environment,Vehicle Fleet Management,Vehicle Fleet Management,Vehicle Replacement Parts,VEHICLE PARTS,30/07/2021,REDACTED INVOICE NUMBER,146601,283.9,Revenue,25305,Jennings Engineering Supplies Ltd,CM3 6LG,0.00
Director Of Environment,"Communities, Health & Leisure",Sports & Social Venues,Contracted Services,PROJECT MANAGEMENT SUPPORT,06/07/2021,REDACTED INVOICE NUMBER,145903,73.8,Revenue,193677P,REDACTED PERSONAL DATA,REDACTED,0.00
Director Of Environment,Golf Course,Golf Course,Vehicle - Lease Rentals,DD JUL 21,02/07/2021,REDACTED INVOICE NUMBER,145658,1659.54,Revenue,23424,John Deere Financial,GL4 3GG,0.00
Director Of Planning & Economy,Land Charges,Land Charges,Vehicle - Lease Rentals,DD JUL 21,02/07/2021,REDACTED INVOICE NUMBER,145658,711.23,Revenue,23424,John Deere Financial,GL4 3GG,0.00
Capex Director Of Housing,Housing - Affordable Housing,Brookfield Project,Enhancements,SHDP PROJECT MANAGEMENT,20/07/2021,REDACTED INVOICE NUMBER,145886,4837.2,Capital,28185,Joseph Hardy & Company Ltd,CM4 9BU,0.00
Director Of Planning & Economy,Planning Development Managemt,Planning Development Managemt,Contracted Services,CONSERVATION & URBAN DESIGN - JUN'21,23/07/2021,REDACTED INVOICE NUMBER,145885,6279.5,Revenue,28185,Joseph Hardy & Company Ltd,CM4 9BU,0.00
Capex Director Of C Resources,Asset Management,Asset Management Strategy,Enhancements,GATE WORKS - HONEYPOT LANE,02/07/2021,REDACTED INVOICE NUMBER,144268,1875,Capital,1684,Just Fencing + Landscaping Services,SS12 OJX,0.00
Balance Sheet,Balance Sheet,Balance Sheet,Cis Contractors,WRONG AMOUNT OF CIS PAID,06/07/2021,REDACTED INVOICE NUMBER,145656,122,Revenue,1684,Just Fencing + Landscaping Services,SS12 OJX,0.00
Director Of Environment,Open Spaces,Buildings & Stakeholders,R&M Fix & Fit - General,INSTALL BENCHES - KGPF,23/07/2021,REDACTED INVOICE NUMBER,145380,345,Revenue,1684,Just Fencing + Landscaping Services,SS12 OJX,0.00
Balance Sheet,Balance Sheet,Balance Sheet,Cis Contractors,CIS ERROR INVOICE 2624,30/07/2021,REDACTED INVOICE NUMBER,145908,75,Revenue,1684,Just Fencing + Landscaping Services,SS12 OJX,0.00
Capex Director Of C Resources,Asset Management,Asset Management Strategy,Enhancements,FENCING - HUTTON POPLARS,30/07/2021,REDACTED INVOICE NUMBER,145457,"7,890.00",Capital,1684,Just Fencing + Landscaping Services,SS12 OJX,0.00
Director Of Environment,Parking,Parking Services,Purchases - General Equipment,WARNING SIGN,27/07/2021,REDACTED INVOICE NUMBER,145484,87.16,Revenue,1701,Kaspa Sign Products Ltd,SS15 6TR,0.00
Capex Director Of Housing,Housing - Hra,Sewerage & Water Treatment Pla,Enhancements,STRUCTURAL INSPECTION REPORTS,02/07/2021,REDACTED INVOICE NUMBER,144349,"1,300.00",Capital,27613,Keegans Ltd,SE1 4PU,0.00
Capex Director Of Housing,Housing - Hra,Structural,Enhancements,SURVEY & REPORT - MASEFIELD COURT,02/07/2021,REDACTED INVOICE NUMBER,144331,1950,Capital,27613,Keegans Ltd,SE1 4PU,0.00
Capex Director Of Housing,Housing - Hra,Structural,Enhancements,Survey and Report - MASEFIELD COURT,16/07/2021,REDACTED INVOICE NUMBER,145218,"2,995.00",Capital,27613,Keegans Ltd,SE1 4PU,0.00
Director Of Environment,Waste Management,Recycling - Dry,Purchases - General Equipment,TACHOGRAPH ANALYSIS - JUN '21,30/07/2021,REDACTED INVOICE NUMBER,145784,5.75,Revenue,25904,Keep Legal Consultancy Ltd,RM15 4YD,0.00
Director Of Environment,"Communities, Health & Leisure",Sports & Social Venues,Purchases - General Equipment,Pool/spa bacterial sample 2 sy,27/07/2021,REDACTED INVOICE NUMBER,146444,78.97,Revenue,28394,Kingfisher Environmental Service Ltd T/A Wcs,SW1X 7HN,0.00
Director Housing & Enforcement,Community Safety,Corporate Enforcement,Vehicle Hire,HIRE CHARGE - JUN / JUL '21,27/07/2021,REDACTED INVOICE NUMBER,145598,382.41,Revenue,28539,Kinto Uk,PO6 3EN,0.00
Director Housing & Enforcement,Community Safety,Corporate Enforcement,Vehicle Hire,RENTAL CHARGE. 26.5.21-25.6.21,27/07/2021,REDACTED INVOICE NUMBER,144058,382.41,Revenue,28539,Kinto Uk,PO6 3EN,0.00
Director Of Environment,Open Spaces,Recreation Areas,R&M Grounds - Play Equipment,PARTS,06/07/2021,REDACTED INVOICE NUMBER,144733,82,Revenue,1758,Kompan Ltd,MK5 8HL,0.00
Director Corporate Resources,Corporate Finance,Corporate Finance,Subscriptions,TAX HELPLINE SERVICE. JUL - SEP '21,13/07/2021,REDACTED INVOICE NUMBER,146288,500,Revenue,1759,Kpmg Llp,E14 5GL,0.00
Director Of Environment,Vehicle Fleet Management,Vehicle Fleet Management,Vehicle Replacement Parts,PARTS,16/07/2021,REDACTED INVOICE NUMBER,145670,14.28,Revenue,28034,L Bennett & Son Ltd,CM14 4LF,0.00
Director Housing & Enforcement,Homelessness,B&B Accommodation,B & B Charges (Homelessness),HOMELESSNESS PREVENTION,02/07/2021,REDACTED INVOICE NUMBER,144945,455,Revenue,24333,Lampwick Care,SS1 2AS,0.00
Director Housing & Enforcement,Homelessness,B&B Accommodation,B & B Charges (Homelessness),HOMELESSNESS PREVENTION,02/07/2021,REDACTED INVOICE NUMBER,145229,315,Revenue,24333,Lampwick Care,SS1 2AS,0.00
Director Housing & Enforcement,Homelessness,B&B Accommodation,B & B Charges (Homelessness),HOMELESSNESS PREVENTION,06/07/2021,REDACTED INVOICE NUMBER,145592,540,Revenue,24333,Lampwick Care,SS1 2AS,0.00
Director Housing & Enforcement,Homelessness,B&B Accommodation,B & B Charges (Homelessness),HOMELESSNESS PREVENTION,20/07/2021,REDACTED INVOICE NUMBER,145945,970,Revenue,24333,Lampwick Care,SS1 2AS,0.00
Director Housing & Enforcement,Homelessness,B&B Accommodation,B & B Charges (Homelessness),HOMELESSNESS PREVENTION,20/07/2021,REDACTED INVOICE NUMBER,146462,1085,Revenue,24333,Lampwick Care,SS1 2AS,0.00
Director Housing & Enforcement,Homelessness,B&B Accommodation,B & B Charges (Homelessness),HOMELESSNESS PREVENTION,27/07/2021,REDACTED INVOICE NUMBER,146747,495,Revenue,24333,Lampwick Care,SS1 2AS,0.00
Director Of Environment,Grounds Maintenance,Grounds Maintenance,Purchases - General Equipment,EQUIPMENT,20/07/2021,REDACTED INVOICE NUMBER,145244,399.72,Revenue,1780,Landscape Supply Company,ME5 7NP,0.00
Director Of Environment,Street Services,Ecc Weed Control,R&M Grounds - Weed Control,JAPANESE KNOTWEED TREATMENT,20/07/2021,REDACTED INVOICE NUMBER,145748,1620,Revenue,1782,Languard Limited,LE17 6JN,0.00
Director Of Environment,"Communities, Health & Leisure",Sports & Social Venues,Contracted Services,PROJECT MANAGEMENT SUPPORT,09/07/2021,REDACTED INVOICE NUMBER,145900,30,Revenue,193674P,REDACTED PERSONAL DATA,REDACTED,0.00
Director Of Environment,Golf Course,Golf Course,Purchases - Materials,GARDEN EQUIPMENT,16/07/2021,REDACTED INVOICE NUMBER,146476,1200,Revenue,194101P,Lawn Doctor,CM6 1NE,0.00
Director Of Law & Governance,Democratic Services & Support,Member Allowances & Expenses,Training Expenses,CHAIRING SKILLS TRAINING,09/07/2021,REDACTED INVOICE NUMBER,145891,1575,Revenue,179402P,Link Support Services Uk Ltd,CV7 7JL,0.00
Capex Director Of Environment,Corporate Services,Football Hub Development,Contracted Services,Arcitect for Football Hub Deve,27/07/2021,REDACTED INVOICE NUMBER,145650,4500,Capital,28645,Lk2 Architects Ltd,LN2 2LL,0.00
Director Of Environment,"Communities, Health & Leisure",Sports & Social Venues,Bank Charges,BRENTWOOD CENTRE - JUNE '21,13/07/2021,REDACTED INVOICE NUMBER,146411,679.72,Revenue,27902,Lloyds Bank (Pg),.,0.00
Director Of Environment,"Communities, Health & Leisure",Sports & Social Venues,Bank Charges,BRENTWOOD CENTRE - MAY '21,13/07/2021,REDACTED INVOICE NUMBER,146410,329.6,Revenue,27902,Lloyds Bank (Pg),.,0.00
Director Of Environment,"Communities, Health & Leisure",Sports & Social Venues,Bank Charges,BRENTWOOD CENTRE - MAY '21,13/07/2021,REDACTED INVOICE NUMBER,144827,145.5,Revenue,27902,Lloyds Bank (Pg),.,0.00
Director Of Environment,Golf Course,Golf Course,Bank Charges,CHIP & PIN - MAY '21,13/07/2021,REDACTED INVOICE NUMBER,144828,405.58,Revenue,27902,Lloyds Bank (Pg),.,0.00
Director Of Environment,Golf Course,Golf Course,Bank Charges,CHIP & PIN - JUNE '21,20/07/2021,REDACTED INVOICE NUMBER,146539,375.54,Revenue,27902,Lloyds Bank (Pg),.,0.00
Hra Expenditure,Supervision And Management,Managing Tenancies,Subscriptions,SUPPORT . APR - JUN '21,30/07/2021,REDACTED INVOICE NUMBER,146259,4750,Revenue,1862,Locata (Housing Services) Ltd,HA4 7LF,0.00
Director Of Law & Governance,Legal Services & Data Protect,Legal Services & Data Protect,Legal Fees,LEGAL WORKS - APR '21,02/07/2021,REDACTED INVOICE NUMBER,144526,2670.5,Revenue,22463,London Borough Of Barking And Dagenham,IG11 7LU,0.00
Hra Expenditure,Supervision And Management,Rent Collection & Recovery,Legal Fees,66 THE MEADS,02/07/2021,REDACTED INVOICE NUMBER,144527,750,Revenue,22463,London Borough Of Barking And Dagenham,IG11 7LU,0.00
Director Of Law & Governance,Legal Services & Data Protect,Legal Services & Data Protect,Legal Fees,SALARIES - APR '21,06/07/2021,REDACTED INVOICE NUMBER,144528,1000,Revenue,22463,London Borough Of Barking And Dagenham,IG11 7LU,0.00
Director Of Law & Governance,Legal Services & Data Protect,Legal Services & Data Protect,Legal Fees,SALARIES - MAY '21,06/07/2021,REDACTED INVOICE NUMBER,144928,1000,Revenue,22463,London Borough Of Barking And Dagenham,IG11 7LU,0.00
Hra Expenditure,Supervision And Management,Managing Tenancies,Decant Costs,DECANT COSTS,02/07/2021,REDACTED INVOICE NUMBER,145392,6721.61,Revenue,193594P,REDACTED PERSONAL DATA,REDACTED,0.00
Director Of Environment,Dog Control,Dog Control,Kennel & Vet Fees,KENNEL COSTS - JUN '21,20/07/2021,REDACTED INVOICE NUMBER,146467,285,Revenue,1913,M.A. Robinson,CM15 0LH,0.00
Director Of Environment,Dog Control,Dog Control,Kennel & Vet Fees,KENNELL COSTS - MAY '21,20/07/2021,REDACTED INVOICE NUMBER,146460,695,Revenue,1913,M.A. Robinson,CM15 0LH,0.00
Director Of Environment,"Communities, Health & Leisure",Sports & Social Venues,Purchases - General Equipment,SWIMMING EQUIPMENT,20/07/2021,REDACTED INVOICE NUMBER,145206,36,Revenue,28400,Mares Spa Zoggs,16035,0.00
Director Of Environment,"Communities, Health & Leisure",Sports & Social Venues,Purchases - Materials,SWIMMING EQUIPMENT,20/07/2021,REDACTED INVOICE NUMBER,145206,511,Revenue,28400,Mares Spa Zoggs,16035,0.00
Director Of Environment,Depot Management & Admin,Depot Management & Admin,Vending Machine - Purchases,BEVERAGES,16/07/2021,REDACTED INVOICE NUMBER,144869,422.72,Revenue,23836,Mars Drinks Uk Ltd,RG24 8NU,0.00
Balance Sheet,Balance Sheet,Balance Sheet,Insurance Account,VAT ON FEES,02/07/2021,REDACTED INVOICE NUMBER,144381,0,Revenue,1956,Marston Group Limited,CM16 9EB,0.00
Balance Sheet,Balance Sheet,Balance Sheet,Insurance Account,VAT ON FEES COLLECTED,16/07/2021,REDACTED INVOICE NUMBER,145689,0,Revenue,1956,Marston Group Limited,CM16 9EB,0.00
Director Corporate Resources,Asset Management,Asset Management,R&M Bldgs - General,TOILET ROLLS,16/07/2021,REDACTED INVOICE NUMBER,144800,37.52,Revenue,1967,Maskearaid Ltd,PE29 6EF,0.00
Hra Expenditure,Supervision And Management,Right To Buy Admin,Other Professional Fees,RIGHT TO BUY VALUATION,23/07/2021,REDACTED INVOICE NUMBER,146264,250,Revenue,1969,Mass & Co Ltd,CM14 4RG,0.00
Director Of Environment,Vehicle Fleet Management,Vehicle Fleet Management,Equipment - Lease Rentals,REFIT,09/07/2021,REDACTED INVOICE NUMBER,145070,110,Revenue,1971,Masternaut (Uk) Ltd,LS25 3DF,0.00
Director Of Environment,Vehicle Fleet Management,Vehicle Fleet Management,Vehicle R&M - External,REFIT,27/07/2021,REDACTED INVOICE NUMBER,145893,100,Revenue,1971,Masternaut (Uk) Ltd,LS25 3DF,0.00
Director Of Environment,Vehicle Fleet Management,Vehicle Fleet Management,Equipment - Lease Rentals,TRACK AND TRACE - JUN '21,30/07/2021,REDACTED INVOICE NUMBER,145894,993.25,Revenue,1971,Masternaut (Uk) Ltd,LS25 3DF,0.00
Director Of Environment,"Communities, Health & Leisure",Sports & Social Venues,Purchases - Materials,VACUUM CLEANER,06/07/2021,REDACTED INVOICE NUMBER,144814,192.11,Revenue,28403,Merton Group,LE3 1TH,0.00
Director Of Law & Governance,Democratic Services & Support,Civic Services & Support,Chairmans Civic Expenditure,SPECIALIST CLEANING,02/07/2021,REDACTED INVOICE NUMBER,145704,125.25,Revenue,193263P,Michaels Civic Robes,SK8 1BB,0.00
Director Of Planning & Economy,Planning Development Managemt,Planning Development Managemt,Other Fees & Service,GEARING UP FOR GROWTH PROJECT,20/07/2021,REDACTED INVOICE NUMBER,145477,18761,Revenue,28463,Mondrem Cic,CW1 6ZA,0.00
Investment Properties,Investment Properties,Investment Properties,Service Charges Voids,BAYTREE CENTRE - VOID COSTS,23/07/2021,REDACTED INVOICE NUMBER,145387,60406.34,Revenue,27363,Montagu Evans Llp,EC3A 8BE,0.00
Capex Director Of C Resources,Asset Management,Brentwood Leisure Centre,Enhancements,Anti Glare Film,06/07/2021,REDACTED INVOICE NUMBER,145377,3208.77,Capital,2313,Morgan Signs Limited,CM14 4LF,0.00
Director Of Environment,Waste Management,Recycling - Dry,Purchases - General Equipment,BIN STICKERS,06/07/2021,REDACTED INVOICE NUMBER,145471,409.5,Revenue,2313,Morgan Signs Limited,CM14 4LF,0.00
Balance Sheet,Balance Sheet,Balance Sheet,Agency - Csp,GRANT - SECURITY GATES,16/07/2021,REDACTED INVOICE NUMBER,146530,1000,Revenue,2323,Mountnessing Parish Council,CM15 0TA,0.00
Director Of Law & Governance,Legal Services & Data Protect,Legal Services & Data Protect,Legal Fees,Summary Review support - Bloc,13/07/2021,REDACTED INVOICE NUMBER,145074,1750,Revenue,2851,Mr Josef Cannon,WC1R 5JH,0.00
Director Of Environment,Vehicle Fleet Management,Vehicle Fleet Management,Vehicle R&M - External,MOT,16/07/2021,REDACTED INVOICE NUMBER,145785,45,Revenue,1382,Mr K Neame,CM15 0PJ,0.00
Hra Expenditure,Supervision And Management,Policy And Management,Under Occupation Allowance,UNDER OCCUPATION ALLOWANCE,02/07/2021,REDACTED INVOICE NUMBER,145090,185,Revenue,193249P,REDACTED PERSONAL DATA,REDACTED,0.00
Hra Expenditure,Supervision And Management,Policy And Management,Under Occupation Allowance,UNDER OCCUPATION ALLOWANCE,27/07/2021,REDACTED INVOICE NUMBER,146864,767.95,Revenue,144075P,REDACTED PERSONAL DATA,REDACTED,0.00
Hra Expenditure,Special Services,Waste Collection,Contracted Services,CLEANING,02/07/2021,REDACTED INVOICE NUMBER,144739,550,Revenue,3467,Multiclean,RM12 4QU,0.00
Director Digital & Customer En,Digital Servs & Transformation,Ict Services,Telephones - General,PHONE CHARGES,06/07/2021,REDACTED INVOICE NUMBER,144522,54.99,Revenue,4022,Multidata,SN6 8EY,0.00
Director Of Environment,Grounds Maintenance,Grounds Maintenance,Vehicle Hire,PLATFORM HIRE,16/07/2021,REDACTED INVOICE NUMBER,145458,332.2,Revenue,28062,Nationwide Platforms Limited,LE17 4PN,0.00
Director Of Environment,Open Spaces,Countryside Recreation Mtnce,R&M Grounds - Treework,TREE WORKS,06/07/2021,REDACTED INVOICE NUMBER,145386,525,Revenue,4063,Neil Carter Arblog Ltd,CM14 5NJ,0.00
Director Corporate Resources,Office Accommodation,Office Accommodation,Postage Costs Direct,LETTER OPENER SERVICE - 21/22,02/07/2021,REDACTED INVOICE NUMBER,142467,1959.35,Revenue,4064,Neopost Ltd,RM1 2AR,0.00
Director Of Environment,Vehicle Fleet Management,Vehicle Fleet Management,Vehicle - Tyres,VEHICLE REPAIRS,09/07/2021,REDACTED INVOICE NUMBER,145355,20,Revenue,4083,Nicks Tyre Services Ltd,CM15 9SB,0.00
Director Of Environment,Vehicle Fleet Management,Vehicle Fleet Management,Vehicle - Tyres,VEHICLE REPAIRS,13/07/2021,REDACTED INVOICE NUMBER,145627,55,Revenue,4083,Nicks Tyre Services Ltd,CM15 9SB,0.00
Director Of Environment,Vehicle Fleet Management,Vehicle Fleet Management,Vehicle R&M - External,VEHICLE REPAIRS,16/07/2021,REDACTED INVOICE NUMBER,145733,109.6,Revenue,4083,Nicks Tyre Services Ltd,CM15 9SB,0.00
Director Of Environment,Vehicle Fleet Management,Vehicle Fleet Management,Vehicle R&M - External,VEHICLE REPAIRS,20/07/2021,REDACTED INVOICE NUMBER,145937,115,Revenue,4083,Nicks Tyre Services Ltd,CM15 9SB,0.00
Director Of Environment,Vehicle Fleet Management,Vehicle Fleet Management,Vehicle - Tyres,VEHICLE REPAIRS,20/07/2021,REDACTED INVOICE NUMBER,146334,55,Revenue,4083,Nicks Tyre Services Ltd,CM15 9SB,0.00
Director Of Environment,Grounds Maintenance,Grounds Maintenance,Vehicle R&M - External,VEHICLE REPAIRS,23/07/2021,REDACTED INVOICE NUMBER,146287,28,Revenue,4083,Nicks Tyre Services Ltd,CM15 9SB,0.00
Balance Sheet,Balance Sheet,Balance Sheet,Agency - Csp,WHITE DIBOND SIGNS,20/07/2021,REDACTED INVOICE NUMBER,145466,361.45,Revenue,28601,Normanton Screenprint,NG10 4LU,0.00
Director Housing & Enforcement,Housing Advice & Enabling,Housing Advice,Medical Reports,MEDICAL ADVICE - HOUSING,30/07/2021,REDACTED INVOICE NUMBER,145699,248,Revenue,4103,Nowmedical,W4 5LH,0.00
Director Housing & Enforcement,Homelessness,Temp Accommodation (Own Stock),Electricity,ELECTRICITY SUPPLY,02/07/2021,REDACTED INVOICE NUMBER,144710,-79.28,Revenue,4145,Opus Energy (Corporate) Ltd,OX2 7JH,0.00
Director Housing & Enforcement,Homelessness,Temp Accommodation (Own Stock),Electricity,ELECTRICITY SUPPLY,02/07/2021,REDACTED INVOICE NUMBER,144712,-91.19,Revenue,4145,Opus Energy (Corporate) Ltd,OX2 7JH,0.00
Director Housing & Enforcement,Homelessness,Temp Accommodation (Own Stock),Electricity,ELECTRICITY SUPPLY,02/07/2021,REDACTED INVOICE NUMBER,144691,1172.49,Revenue,4145,Opus Energy (Corporate) Ltd,OX2 7JH,0.00
Hra Expenditure,"Rents, Rates & Other Charges","Rents, Rates & Other Charges",Electricity,ELECTRICITY SUPPLY,02/07/2021,REDACTED INVOICE NUMBER,143551,6.66,Revenue,4145,Opus Energy (Corporate) Ltd,OX2 7JH,0.00
Director Of Environment,"Communities, Health & Leisure",Christmas Lights & Decorations,Electricity,ELECTRICITY SUPPLY,13/07/2021,REDACTED INVOICE NUMBER,143619,831.97,Revenue,4145,Opus Energy (Corporate) Ltd,OX2 7JH,0.00
Director Of Environment,"Communities, Health & Leisure",Christmas Lights & Decorations,Electricity,ELECTRICITY SUPPLY,13/07/2021,REDACTED INVOICE NUMBER,145777,-831.97,Revenue,4145,Opus Energy (Corporate) Ltd,OX2 7JH,0.00
Director Of Environment,"Communities, Health & Leisure",Christmas Lights & Decorations,Electricity,ELECTRICITY SUPPLY,13/07/2021,REDACTED INVOICE NUMBER,141824,890.96,Revenue,4145,Opus Energy (Corporate) Ltd,OX2 7JH,0.00
Director Of Environment,"Communities, Health & Leisure",Christmas Lights & Decorations,Electricity,ELECTRICITY SUPPLY,13/07/2021,REDACTED INVOICE NUMBER,145780,-890.96,Revenue,4145,Opus Energy (Corporate) Ltd,OX2 7JH,0.00
Director Of Environment,"Communities, Health & Leisure",Christmas Lights & Decorations,Electricity,ELECTRICITY SUPPLY,13/07/2021,REDACTED INVOICE NUMBER,145775,64.4,Revenue,4145,Opus Energy (Corporate) Ltd,OX2 7JH,0.00
Director Of Environment,"Communities, Health & Leisure",Christmas Lights & Decorations,Electricity,ELECTRICITY SUPPLY,13/07/2021,REDACTED INVOICE NUMBER,144670,815.44,Revenue,4145,Opus Energy (Corporate) Ltd,OX2 7JH,0.00
Director Of Environment,"Communities, Health & Leisure",Christmas Lights & Decorations,Electricity,ELECTRICITY SUPPLY,13/07/2021,REDACTED INVOICE NUMBER,145776,-815.44,Revenue,4145,Opus Energy (Corporate) Ltd,OX2 7JH,0.00
Director Housing & Enforcement,Cctv,Community Safety - Cctv,Electricity,ELECTRICITY SUPPLY,16/07/2021,REDACTED INVOICE NUMBER,146187,67.66,Revenue,4145,Opus Energy (Corporate) Ltd,OX2 7JH,0.00
Director Of Environment,"Communities, Health & Leisure",Christmas Lights & Decorations,Electricity,ELECTRICITY SUPPLY,16/07/2021,REDACTED INVOICE NUMBER,146206,21,Revenue,4145,Opus Energy (Corporate) Ltd,OX2 7JH,0.00
Director Of Environment,Depot Management & Admin,Depot Management & Admin,Electricity,ELECTRICITY SUPPLY,16/07/2021,REDACTED INVOICE NUMBER,146175,718.74,Revenue,4145,Opus Energy (Corporate) Ltd,OX2 7JH,0.00
Director Of Environment,Parking,Parking Services,Electricity,ELECTRICITY SUPPLY,16/07/2021,REDACTED INVOICE NUMBER,146123,3178.31,Revenue,4145,Opus Energy (Corporate) Ltd,OX2 7JH,0.00
Director Of Environment,Parking,Parking Services,Electricity,ELECTRICITY SUPPLY,16/07/2021,REDACTED INVOICE NUMBER,146188,21,Revenue,4145,Opus Energy (Corporate) Ltd,OX2 7JH,0.00
Director Of Environment,Parking,Parking Services,Electricity,ELECTRICITY SUPPLY,16/07/2021,REDACTED INVOICE NUMBER,146191,21,Revenue,4145,Opus Energy (Corporate) Ltd,OX2 7JH,0.00
Director Of Environment,Street Services,Public Conveniences,Electricity,ELECTRICITY SUPPLY,16/07/2021,REDACTED INVOICE NUMBER,146171,59.77,Revenue,4145,Opus Energy (Corporate) Ltd,OX2 7JH,0.00
Director Of Environment,Street Services,Public Conveniences,Electricity,ELECTRICITY SUPPLY,16/07/2021,REDACTED INVOICE NUMBER,146153,15.82,Revenue,4145,Opus Energy (Corporate) Ltd,OX2 7JH,0.00
Hra Expenditure,Special Services,Communal Lighting,Electricity,ELECTRICITY SUPPLY,16/07/2021,REDACTED INVOICE NUMBER,146064,28.08,Revenue,4145,Opus Energy (Corporate) Ltd,OX2 7JH,0.00
Hra Expenditure,Special Services,Communal Lighting,Electricity,ELECTRICITY SUPPLY,16/07/2021,REDACTED INVOICE NUMBER,146084,56.68,Revenue,4145,Opus Energy (Corporate) Ltd,OX2 7JH,0.00
Hra Expenditure,Special Services,Communal Lighting,Electricity,ELECTRICITY SUPPLY,16/07/2021,REDACTED INVOICE NUMBER,146150,17.82,Revenue,4145,Opus Energy (Corporate) Ltd,OX2 7JH,0.00
Hra Expenditure,Special Services,Communal Lighting,Electricity,ELECTRICITY SUPPLY,16/07/2021,REDACTED INVOICE NUMBER,146101,12.93,Revenue,4145,Opus Energy (Corporate) Ltd,OX2 7JH,0.00
Hra Expenditure,Special Services,Communal Lighting,Electricity,ELECTRICITY SUPPLY,16/07/2021,REDACTED INVOICE NUMBER,146143,28.1,Revenue,4145,Opus Energy (Corporate) Ltd,OX2 7JH,0.00
Hra Expenditure,Special Services,Communal Lighting,Electricity,ELECTRICITY SUPPLY,16/07/2021,REDACTED INVOICE NUMBER,146102,50.22,Revenue,4145,Opus Energy (Corporate) Ltd,OX2 7JH,0.00
Hra Expenditure,Special Services,Communal Lighting,Electricity,ELECTRICITY SUPPLY,16/07/2021,REDACTED INVOICE NUMBER,146054,16.54,Revenue,4145,Opus Energy (Corporate) Ltd,OX2 7JH,0.00
Hra Expenditure,Special Services,Communal Lighting,Electricity,ELECTRICITY SUPPLY,16/07/2021,REDACTED INVOICE NUMBER,146148,9.83,Revenue,4145,Opus Energy (Corporate) Ltd,OX2 7JH,0.00
Hra Expenditure,Special Services,Communal Lighting,Electricity,ELECTRICITY SUPPLY,16/07/2021,REDACTED INVOICE NUMBER,146156,29.45,Revenue,4145,Opus Energy (Corporate) Ltd,OX2 7JH,0.00
Hra Expenditure,Special Services,Communal Lighting,Electricity,ELECTRICITY SUPPLY,16/07/2021,REDACTED INVOICE NUMBER,146093,19.03,Revenue,4145,Opus Energy (Corporate) Ltd,OX2 7JH,0.00
Hra Expenditure,Special Services,Communal Lighting,Electricity,ELECTRICITY SUPPLY,16/07/2021,REDACTED INVOICE NUMBER,146073,11.48,Revenue,4145,Opus Energy (Corporate) Ltd,OX2 7JH,0.00
Hra Expenditure,Special Services,Communal Lighting,Electricity,ELECTRICITY SUPPLY,16/07/2021,REDACTED INVOICE NUMBER,146092,7.4,Revenue,4145,Opus Energy (Corporate) Ltd,OX2 7JH,0.00
Hra Expenditure,Special Services,Communal Lighting,Electricity,ELECTRICITY SUPPLY,16/07/2021,REDACTED INVOICE NUMBER,146068,16.19,Revenue,4145,Opus Energy (Corporate) Ltd,OX2 7JH,0.00
Hra Expenditure,Special Services,Communal Lighting,Electricity,ELECTRICITY SUPPLY,16/07/2021,REDACTED INVOICE NUMBER,146063,82.34,Revenue,4145,Opus Energy (Corporate) Ltd,OX2 7JH,0.00
Hra Expenditure,Special Services,Communal Lighting,Electricity,ELECTRICITY SUPPLY,16/07/2021,REDACTED INVOICE NUMBER,146085,66.5,Revenue,4145,Opus Energy (Corporate) Ltd,OX2 7JH,0.00
Hra Expenditure,Special Services,Communal Lighting,Electricity,ELECTRICITY SUPPLY,16/07/2021,REDACTED INVOICE NUMBER,146162,12.29,Revenue,4145,Opus Energy (Corporate) Ltd,OX2 7JH,0.00
Hra Expenditure,Special Services,Communal Lighting,Electricity,ELECTRICITY SUPPLY,16/07/2021,REDACTED INVOICE NUMBER,146144,39.78,Revenue,4145,Opus Energy (Corporate) Ltd,OX2 7JH,0.00
Hra Expenditure,Special Services,Communal Lighting,Electricity,ELECTRICITY SUPPLY,16/07/2021,REDACTED INVOICE NUMBER,146104,13.66,Revenue,4145,Opus Energy (Corporate) Ltd,OX2 7JH,0.00
Hra Expenditure,Special Services,Communal Lighting,Electricity,ELECTRICITY SUPPLY,16/07/2021,REDACTED INVOICE NUMBER,146131,485.78,Revenue,4145,Opus Energy (Corporate) Ltd,OX2 7JH,0.00
Hra Expenditure,Special Services,Communal Lighting,Electricity,ELECTRICITY SUPPLY,16/07/2021,REDACTED INVOICE NUMBER,146103,14.41,Revenue,4145,Opus Energy (Corporate) Ltd,OX2 7JH,0.00
Hra Expenditure,Special Services,Communal Lighting,Electricity,ELECTRICITY SUPPLY,16/07/2021,REDACTED INVOICE NUMBER,146163,18.13,Revenue,4145,Opus Energy (Corporate) Ltd,OX2 7JH,0.00
Hra Expenditure,Special Services,Communal Lighting,Electricity,ELECTRICITY SUPPLY,16/07/2021,REDACTED INVOICE NUMBER,146141,12.28,Revenue,4145,Opus Energy (Corporate) Ltd,OX2 7JH,0.00
Hra Expenditure,Special Services,Communal Lighting,Electricity,ELECTRICITY SUPPLY,16/07/2021,REDACTED INVOICE NUMBER,146142,21.12,Revenue,4145,Opus Energy (Corporate) Ltd,OX2 7JH,0.00
Hra Expenditure,Special Services,Communal Lighting,Electricity,ELECTRICITY SUPPLY,16/07/2021,REDACTED INVOICE NUMBER,146052,32.62,Revenue,4145,Opus Energy (Corporate) Ltd,OX2 7JH,0.00
Hra Expenditure,Special Services,Communal Lighting,Electricity,ELECTRICITY SUPPLY,16/07/2021,REDACTED INVOICE NUMBER,146098,23.26,Revenue,4145,Opus Energy (Corporate) Ltd,OX2 7JH,0.00
Hra Expenditure,Special Services,Communal Lighting,Electricity,ELECTRICITY SUPPLY,16/07/2021,REDACTED INVOICE NUMBER,146058,15.14,Revenue,4145,Opus Energy (Corporate) Ltd,OX2 7JH,0.00
Hra Expenditure,Special Services,Communal Lighting,Electricity,ELECTRICITY SUPPLY,16/07/2021,REDACTED INVOICE NUMBER,146089,11.82,Revenue,4145,Opus Energy (Corporate) Ltd,OX2 7JH,0.00
Hra Expenditure,Special Services,Communal Lighting,Electricity,ELECTRICITY SUPPLY,16/07/2021,REDACTED INVOICE NUMBER,146067,20.68,Revenue,4145,Opus Energy (Corporate) Ltd,OX2 7JH,0.00
Hra Expenditure,Special Services,Communal Lighting,Electricity,ELECTRICITY SUPPLY,16/07/2021,REDACTED INVOICE NUMBER,146082,20.28,Revenue,4145,Opus Energy (Corporate) Ltd,OX2 7JH,0.00
Hra Expenditure,Special Services,Communal Lighting,Electricity,ELECTRICITY SUPPLY,16/07/2021,REDACTED INVOICE NUMBER,146086,19.05,Revenue,4145,Opus Energy (Corporate) Ltd,OX2 7JH,0.00
Hra Expenditure,Special Services,Communal Lighting,Electricity,ELECTRICITY SUPPLY,16/07/2021,REDACTED INVOICE NUMBER,146074,15.24,Revenue,4145,Opus Energy (Corporate) Ltd,OX2 7JH,0.00
Hra Expenditure,Special Services,Communal Lighting,Electricity,ELECTRICITY SUPPLY,16/07/2021,REDACTED INVOICE NUMBER,146087,35.59,Revenue,4145,Opus Energy (Corporate) Ltd,OX2 7JH,0.00
Hra Expenditure,Special Services,Communal Lighting,Electricity,ELECTRICITY SUPPLY,16/07/2021,REDACTED INVOICE NUMBER,146065,21.79,Revenue,4145,Opus Energy (Corporate) Ltd,OX2 7JH,0.00
Hra Expenditure,Special Services,Communal Lighting,Electricity,ELECTRICITY SUPPLY,16/07/2021,REDACTED INVOICE NUMBER,146099,23.54,Revenue,4145,Opus Energy (Corporate) Ltd,OX2 7JH,0.00
Hra Expenditure,Special Services,Communal Lighting,Electricity,ELECTRICITY SUPPLY,16/07/2021,REDACTED INVOICE NUMBER,146060,13.74,Revenue,4145,Opus Energy (Corporate) Ltd,OX2 7JH,0.00
Hra Expenditure,Special Services,Communal Lighting,Electricity,ELECTRICITY SUPPLY,16/07/2021,REDACTED INVOICE NUMBER,146088,14.06,Revenue,4145,Opus Energy (Corporate) Ltd,OX2 7JH,0.00
Hra Expenditure,Special Services,Communal Lighting,Electricity,ELECTRICITY SUPPLY,16/07/2021,REDACTED INVOICE NUMBER,146105,21.85,Revenue,4145,Opus Energy (Corporate) Ltd,OX2 7JH,0.00
Hra Expenditure,Special Services,Communal Lighting,Electricity,ELECTRICITY SUPPLY,16/07/2021,REDACTED INVOICE NUMBER,146149,11.35,Revenue,4145,Opus Energy (Corporate) Ltd,OX2 7JH,0.00
Hra Expenditure,Special Services,Communal Lighting,Electricity,ELECTRICITY SUPPLY,16/07/2021,REDACTED INVOICE NUMBER,146100,14.98,Revenue,4145,Opus Energy (Corporate) Ltd,OX2 7JH,0.00
Hra Expenditure,Special Services,Communal Lighting,Electricity,ELECTRICITY SUPPLY,16/07/2021,REDACTED INVOICE NUMBER,146090,26.47,Revenue,4145,Opus Energy (Corporate) Ltd,OX2 7JH,0.00
Hra Expenditure,Special Services,Communal Lighting,Electricity,ELECTRICITY SUPPLY,16/07/2021,REDACTED INVOICE NUMBER,146106,13.69,Revenue,4145,Opus Energy (Corporate) Ltd,OX2 7JH,0.00
Hra Expenditure,Special Services,Communal Lighting,Electricity,ELECTRICITY SUPPLY,16/07/2021,REDACTED INVOICE NUMBER,146129,10.55,Revenue,4145,Opus Energy (Corporate) Ltd,OX2 7JH,0.00
Hra Expenditure,Special Services,Communal Lighting,Electricity,ELECTRICITY SUPPLY,16/07/2021,REDACTED INVOICE NUMBER,146113,7.23,Revenue,4145,Opus Energy (Corporate) Ltd,OX2 7JH,0.00
Hra Expenditure,Special Services,Communal Lighting,Electricity,ELECTRICITY SUPPLY,16/07/2021,REDACTED INVOICE NUMBER,146107,13.26,Revenue,4145,Opus Energy (Corporate) Ltd,OX2 7JH,0.00
Hra Expenditure,Special Services,Communal Lighting,Electricity,ELECTRICITY SUPPLY,16/07/2021,REDACTED INVOICE NUMBER,146083,34.46,Revenue,4145,Opus Energy (Corporate) Ltd,OX2 7JH,0.00
Hra Expenditure,Special Services,Communal Lighting,Electricity,ELECTRICITY SUPPLY,16/07/2021,REDACTED INVOICE NUMBER,146120,16.47,Revenue,4145,Opus Energy (Corporate) Ltd,OX2 7JH,0.00
Hra Expenditure,Special Services,Communal Lighting,Electricity,ELECTRICITY SUPPLY,16/07/2021,REDACTED INVOICE NUMBER,146121,477.22,Revenue,4145,Opus Energy (Corporate) Ltd,OX2 7JH,0.00
Hra Expenditure,Special Services,Communal Lighting,Electricity,ELECTRICITY SUPPLY,16/07/2021,REDACTED INVOICE NUMBER,146091,23.1,Revenue,4145,Opus Energy (Corporate) Ltd,OX2 7JH,0.00
Hra Expenditure,Special Services,Communal Lighting,Electricity,ELECTRICITY SUPPLY,16/07/2021,REDACTED INVOICE NUMBER,146125,11.11,Revenue,4145,Opus Energy (Corporate) Ltd,OX2 7JH,0.00
Hra Expenditure,Special Services,Communal Lighting,Electricity,ELECTRICITY SUPPLY,16/07/2021,REDACTED INVOICE NUMBER,146127,445.5,Revenue,4145,Opus Energy (Corporate) Ltd,OX2 7JH,0.00
Hra Expenditure,Special Services,Communal Lighting,Electricity,ELECTRICITY SUPPLY,16/07/2021,REDACTED INVOICE NUMBER,146061,133.88,Revenue,4145,Opus Energy (Corporate) Ltd,OX2 7JH,0.00
Hra Expenditure,Special Services,Communal Lighting,Electricity,ELECTRICITY SUPPLY,16/07/2021,REDACTED INVOICE NUMBER,146128,9.43,Revenue,4145,Opus Energy (Corporate) Ltd,OX2 7JH,0.00
Hra Expenditure,Special Services,Communal Lighting,Electricity,ELECTRICITY SUPPLY,16/07/2021,REDACTED INVOICE NUMBER,146038,-108.38,Revenue,4145,Opus Energy (Corporate) Ltd,OX2 7JH,0.00
Hra Expenditure,Special Services,Communal Lighting,Electricity,ELECTRICITY SUPPLY,16/07/2021,REDACTED INVOICE NUMBER,146221,-67.77,Revenue,4145,Opus Energy (Corporate) Ltd,OX2 7JH,0.00
Hra Expenditure,Special Services,Communal Lighting,Electricity,ELECTRICITY SUPPLY,16/07/2021,REDACTED INVOICE NUMBER,146214,-311.54,Revenue,4145,Opus Energy (Corporate) Ltd,OX2 7JH,0.00
Hra Expenditure,Special Services,Communal Lighting,Electricity,ELECTRICITY SUPPLY,16/07/2021,REDACTED INVOICE NUMBER,146044,-149.68,Revenue,4145,Opus Energy (Corporate) Ltd,OX2 7JH,0.00
Hra Expenditure,Special Services,Communal Lighting,Electricity,ELECTRICITY SUPPLY,16/07/2021,REDACTED INVOICE NUMBER,146215,-142.87,Revenue,4145,Opus Energy (Corporate) Ltd,OX2 7JH,0.00
Hra Expenditure,Special Services,Communal Lighting,Electricity,ELECTRICITY SUPPLY,16/07/2021,REDACTED INVOICE NUMBER,146041,-136.4,Revenue,4145,Opus Energy (Corporate) Ltd,OX2 7JH,0.00
Hra Expenditure,Special Services,Communal Lighting,Electricity,ELECTRICITY SUPPLY,16/07/2021,REDACTED INVOICE NUMBER,146042,-159.95,Revenue,4145,Opus Energy (Corporate) Ltd,OX2 7JH,0.00
Hra Expenditure,Special Services,Communal Lighting,Electricity,ELECTRICITY SUPPLY,16/07/2021,REDACTED INVOICE NUMBER,146220,-71.03,Revenue,4145,Opus Energy (Corporate) Ltd,OX2 7JH,0.00
Hra Expenditure,Special Services,Communal Lighting,Electricity,ELECTRICITY SUPPLY,16/07/2021,REDACTED INVOICE NUMBER,146219,-68.44,Revenue,4145,Opus Energy (Corporate) Ltd,OX2 7JH,0.00
Hra Expenditure,Special Services,Communal Lighting,Electricity,ELECTRICITY SUPPLY,16/07/2021,REDACTED INVOICE NUMBER,146216,-142.88,Revenue,4145,Opus Energy (Corporate) Ltd,OX2 7JH,0.00
Hra Expenditure,Special Services,Communal Lighting,Electricity,ELECTRICITY SUPPLY,16/07/2021,REDACTED INVOICE NUMBER,146039,-141.23,Revenue,4145,Opus Energy (Corporate) Ltd,OX2 7JH,0.00
Hra Expenditure,Special Services,Communal Lighting,Electricity,ELECTRICITY SUPPLY,16/07/2021,REDACTED INVOICE NUMBER,146043,-82.45,Revenue,4145,Opus Energy (Corporate) Ltd,OX2 7JH,0.00
Hra Expenditure,Special Services,Communal Lighting,Electricity,ELECTRICITY SUPPLY,16/07/2021,REDACTED INVOICE NUMBER,146037,-86.97,Revenue,4145,Opus Energy (Corporate) Ltd,OX2 7JH,0.00
Hra Expenditure,Special Services,Communal Lighting,Electricity,ELECTRICITY SUPPLY,16/07/2021,REDACTED INVOICE NUMBER,146213,-128.29,Revenue,4145,Opus Energy (Corporate) Ltd,OX2 7JH,0.00
Hra Expenditure,Special Services,Communal Lighting,Electricity,ELECTRICITY SUPPLY,16/07/2021,REDACTED INVOICE NUMBER,146045,-132.45,Revenue,4145,Opus Energy (Corporate) Ltd,OX2 7JH,0.00
Hra Expenditure,Special Services,Communal Lighting,Electricity,ELECTRICITY SUPPLY,16/07/2021,REDACTED INVOICE NUMBER,146223,-103.72,Revenue,4145,Opus Energy (Corporate) Ltd,OX2 7JH,0.00
Hra Expenditure,Special Services,Communal Lighting,Electricity,ELECTRICITY SUPPLY,16/07/2021,REDACTED INVOICE NUMBER,146222,-78.85,Revenue,4145,Opus Energy (Corporate) Ltd,OX2 7JH,0.00
Hra Expenditure,Special Services,Communal Lighting,Electricity,ELECTRICITY SUPPLY,16/07/2021,REDACTED INVOICE NUMBER,146170,5.56,Revenue,4145,Opus Energy (Corporate) Ltd,OX2 7JH,0.00
Hra Expenditure,Special Services,Communal Lighting,Electricity,ELECTRICITY SUPPLY,16/07/2021,REDACTED INVOICE NUMBER,146159,5.56,Revenue,4145,Opus Energy (Corporate) Ltd,OX2 7JH,0.00
Hra Expenditure,Special Services,Communal Lighting,Electricity,ELECTRICITY SUPPLY,16/07/2021,REDACTED INVOICE NUMBER,146164,10.55,Revenue,4145,Opus Energy (Corporate) Ltd,OX2 7JH,0.00
Hra Expenditure,Special Services,Communal Lighting,Electricity,ELECTRICITY SUPPLY,16/07/2021,REDACTED INVOICE NUMBER,146145,6.99,Revenue,4145,Opus Energy (Corporate) Ltd,OX2 7JH,0.00
Hra Expenditure,Special Services,Communal Lighting,Electricity,ELECTRICITY SUPPLY,16/07/2021,REDACTED INVOICE NUMBER,146146,44.84,Revenue,4145,Opus Energy (Corporate) Ltd,OX2 7JH,0.00
Hra Expenditure,Special Services,Communal Lighting,Electricity,ELECTRICITY SUPPLY,16/07/2021,REDACTED INVOICE NUMBER,146140,18.62,Revenue,4145,Opus Energy (Corporate) Ltd,OX2 7JH,0.00
Hra Expenditure,Special Services,Communal Lighting,Electricity,ELECTRICITY SUPPLY,16/07/2021,REDACTED INVOICE NUMBER,146165,566.01,Revenue,4145,Opus Energy (Corporate) Ltd,OX2 7JH,0.00
Hra Expenditure,Special Services,Communal Lighting,Electricity,ELECTRICITY SUPPLY,16/07/2021,REDACTED INVOICE NUMBER,146166,270.34,Revenue,4145,Opus Energy (Corporate) Ltd,OX2 7JH,0.00
Hra Expenditure,Special Services,Communal Lighting,Electricity,ELECTRICITY SUPPLY,16/07/2021,REDACTED INVOICE NUMBER,146167,234.07,Revenue,4145,Opus Energy (Corporate) Ltd,OX2 7JH,0.00
Hra Expenditure,Special Services,Communal Lighting,Electricity,ELECTRICITY SUPPLY,16/07/2021,REDACTED INVOICE NUMBER,146147,6.98,Revenue,4145,Opus Energy (Corporate) Ltd,OX2 7JH,0.00
Hra Expenditure,Special Services,Communal Lighting,Electricity,ELECTRICITY SUPPLY,16/07/2021,REDACTED INVOICE NUMBER,146168,25.66,Revenue,4145,Opus Energy (Corporate) Ltd,OX2 7JH,0.00
Hra Expenditure,Special Services,Communal Lighting,Electricity,ELECTRICITY SUPPLY,16/07/2021,REDACTED INVOICE NUMBER,146169,5.56,Revenue,4145,Opus Energy (Corporate) Ltd,OX2 7JH,0.00
Hra Expenditure,Special Services,Communal Lighting,Electricity,ELECTRICITY SUPPLY,16/07/2021,REDACTED INVOICE NUMBER,146157,65.48,Revenue,4145,Opus Energy (Corporate) Ltd,OX2 7JH,0.00
Hra Expenditure,Special Services,Communal Lighting,Electricity,ELECTRICITY SUPPLY,16/07/2021,REDACTED INVOICE NUMBER,146158,89.38,Revenue,4145,Opus Energy (Corporate) Ltd,OX2 7JH,0.00
Hra Expenditure,Special Services,Communal Lighting,Electricity,ELECTRICITY SUPPLY,16/07/2021,REDACTED INVOICE NUMBER,146053,-55.36,Revenue,4145,Opus Energy (Corporate) Ltd,OX2 7JH,0.00
Hra Expenditure,Special Services,Communal Lighting,Electricity,ELECTRICITY SUPPLY,16/07/2021,REDACTED INVOICE NUMBER,146211,-57.3,Revenue,4145,Opus Energy (Corporate) Ltd,OX2 7JH,0.00
Hra Expenditure,Special Services,Communal Lighting,Electricity,ELECTRICITY SUPPLY,16/07/2021,REDACTED INVOICE NUMBER,146059,-48.26,Revenue,4145,Opus Energy (Corporate) Ltd,OX2 7JH,0.00
Hra Expenditure,Special Services,Communal Lighting,Electricity,ELECTRICITY SUPPLY,16/07/2021,REDACTED INVOICE NUMBER,146048,-68.76,Revenue,4145,Opus Energy (Corporate) Ltd,OX2 7JH,0.00
Hra Expenditure,Special Services,Communal Lighting,Electricity,ELECTRICITY SUPPLY,16/07/2021,REDACTED INVOICE NUMBER,146208,-67.83,Revenue,4145,Opus Energy (Corporate) Ltd,OX2 7JH,0.00
Hra Expenditure,Special Services,Communal Lighting,Electricity,ELECTRICITY SUPPLY,16/07/2021,REDACTED INVOICE NUMBER,146050,-60.78,Revenue,4145,Opus Energy (Corporate) Ltd,OX2 7JH,0.00
Hra Expenditure,Special Services,Communal Lighting,Electricity,ELECTRICITY SUPPLY,16/07/2021,REDACTED INVOICE NUMBER,146210,-60.22,Revenue,4145,Opus Energy (Corporate) Ltd,OX2 7JH,0.00
Hra Expenditure,Special Services,Communal Lighting,Electricity,ELECTRICITY SUPPLY,16/07/2021,REDACTED INVOICE NUMBER,146049,-66.93,Revenue,4145,Opus Energy (Corporate) Ltd,OX2 7JH,0.00
Hra Expenditure,Special Services,Communal Lighting,Electricity,ELECTRICITY SUPPLY,16/07/2021,REDACTED INVOICE NUMBER,146209,-69.92,Revenue,4145,Opus Energy (Corporate) Ltd,OX2 7JH,0.00
Hra Expenditure,Special Services,Communal Lighting,Electricity,ELECTRICITY SUPPLY,16/07/2021,REDACTED INVOICE NUMBER,146057,-48.6,Revenue,4145,Opus Energy (Corporate) Ltd,OX2 7JH,0.00
Hra Expenditure,Special Services,Communal Lighting,Electricity,ELECTRICITY SUPPLY,16/07/2021,REDACTED INVOICE NUMBER,146056,-47.02,Revenue,4145,Opus Energy (Corporate) Ltd,OX2 7JH,0.00
Hra Expenditure,Special Services,Communal Lighting,Electricity,ELECTRICITY SUPPLY,16/07/2021,REDACTED INVOICE NUMBER,146051,-61.1,Revenue,4145,Opus Energy (Corporate) Ltd,OX2 7JH,0.00
Hra Expenditure,Special Services,Communal Lighting,Electricity,ELECTRICITY SUPPLY,16/07/2021,REDACTED INVOICE NUMBER,146218,-63.01,Revenue,4145,Opus Energy (Corporate) Ltd,OX2 7JH,0.00
Hra Expenditure,Special Services,Communal Lighting,Electricity,ELECTRICITY SUPPLY,16/07/2021,REDACTED INVOICE NUMBER,146055,-51.93,Revenue,4145,Opus Energy (Corporate) Ltd,OX2 7JH,0.00
Hra Expenditure,Special Services,Communal Lighting,Electricity,ELECTRICITY SUPPLY,16/07/2021,REDACTED INVOICE NUMBER,146212,-52.56,Revenue,4145,Opus Energy (Corporate) Ltd,OX2 7JH,0.00
Hra Expenditure,Special Services,Communal Lighting,Electricity,ELECTRICITY SUPPLY,16/07/2021,REDACTED INVOICE NUMBER,146047,-65.02,Revenue,4145,Opus Energy (Corporate) Ltd,OX2 7JH,0.00
Hra Expenditure,Special Services,Communal Lighting,Electricity,ELECTRICITY SUPPLY,16/07/2021,REDACTED INVOICE NUMBER,146118,-60.36,Revenue,4145,Opus Energy (Corporate) Ltd,OX2 7JH,0.00
Hra Expenditure,Special Services,Communal Lighting,Electricity,ELECTRICITY SUPPLY,16/07/2021,REDACTED INVOICE NUMBER,146066,-58.02,Revenue,4145,Opus Energy (Corporate) Ltd,OX2 7JH,0.00
Hra Expenditure,Special Services,Communal Lighting,Electricity,ELECTRICITY SUPPLY,16/07/2021,REDACTED INVOICE NUMBER,146046,-389.69,Revenue,4145,Opus Energy (Corporate) Ltd,OX2 7JH,0.00
Hra Expenditure,Special Services,Communal Lighting,Electricity,ELECTRICITY SUPPLY,16/07/2021,REDACTED INVOICE NUMBER,146205,772.64,Revenue,4145,Opus Energy (Corporate) Ltd,OX2 7JH,0.00
Hra Expenditure,Special Services,Communal Lighting,Electricity,ELECTRICITY SUPPLY,16/07/2021,REDACTED INVOICE NUMBER,146062,-51.36,Revenue,4145,Opus Energy (Corporate) Ltd,OX2 7JH,0.00
Hra Expenditure,Special Services,Communal Lighting,Electricity,ELECTRICITY SUPPLY,16/07/2021,REDACTED INVOICE NUMBER,146069,17.51,Revenue,4145,Opus Energy (Corporate) Ltd,OX2 7JH,0.00
Hra Expenditure,Special Services,Communal Lighting,Electricity,ELECTRICITY SUPPLY,16/07/2021,REDACTED INVOICE NUMBER,146173,231.52,Revenue,4145,Opus Energy (Corporate) Ltd,OX2 7JH,0.00
Hra Expenditure,Special Services,Communal Lighting,Electricity,ELECTRICITY SUPPLY,16/07/2021,REDACTED INVOICE NUMBER,146071,57.11,Revenue,4145,Opus Energy (Corporate) Ltd,OX2 7JH,0.00
Hra Expenditure,Special Services,Communal Lighting,Electricity,ELECTRICITY SUPPLY,16/07/2021,REDACTED INVOICE NUMBER,146072,22.04,Revenue,4145,Opus Energy (Corporate) Ltd,OX2 7JH,0.00
Hra Expenditure,Special Services,Communal Lighting,Electricity,ELECTRICITY SUPPLY,16/07/2021,REDACTED INVOICE NUMBER,146174,225.58,Revenue,4145,Opus Energy (Corporate) Ltd,OX2 7JH,0.00
Hra Expenditure,Special Services,Communal Lighting,Electricity,ELECTRICITY SUPPLY,16/07/2021,REDACTED INVOICE NUMBER,146075,108.35,Revenue,4145,Opus Energy (Corporate) Ltd,OX2 7JH,0.00
Hra Expenditure,Special Services,Communal Lighting,Electricity,ELECTRICITY SUPPLY,16/07/2021,REDACTED INVOICE NUMBER,146076,20.7,Revenue,4145,Opus Energy (Corporate) Ltd,OX2 7JH,0.00
Hra Expenditure,Special Services,Communal Lighting,Electricity,ELECTRICITY SUPPLY,16/07/2021,REDACTED INVOICE NUMBER,146077,22.49,Revenue,4145,Opus Energy (Corporate) Ltd,OX2 7JH,0.00
Hra Expenditure,Special Services,Communal Lighting,Electricity,ELECTRICITY SUPPLY,16/07/2021,REDACTED INVOICE NUMBER,146078,24.62,Revenue,4145,Opus Energy (Corporate) Ltd,OX2 7JH,0.00
Hra Expenditure,Special Services,Communal Lighting,Electricity,ELECTRICITY SUPPLY,16/07/2021,REDACTED INVOICE NUMBER,146079,49.07,Revenue,4145,Opus Energy (Corporate) Ltd,OX2 7JH,0.00
Hra Expenditure,Special Services,Communal Lighting,Electricity,ELECTRICITY SUPPLY,16/07/2021,REDACTED INVOICE NUMBER,146080,14.2,Revenue,4145,Opus Energy (Corporate) Ltd,OX2 7JH,0.00
Hra Expenditure,Special Services,Communal Lighting,Electricity,ELECTRICITY SUPPLY,16/07/2021,REDACTED INVOICE NUMBER,146081,11.44,Revenue,4145,Opus Energy (Corporate) Ltd,OX2 7JH,0.00
Hra Expenditure,Special Services,Communal Lighting,Electricity,ELECTRICITY SUPPLY,16/07/2021,REDACTED INVOICE NUMBER,146095,18.06,Revenue,4145,Opus Energy (Corporate) Ltd,OX2 7JH,0.00
Hra Expenditure,Special Services,Communal Lighting,Electricity,ELECTRICITY SUPPLY,16/07/2021,REDACTED INVOICE NUMBER,146096,13.57,Revenue,4145,Opus Energy (Corporate) Ltd,OX2 7JH,0.00
Hra Expenditure,Special Services,Communal Lighting,Electricity,ELECTRICITY SUPPLY,16/07/2021,REDACTED INVOICE NUMBER,146189,42.93,Revenue,4145,Opus Energy (Corporate) Ltd,OX2 7JH,0.00
Hra Expenditure,Special Services,Communal Lighting,Electricity,ELECTRICITY SUPPLY,16/07/2021,REDACTED INVOICE NUMBER,146136,93.76,Revenue,4145,Opus Energy (Corporate) Ltd,OX2 7JH,0.00
Hra Expenditure,Special Services,Communal Lighting,Electricity,ELECTRICITY SUPPLY,16/07/2021,REDACTED INVOICE NUMBER,146176,171.32,Revenue,4145,Opus Energy (Corporate) Ltd,OX2 7JH,0.00
Hra Expenditure,Special Services,Communal Lighting,Electricity,ELECTRICITY SUPPLY,16/07/2021,REDACTED INVOICE NUMBER,146198,50.93,Revenue,4145,Opus Energy (Corporate) Ltd,OX2 7JH,0.00
Hra Expenditure,Special Services,Communal Lighting,Electricity,ELECTRICITY SUPPLY,16/07/2021,REDACTED INVOICE NUMBER,146161,28.16,Revenue,4145,Opus Energy (Corporate) Ltd,OX2 7JH,0.00
Hra Expenditure,Special Services,Communal Lighting,Electricity,ELECTRICITY SUPPLY,16/07/2021,REDACTED INVOICE NUMBER,146108,19.06,Revenue,4145,Opus Energy (Corporate) Ltd,OX2 7JH,0.00
Hra Expenditure,Special Services,Other Special Services,Electricity,ELECTRICITY SUPPLY,16/07/2021,REDACTED INVOICE NUMBER,146122,37.36,Revenue,4145,Opus Energy (Corporate) Ltd,OX2 7JH,0.00
Hra Expenditure,Special Services,Other Special Services,Electricity,ELECTRICITY SUPPLY,16/07/2021,REDACTED INVOICE NUMBER,146172,87.46,Revenue,4145,Opus Energy (Corporate) Ltd,OX2 7JH,0.00
Hra Expenditure,Special Services,Sheltered Welfare Services,Electricity,ELECTRICITY SUPPLY,16/07/2021,REDACTED INVOICE NUMBER,146185,9.53,Revenue,4145,Opus Energy (Corporate) Ltd,OX2 7JH,0.00
Hra Expenditure,Special Services,Sheltered Welfare Services,Electricity,ELECTRICITY SUPPLY,16/07/2021,REDACTED INVOICE NUMBER,146184,8.4,Revenue,4145,Opus Energy (Corporate) Ltd,OX2 7JH,0.00
Hra Expenditure,Special Services,Sheltered Welfare Services,Electricity,ELECTRICITY SUPPLY,16/07/2021,REDACTED INVOICE NUMBER,146192,14.95,Revenue,4145,Opus Energy (Corporate) Ltd,OX2 7JH,0.00
Director Corporate Resources,Asset Management,Asset Management,Electricity,ELECTRICITY SUPPLY,27/07/2021,REDACTED INVOICE NUMBER,146137,41.62,Revenue,4145,Opus Energy (Corporate) Ltd,OX2 7JH,0.00
Director Corporate Resources,Asset Management,Asset Management,Electricity,ELECTRICITY SUPPLY,27/07/2021,REDACTED INVOICE NUMBER,146178,296.86,Revenue,4145,Opus Energy (Corporate) Ltd,OX2 7JH,0.00
Director Corporate Resources,Asset Management,Asset Management,Electricity,ELECTRICITY SUPPLY,27/07/2021,REDACTED INVOICE NUMBER,145951,-250.76,Revenue,4145,Opus Energy (Corporate) Ltd,OX2 7JH,0.00
Director Corporate Resources,Asset Management,Asset Management,Electricity,ELECTRICITY SUPPLY,27/07/2021,REDACTED INVOICE NUMBER,146015,-17239.16,Revenue,4145,Opus Energy (Corporate) Ltd,OX2 7JH,0.00
Director Corporate Resources,Asset Management,Asset Management,Electricity,ELECTRICITY SUPPLY,27/07/2021,REDACTED INVOICE NUMBER,146182,22099.08,Revenue,4145,Opus Energy (Corporate) Ltd,OX2 7JH,0.00
Director Corporate Resources,Asset Management,Asset Management,Electricity,ELECTRICITY SUPPLY,27/07/2021,REDACTED INVOICE NUMBER,146183,"3,691.51",Revenue,4145,Opus Energy (Corporate) Ltd,OX2 7JH,0.00
Director Corporate Resources,Asset Management,Asset Management,Electricity,ELECTRICITY SUPPLY,27/07/2021,REDACTED INVOICE NUMBER,146603,-3691.51,Revenue,4145,Opus Energy (Corporate) Ltd,OX2 7JH,0.00
Director Corporate Resources,Asset Management,Asset Management,Electricity,ELECTRICITY SUPPLY,27/07/2021,REDACTED INVOICE NUMBER,146609,3691.51,Revenue,4145,Opus Energy (Corporate) Ltd,OX2 7JH,0.00
Director Corporate Resources,Asset Management,Asset Management,Electricity,ELECTRICITY SUPPLY,27/07/2021,REDACTED INVOICE NUMBER,146016,-4092.63,Revenue,4145,Opus Energy (Corporate) Ltd,OX2 7JH,0.00
Director Corporate Resources,Asset Management,Asset Management,Electricity,ELECTRICITY SUPPLY,27/07/2021,REDACTED INVOICE NUMBER,146181,327.3,Revenue,4145,Opus Energy (Corporate) Ltd,OX2 7JH,0.00
Director Corporate Resources,Asset Management,Asset Management,Electricity,ELECTRICITY SUPPLY,27/07/2021,REDACTED INVOICE NUMBER,146013,-459.05,Revenue,4145,Opus Energy (Corporate) Ltd,OX2 7JH,0.00
Director Corporate Resources,Asset Management,Asset Management,Electricity,ELECTRICITY SUPPLY,27/07/2021,REDACTED INVOICE NUMBER,146012,-229.38,Revenue,4145,Opus Energy (Corporate) Ltd,OX2 7JH,0.00
Director Corporate Resources,Asset Management,Asset Management,Electricity,ELECTRICITY SUPPLY,27/07/2021,REDACTED INVOICE NUMBER,146180,433.91,Revenue,4145,Opus Energy (Corporate) Ltd,OX2 7JH,0.00
Director Corporate Resources,Asset Management,Asset Management,Electricity,ELECTRICITY SUPPLY,27/07/2021,REDACTED INVOICE NUMBER,146011,-370.45,Revenue,4145,Opus Energy (Corporate) Ltd,OX2 7JH,0.00
Director Corporate Resources,Asset Management,Asset Management,Electricity,ELECTRICITY SUPPLY,27/07/2021,REDACTED INVOICE NUMBER,146010,-41.67,Revenue,4145,Opus Energy (Corporate) Ltd,OX2 7JH,0.00
Director Corporate Resources,Asset Management,Asset Management,Electricity,ELECTRICITY SUPPLY,27/07/2021,REDACTED INVOICE NUMBER,146179,274.01,Revenue,4145,Opus Energy (Corporate) Ltd,OX2 7JH,0.00
Director Corporate Resources,Asset Management,Asset Management,Electricity,ELECTRICITY SUPPLY,27/07/2021,REDACTED INVOICE NUMBER,145952,-383.92,Revenue,4145,Opus Energy (Corporate) Ltd,OX2 7JH,0.00
Director Corporate Resources,Asset Management,Asset Management,Electricity,ELECTRICITY SUPPLY,27/07/2021,REDACTED INVOICE NUMBER,146186,26.69,Revenue,4145,Opus Energy (Corporate) Ltd,OX2 7JH,0.00
Director Corporate Resources,Asset Management,Asset Management,Electricity,ELECTRICITY SUPPLY,27/07/2021,REDACTED INVOICE NUMBER,146177,34.66,Revenue,4145,Opus Energy (Corporate) Ltd,OX2 7JH,0.00
Director Corporate Resources,Asset Management,Asset Management,Electricity,ELECTRICITY SUPPLY,27/07/2021,REDACTED INVOICE NUMBER,146132,25.8,Revenue,4145,Opus Energy (Corporate) Ltd,OX2 7JH,0.00
Director Corporate Resources,Office Accommodation,Office Facilities Management,Electricity,ELECTRICITY SUPPLY,27/07/2021,REDACTED INVOICE NUMBER,146195,25.3,Revenue,4145,Opus Energy (Corporate) Ltd,OX2 7JH,0.00
Director Corporate Resources,Office Accommodation,Office Facilities Management,Electricity,ELECTRICITY SUPPLY,27/07/2021,REDACTED INVOICE NUMBER,146194,45.09,Revenue,4145,Opus Energy (Corporate) Ltd,OX2 7JH,0.00
Director Housing & Enforcement,Homelessness,Temp Accommodation (Own Stock),Electricity,ELECTRICITY SUPPLY,27/07/2021,REDACTED INVOICE NUMBER,146193,97.72,Revenue,4145,Opus Energy (Corporate) Ltd,OX2 7JH,0.00
Director Of Environment,Cemeteries,Cemeteries,Electricity,ELECTRICITY SUPPLY,27/07/2021,REDACTED INVOICE NUMBER,146116,59.2,Revenue,4145,Opus Energy (Corporate) Ltd,OX2 7JH,0.00
Director Of Environment,Cemeteries,Cemeteries,Electricity,ELECTRICITY SUPPLY,27/07/2021,REDACTED INVOICE NUMBER,146117,75.83,Revenue,4145,Opus Energy (Corporate) Ltd,OX2 7JH,0.00
Director Of Environment,Cemeteries,Cemeteries,Electricity,ELECTRICITY SUPPLY,27/07/2021,REDACTED INVOICE NUMBER,146028,-7.64,Revenue,4145,Opus Energy (Corporate) Ltd,OX2 7JH,0.00
Director Of Environment,Cemeteries,Cemeteries,Electricity,ELECTRICITY SUPPLY,27/07/2021,REDACTED INVOICE NUMBER,146032,-7.89,Revenue,4145,Opus Energy (Corporate) Ltd,OX2 7JH,0.00
Director Of Environment,Cemeteries,Cemeteries,Electricity,ELECTRICITY SUPPLY,27/07/2021,REDACTED INVOICE NUMBER,146030,-7.14,Revenue,4145,Opus Energy (Corporate) Ltd,OX2 7JH,0.00
Director Of Environment,Cemeteries,Cemeteries,Electricity,ELECTRICITY SUPPLY,27/07/2021,REDACTED INVOICE NUMBER,146031,-7.89,Revenue,4145,Opus Energy (Corporate) Ltd,OX2 7JH,0.00
Director Of Environment,Cemeteries,Cemeteries,Electricity,ELECTRICITY SUPPLY,27/07/2021,REDACTED INVOICE NUMBER,146029,-7.89,Revenue,4145,Opus Energy (Corporate) Ltd,OX2 7JH,0.00
Director Of Environment,Cemeteries,Cemeteries,Electricity,ELECTRICITY SUPPLY,27/07/2021,REDACTED INVOICE NUMBER,146027,-7.89,Revenue,4145,Opus Energy (Corporate) Ltd,OX2 7JH,0.00
Director Of Environment,Cemeteries,Cemeteries,Electricity,ELECTRICITY SUPPLY,27/07/2021,REDACTED INVOICE NUMBER,146033,-7.64,Revenue,4145,Opus Energy (Corporate) Ltd,OX2 7JH,0.00
Director Of Environment,Cemeteries,Cemeteries,Electricity,ELECTRICITY SUPPLY,27/07/2021,REDACTED INVOICE NUMBER,146034,-7.89,Revenue,4145,Opus Energy (Corporate) Ltd,OX2 7JH,0.00
Director Of Environment,Cemeteries,Cemeteries,Electricity,ELECTRICITY SUPPLY,27/07/2021,REDACTED INVOICE NUMBER,146035,-7.84,Revenue,4145,Opus Energy (Corporate) Ltd,OX2 7JH,0.00
Director Of Environment,Cemeteries,Cemeteries,Electricity,ELECTRICITY SUPPLY,27/07/2021,REDACTED INVOICE NUMBER,146119,34.14,Revenue,4145,Opus Energy (Corporate) Ltd,OX2 7JH,0.00
Director Of Environment,Golf Course,Golf Course,Electricity,ELECTRICITY SUPPLY,27/07/2021,REDACTED INVOICE NUMBER,146190,4.73,Revenue,4145,Opus Energy (Corporate) Ltd,OX2 7JH,0.00
Director Of Environment,Open Spaces,Buildings & Stakeholders,Electricity,ELECTRICITY SUPPLY,27/07/2021,REDACTED INVOICE NUMBER,146110,26.22,Revenue,4145,Opus Energy (Corporate) Ltd,OX2 7JH,0.00
Director Of Environment,Open Spaces,Buildings & Stakeholders,Electricity,ELECTRICITY SUPPLY,27/07/2021,REDACTED INVOICE NUMBER,146135,1833.87,Revenue,4145,Opus Energy (Corporate) Ltd,OX2 7JH,0.00
Director Of Environment,Open Spaces,Buildings & Stakeholders,Electricity,ELECTRICITY SUPPLY,27/07/2021,REDACTED INVOICE NUMBER,146207,7.36,Revenue,4145,Opus Energy (Corporate) Ltd,OX2 7JH,0.00
Director Of Environment,Open Spaces,Buildings & Stakeholders,Electricity,ELECTRICITY SUPPLY,27/07/2021,REDACTED INVOICE NUMBER,146154,9.14,Revenue,4145,Opus Energy (Corporate) Ltd,OX2 7JH,0.00
Hra Expenditure,Repairs And Maintenance,Responsive Void Repairs,Electricity,ELECTRICITY SUPPLY,27/07/2021,REDACTED INVOICE NUMBER,146196,5.54,Revenue,4145,Opus Energy (Corporate) Ltd,OX2 7JH,0.00
Hra Expenditure,Special Services,Communal Lighting,Electricity,ELECTRICITY SUPPLY,27/07/2021,REDACTED INVOICE NUMBER,146018,-14.17,Revenue,4145,Opus Energy (Corporate) Ltd,OX2 7JH,0.00
Hra Expenditure,Special Services,Communal Lighting,Electricity,ELECTRICITY SUPPLY,27/07/2021,REDACTED INVOICE NUMBER,146020,-14.77,Revenue,4145,Opus Energy (Corporate) Ltd,OX2 7JH,0.00
Hra Expenditure,Special Services,Communal Lighting,Electricity,ELECTRICITY SUPPLY,27/07/2021,REDACTED INVOICE NUMBER,146019,-15.72,Revenue,4145,Opus Energy (Corporate) Ltd,OX2 7JH,0.00
Hra Expenditure,Special Services,Communal Lighting,Electricity,ELECTRICITY SUPPLY,27/07/2021,REDACTED INVOICE NUMBER,146112,6.67,Revenue,4145,Opus Energy (Corporate) Ltd,OX2 7JH,0.00
Hra Expenditure,Special Services,Communal Lighting,Electricity,ELECTRICITY SUPPLY,27/07/2021,REDACTED INVOICE NUMBER,146111,4.46,Revenue,4145,Opus Energy (Corporate) Ltd,OX2 7JH,0.00
Hra Expenditure,Special Services,Communal Lighting,Electricity,ELECTRICITY SUPPLY,27/07/2021,REDACTED INVOICE NUMBER,146022,-15.16,Revenue,4145,Opus Energy (Corporate) Ltd,OX2 7JH,0.00
Hra Expenditure,Special Services,Communal Lighting,Electricity,ELECTRICITY SUPPLY,27/07/2021,REDACTED INVOICE NUMBER,146025,-15.88,Revenue,4145,Opus Energy (Corporate) Ltd,OX2 7JH,0.00
Hra Expenditure,Special Services,Communal Lighting,Electricity,ELECTRICITY SUPPLY,27/07/2021,REDACTED INVOICE NUMBER,146026,-18.2,Revenue,4145,Opus Energy (Corporate) Ltd,OX2 7JH,0.00
Hra Expenditure,Special Services,Communal Lighting,Electricity,ELECTRICITY SUPPLY,27/07/2021,REDACTED INVOICE NUMBER,146023,-16.83,Revenue,4145,Opus Energy (Corporate) Ltd,OX2 7JH,0.00
Hra Expenditure,Special Services,Communal Lighting,Electricity,ELECTRICITY SUPPLY,27/07/2021,REDACTED INVOICE NUMBER,146021,-13.79,Revenue,4145,Opus Energy (Corporate) Ltd,OX2 7JH,0.00
Hra Expenditure,Special Services,Communal Lighting,Electricity,ELECTRICITY SUPPLY,27/07/2021,REDACTED INVOICE NUMBER,146151,19.82,Revenue,4145,Opus Energy (Corporate) Ltd,OX2 7JH,0.00
Hra Expenditure,Special Services,Communal Lighting,Electricity,ELECTRICITY SUPPLY,27/07/2021,REDACTED INVOICE NUMBER,146152,11.32,Revenue,4145,Opus Energy (Corporate) Ltd,OX2 7JH,0.00
Hra Expenditure,Special Services,Communal Lighting,Electricity,ELECTRICITY SUPPLY,27/07/2021,REDACTED INVOICE NUMBER,146070,7.93,Revenue,4145,Opus Energy (Corporate) Ltd,OX2 7JH,0.00
Hra Expenditure,Special Services,Communal Lighting,Electricity,ELECTRICITY SUPPLY,27/07/2021,REDACTED INVOICE NUMBER,146115,277.01,Revenue,4145,Opus Energy (Corporate) Ltd,OX2 7JH,0.00
Hra Expenditure,Special Services,Communal Lighting,Electricity,ELECTRICITY SUPPLY,27/07/2021,REDACTED INVOICE NUMBER,146017,-13.35,Revenue,4145,Opus Energy (Corporate) Ltd,OX2 7JH,0.00
Hra Expenditure,Special Services,Communal Lighting,Electricity,ELECTRICITY SUPPLY,27/07/2021,REDACTED INVOICE NUMBER,146124,7.91,Revenue,4145,Opus Energy (Corporate) Ltd,OX2 7JH,0.00
Hra Expenditure,Special Services,Communal Lighting,Electricity,ELECTRICITY SUPPLY,27/07/2021,REDACTED INVOICE NUMBER,146217,-99.37,Revenue,4145,Opus Energy (Corporate) Ltd,OX2 7JH,0.00
Hra Expenditure,Special Services,Communal Lighting,Electricity,ELECTRICITY SUPPLY,27/07/2021,REDACTED INVOICE NUMBER,146094,"1,497.60",Revenue,4145,Opus Energy (Corporate) Ltd,OX2 7JH,0.00
Hra Expenditure,Special Services,Communal Lighting,Electricity,ELECTRICITY SUPPLY,27/07/2021,REDACTED INVOICE NUMBER,146130,70.43,Revenue,4145,Opus Energy (Corporate) Ltd,OX2 7JH,0.00
Hra Expenditure,Special Services,Communal Lighting,Electricity,ELECTRICITY SUPPLY,27/07/2021,REDACTED INVOICE NUMBER,146126,22.25,Revenue,4145,Opus Energy (Corporate) Ltd,OX2 7JH,0.00
Hra Expenditure,Special Services,Communal Lighting,Electricity,ELECTRICITY SUPPLY,27/07/2021,REDACTED INVOICE NUMBER,146133,96.4,Revenue,4145,Opus Energy (Corporate) Ltd,OX2 7JH,0.00
Hra Expenditure,Special Services,Communal Lighting,Electricity,ELECTRICITY SUPPLY,27/07/2021,REDACTED INVOICE NUMBER,146134,22.8,Revenue,4145,Opus Energy (Corporate) Ltd,OX2 7JH,0.00
Hra Expenditure,Special Services,Communal Lighting,Electricity,ELECTRICITY SUPPLY,44404,REDACTED INVOICE NUMBER,146138,67.37,Revenue,4145,Opus Energy (Corporate) Ltd,OX2 7JH,0.00
Hra Expenditure,Special Services,Communal Lighting,Electricity,ELECTRICITY SUPPLY,44404,REDACTED INVOICE NUMBER,146139,546.65,Revenue,4145,Opus Energy (Corporate) Ltd,OX2 7JH,0.00
Hra Expenditure,Special Services,Communal Lighting,Electricity,ELECTRICITY SUPPLY,44404,REDACTED INVOICE NUMBER,146155,20.95,Revenue,4145,Opus Energy (Corporate) Ltd,OX2 7JH,0.00
Hra Expenditure,Special Services,Communal Lighting,Electricity,ELECTRICITY SUPPLY,44404,REDACTED INVOICE NUMBER,146114,6.51,Revenue,4145,Opus Energy (Corporate) Ltd,OX2 7JH,0.00
Hra Expenditure,Special Services,Communal Lighting,Electricity,ELECTRICITY SUPPLY,44404,REDACTED INVOICE NUMBER,146160,58.61,Revenue,4145,Opus Energy (Corporate) Ltd,OX2 7JH,0.00
Hra Expenditure,Special Services,Communal Lighting,Electricity,ELECTRICITY SUPPLY,44404,REDACTED INVOICE NUMBER,146036,-262.14,Revenue,4145,Opus Energy (Corporate) Ltd,OX2 7JH,0.00
Hra Expenditure,Special Services,Communal Lighting,Electricity,ELECTRICITY SUPPLY,44404,REDACTED INVOICE NUMBER,146097,33.78,Revenue,4145,Opus Energy (Corporate) Ltd,OX2 7JH,0.00
Director Of Environment,"Communities, Health & Leisure",Sports & Social Venues,Agency Staff,PROJECT MANAGEMENT SUPPORT,44379,REDACTED INVOICE NUMBER,145402,15964.75,Revenue,28444,Opus People Solutions Group Limited,IP1 2BX,0.00
Director Of Environment,"Communities, Health & Leisure",Sports & Social Venues,Agency Staff,PROJECT MANAGEMENT SUPPORT,44386,REDACTED INVOICE NUMBER,145741,17199.04,Revenue,28444,Opus People Solutions Group Limited,IP1 2BX,0.00
Director Of Environment,"Communities, Health & Leisure",Sports & Social Venues,Agency Staff,PROJECT MANAGEMENT SUPPORT,44393,REDACTED INVOICE NUMBER,146331,13897.11,Revenue,28444,Opus People Solutions Group Limited,IP1 2BX,0.00
Director Of Environment,"Communities, Health & Leisure",Sports & Social Venues,Agency Staff,PROJECT MANAGEMENT SUPPORT,44400,REDACTED INVOICE NUMBER,146628,18525.72,Revenue,28444,Opus People Solutions Group Limited,IP1 2BX,0.00
Director Of Environment,"Communities, Health & Leisure",Sports & Social Venues,Agency Staff,PROJECT MANAGEMENT SUPPORT,44407,REDACTED INVOICE NUMBER,146888,17520.87,Revenue,28444,Opus People Solutions Group Limited,IP1 2BX,0.00
Hra Expenditure,Supervision And Management,Managing Tenancies,Computer Software Licences,ANNUAL MAINT RENEWALS. OCT'21-OCT'22,44386,REDACTED INVOICE NUMBER,145695,2081.86,Revenue,4150,Orchard Information Systems Ltd,NE1 3PJ,0.00
Director Of Environment,"Communities, Health & Leisure",Health & Wellbeing,Grants - General,GRANT,44404,REDACTED INVOICE NUMBER,146473,800,Revenue,194100P,Our Grieving Hearts,CM12 0HJ,0.00
Director Of Environment,Grounds Maintenance,Grounds Maintenance,Vehicle Replacement Parts,RIM WHEEL,44379,REDACTED INVOICE NUMBER,144332,142.29,Revenue,4169,P Tuckwell Ltd,CO7 7LG,0.00
Director Of Environment,Golf Course,Golf Course,Vehicle - Lease Rentals,MAINTENANCE - JUN '21,44386,REDACTED INVOICE NUMBER,145759,305.9,Revenue,26919,P Tuckwell Ltd (Pg Payments Only),CO7 7LG,0.00
Director Of Environment,Golf Course,Golf Course,Vehicle - Lease Rentals,WARRANTY ON STOCK - JUN '21,44386,REDACTED INVOICE NUMBER,145760,31.5,Revenue,26919,P Tuckwell Ltd (Pg Payments Only),CO7 7LG,0.00
Director Of Environment,Open Spaces,Bowling Greens,Vehicle - Lease Rentals,MAINTENANCE - JUN '21,44386,REDACTED INVOICE NUMBER,145759,131.1,Revenue,26919,P Tuckwell Ltd (Pg Payments Only),CO7 7LG,0.00
Director Of Environment,Open Spaces,Bowling Greens,Vehicle - Lease Rentals,WARRANTY ON STOCK - JUN '21,44386,REDACTED INVOICE NUMBER,145760,13.5,Revenue,26919,P Tuckwell Ltd (Pg Payments Only),CO7 7LG,0.00
Director Corporate Resources,Asset Development,Asset Development,Project Management Support,CHILDERDITCH IND PARK APR 21,44400,REDACTED INVOICE NUMBER,145393,2550,Revenue,179013P,Palamino Developments Ltd,CM2 0RG,0.00
Director Corporate Resources,Asset Development,Asset Development,Project Management Support,CHILDERDITCH IND PARK JUN 21,44400,REDACTED INVOICE NUMBER,145395,2550,Revenue,179013P,Palamino Developments Ltd,CM2 0RG,0.00
Director Corporate Resources,Asset Development,Asset Development,Project Management Support,CHILDERDITCH IND PARK MAY 21,44400,REDACTED INVOICE NUMBER,145394,2550,Revenue,179013P,Palamino Developments Ltd,CM2 0RG,0.00
Director Of Planning & Economy,Planning Development Managemt,Planning Development Managemt,Agency Staff,PROJECT MANAGEMENT SUPPORT,44386,REDACTED INVOICE NUMBER,144824,1530,Revenue,26959,Park Avenue Recruitment Ltd,EC1V 9EE,0.00
Director Of Planning & Economy,Planning Development Managemt,Planning Development Managemt,Agency Staff,PROJECT MANAGEMENT SUPPORT,44386,REDACTED INVOICE NUMBER,144823,994.5,Revenue,26959,Park Avenue Recruitment Ltd,EC1V 9EE,0.00
Director Of Planning & Economy,Planning Development Managemt,Planning Development Managemt,Agency Staff,PROJECT MANAGEMENT SUPPORT,44390,REDACTED INVOICE NUMBER,145037,899,Revenue,26959,Park Avenue Recruitment Ltd,EC1V 9EE,0.00
Director Of Planning & Economy,Planning Development Managemt,Planning Development Managemt,Agency Staff,PROJECT MANAGEMENT SUPPORT,44390,REDACTED INVOICE NUMBER,145038,333.5,Revenue,26959,Park Avenue Recruitment Ltd,EC1V 9EE,0.00
Director Of Planning & Economy,Planning Development Managemt,Planning Development Managemt,Agency Staff,PROJECT MANAGEMENT SUPPORT,44397,REDACTED INVOICE NUMBER,145317,957,Revenue,26959,Park Avenue Recruitment Ltd,EC1V 9EE,0.00
Director Of Planning & Economy,Planning Development Managemt,Planning Development Managemt,Agency Staff,PROJECT MANAGEMENT SUPPORT,44397,REDACTED INVOICE NUMBER,145318,1657.5,Revenue,26959,Park Avenue Recruitment Ltd,EC1V 9EE,0.00
Director Of Planning & Economy,Planning Development Managemt,Planning Development Managemt,Agency Staff,PROJECT MANAGEMENT SUPPORT,44407,REDACTED INVOICE NUMBER,146231,1504.5,Revenue,26959,Park Avenue Recruitment Ltd,EC1V 9EE,0.00
Director Of Planning & Economy,Planning Development Managemt,Planning Development Managemt,Agency Staff,PROJECT MANAGEMENT SUPPORT,44407,REDACTED INVOICE NUMBER,146232,1555.5,Revenue,26959,Park Avenue Recruitment Ltd,EC1V 9EE,0.00
Capex Director Of Environment,Other Environmental Services,Disabled Facilities Grant,Grants - General,DISABLED FACILITIES GRANT,44400,REDACTED INVOICE NUMBER,146468,530.35,Capital,26573,Paul Weightman,CM14 4PL,0.00
Capex Director Of Environment,Other Environmental Services,Disabled Facilities Grant,Grants - General,DISABLED FACILITIES GRANT,44400,REDACTED INVOICE NUMBER,146469,159.62,Capital,26573,Paul Weightman,CM14 4PL,0.00
Capex Director Of Environment,Other Environmental Services,Disabled Facilities Grant,Grants - General,DISABLED FACILITIES GRANT,44404,REDACTED INVOICE NUMBER,146479,2352,Capital,26573,Paul Weightman,CM14 4PL,0.00
Director Corporate Resources,Human Resources,Human Resources,Training Expenses,COACHING,44379,REDACTED INVOICE NUMBER,145026,5000,Revenue,28511,Pentus Ltd,BN2 1TE,0.00
Director Of Environment,Licensing,Taxi Drivers Account,Crb Checks,DBS Enhanced Check,44379,REDACTED INVOICE NUMBER,144402,98,Revenue,24446,Personnel Checks,.,0.00
Director Of Environment,Licensing,Taxi Drivers Account,Crb Checks,DBS Enhanced Check,44390,REDACTED INVOICE NUMBER,145237,245,Revenue,24446,Personnel Checks,.,0.00
Hra Expenditure,Repairs And Maintenance,Responsive Repairs Management,Pest Control,PEST CONTROL,44390,REDACTED INVOICE NUMBER,145703,100,Revenue,4226,Pestbusters,CM15 9JU,0.00
Director Digital & Customer En,Digital Servs & Transformation,Ict Services,Internet Services,CITRIX SHAREFILE SERVICE LICENCE,44393,REDACTED INVOICE NUMBER,145127,1685.8,Revenue,4250,Phoenix Software Limited,YO42 1NS,0.00
Director Digital & Customer En,Digital Servs & Transformation,Ict Services,Managed Services,AZURE OVERAGE - MAY '21,44393,REDACTED INVOICE NUMBER,145064,20764.51,Revenue,4250,Phoenix Software Limited,YO42 1NS,0.00
Director Digital & Customer En,Digital Servs & Transformation,Ict Services,Managed Services,AZURE MONETARY COMMITMENT SHARED,44404,REDACTED INVOICE NUMBER,145496,36945.92,Revenue,4250,Phoenix Software Limited,YO42 1NS,0.00
Director Of Environment,Open Spaces,Buildings & Stakeholders,R&M Bldgs - General,SANITARY DISPOSAL - KGPF,44393,REDACTED INVOICE NUMBER,145761,96.4,Revenue,4254,Phs Compliance,WA3 1ZZ,0.00
Director Of Environment,Depot Management & Admin,Depot Management & Admin,R&M Bldgs - General,"HYGIENE PRODUCTS - TOILETS, INGATESTONE",44383,REDACTED INVOICE NUMBER,145762,313.56,Revenue,4255,Phs Group Plc,CF83 1XH,0.00
Director Of Environment,Depot Management & Admin,Depot Management & Admin,R&M Bldgs - General,SANITARY DISPOSAL - DEPOT,44397,REDACTED INVOICE NUMBER,145772,38.57,Revenue,4255,Phs Group Plc,CF83 1XH,0.00
Director Of Environment,Parking,Parking Services,Waste Disposal,HYGIENE PRODUCTS - MSCP,44397,REDACTED INVOICE NUMBER,145769,34.13,Revenue,4255,Phs Group Plc,CF83 1XH,0.00
Director Of Environment,Open Spaces,Buildings & Stakeholders,R&M Bldgs - General,SANITARY DISPOSAL - KGPF - JUL'21,44399.563,REDACTED INVOICE NUMBER,145909,96.4,Revenue,4255,Phs Group Plc,CF83 1XH,0.00
Director Corporate Resources,Office Accommodation,Office Facilities Management,R&M Bldgs - General,HYGIENE PRODUCTS - TOWN HALL,44400,REDACTED INVOICE NUMBER,145770,266.22,Revenue,4255,Phs Group Plc,CF83 1XH,0.00
Director Corporate Resources,Office Accommodation,Office Facilities Management,R&M Bldgs - General,HYGIENE PRODUCTS - TOWN HALL,44404,REDACTED INVOICE NUMBER,145773,118.32,Revenue,4255,Phs Group Plc,CF83 1XH,0.00
Director Corporate Resources,Office Accommodation,Office Facilities Management,R&M Bldgs - General,HYGIENE PRODUCTS - TOWN HALL,,REDACTED INVOICE NUMBER,145757,7576.45,Revenue,4255,Phs Group Plc,CF83 1XH,0.00
Director Of Environment,Vehicle Fleet Management,Vehicle Fleet Management,Purchases - General Equipment,VEHICLE REPAIRS,44379,REDACTED INVOICE NUMBER,144796,49.66,Revenue,4270,Pirtek (Basildon),SS14 3DY,0.00
Director Of Environment,Vehicle Fleet Management,Vehicle Fleet Management,Vehicle Replacement Parts,EQUIPMENT REPAIRS,44379,REDACTED INVOICE NUMBER,145016,88.82,Revenue,4270,Pirtek (Basildon),SS14 3DY,0.00
Director Of Environment,Vehicle Fleet Management,Vehicle Fleet Management,Vehicle R&M - External,EQUIPMENT REPAIRS,44379,REDACTED INVOICE NUMBER,145016,29,Revenue,4270,Pirtek (Basildon),SS14 3DY,0.00
Director Of Environment,Waste Management,Refuse Waste,Vehicle R&M - External,MACHINERY REPAIRS,44383,REDACTED INVOICE NUMBER,145018,49.1,Revenue,4270,Pirtek (Basildon),SS14 3DY,0.00
Director Corporate Resources,Office Accommodation,Office Accommodation,Postage Costs Direct,METER RESET,44379,REDACTED INVOICE NUMBER,142358,769.35,Revenue,4273,Pitney Bowes Ltd,CM19 5LS,0.00
Director Of Law & Governance,Electoral Services,Register Of Electors,Stationery - General,DD MAY 21,44400,REDACTED INVOICE NUMBER,146729,103.05,Revenue,4273,Pitney Bowes Ltd,CM19 5LS,0.00
Director Of Environment,Open Spaces,Recreation Areas,R&M Grounds - Play Equipment,PLAYGROUND INSPECTION COURSE,44400,REDACTED INVOICE NUMBER,145464,210,Revenue,24722,Playsafety Ltd (Rospa),SN7 7PN,0.00
Director Of Planning & Economy,Planning Development Managemt,Planning Development Managemt,Contracted Services,TREE & LANDSCAPE SUPPORT,44383,REDACTED INVOICE NUMBER,144534,2200,Revenue,26594,Plumb Associates Ltd,CM3 6NF,0.00
Balance Sheet,Balance Sheet,Balance Sheet,Ctax 15jan Prior Surpls Police,PRECEPTS - JULY '21,44386,REDACTED INVOICE NUMBER,145881,1463,Revenue,22444,Police Precept,.,0.00
Balance Sheet,Balance Sheet,Balance Sheet,C Tax Police Precept,PRECEPTS - JULY '21,44386,REDACTED INVOICE NUMBER,145881,630335,Revenue,22444,Police Precept,.,0.00
Director Corporate Resources,Council Tax & Nndr,Council Tax Collection,Grants/Contributions - Police,PRECEPTS - JULY '21,44386,REDACTED INVOICE NUMBER,145881,-848,Revenue,22444,Police Precept,.,0.00
Balance Sheet,Balance Sheet,Balance Sheet,Ctax 15jan Prior Surpls Police,PRECEPTS - AUGUST '21,44407,REDACTED INVOICE NUMBER,147126,1463,Revenue,22444,Police Precept,.,0.00
Balance Sheet,Balance Sheet,Balance Sheet,C Tax Police Precept,PRECEPTS - AUGUST '21,44407,REDACTED INVOICE NUMBER,147126,630335,Revenue,22444,Police Precept,.,0.00
Director Corporate Resources,Council Tax & Nndr,Council Tax Collection,Grants/Contributions - Police,PRECEPTS - AUGUST '21,44407,REDACTED INVOICE NUMBER,147126,-4359,Revenue,22444,Police Precept,.,0.00
Director Corporate Resources,Asset Management,Asset Management,R&M Bldgs - General,CLEANING MATERIALS,44393,REDACTED INVOICE NUMBER,145024,93.6,Revenue,4300,Power Hygiene + Safety Products Limited,SS6 7UY,0.00
Hra Expenditure,Special Services,Caretaking,Cleaning & Dom. Supplies-Other,CLEANING MATERIALS,44407,REDACTED INVOICE NUMBER,145676,300.54,Revenue,4300,Power Hygiene + Safety Products Limited,SS6 7UY,0.00
Director Of Environment,Vehicle Fleet Management,Vehicle Fleet Management,Vehicle Replacement Parts,SRVICE EXCHANGE,44383,REDACTED INVOICE NUMBER,144736,377,Revenue,4304,Ppk Services Ltd,GU14 6HF,0.00
Director Corporate Resources,Asset Management,Asset Management,R&M Bldgs - General,LIFT MAINTENANCE - MAY '21,44400,REDACTED INVOICE NUMBER,145593,952,Revenue,4308,Precision Lift Services Ltd,SS14 3BZ,0.00
Director Corporate Resources,Asset Management,Asset Management,R&M Bldgs - General,PEPPERILL HOUSE - WINDOW CLEAN,44386,REDACTED INVOICE NUMBER,145051,40,Revenue,4352,Purkis,SS12 0LX,0.00
Director Digital & Customer En,Digital Servs & Transformation,Ict Services,Internet Services,SSL Certificates,44393,REDACTED INVOICE NUMBER,146442,145,Revenue,4360,Quovadis Online Security Ltd,PE22 OTW,0.00
Director Digital & Customer En,Digital Servs & Transformation,Ict Services,Internet Services,SSL Certificates,44393,REDACTED INVOICE NUMBER,145125,135,Revenue,4360,Quovadis Online Security Ltd,PE22 OTW,0.00
Director Digital & Customer En,Digital Servs & Transformation,Ict Services,Internet Services,SSL Certificates,44400,REDACTED INVOICE NUMBER,145465,90,Revenue,4360,Quovadis Online Security Ltd,PE22 OTW,0.00
Director Digital & Customer En,Digital Servs & Transformation,Ict Services,Internet Services,SSL Certificates,44407,REDACTED INVOICE NUMBER,145687,90,Revenue,4360,Quovadis Online Security Ltd,PE22 OTW,0.00
Director Of Environment,Open Spaces,Countryside Recreation Mtnce,R&M Grounds - Grass Cutting,WORKS - HUTTON COUNTRY PARK,44386,REDACTED INVOICE NUMBER,145382,972.5,Revenue,4380,R P + J Gaymer,CM4 ONJ,0.00
Director Of Environment,Open Spaces,Countryside Recreation Mtnce,R&M Grounds - Treework,RURAL VERGE MOWING,44386,REDACTED INVOICE NUMBER,145383,8160,Revenue,4380,R P + J Gaymer,CM4 ONJ,0.00
Director Of Law & Governance,Legal Services & Data Protect,Legal Services & Data Protect,Legal Fees,PROFESSIONAL FEES,44386,REDACTED INVOICE NUMBER,144936,400,Revenue,2809,Radcliffe Chambers,WC2A 3QB,0.00
Director Of Law & Governance,Legal Services & Data Protect,Legal Services & Data Protect,Legal Fees,REPOSSESION,44386,REDACTED INVOICE NUMBER,144941,1200,Revenue,2809,Radcliffe Chambers,WC2A 3QB,0.00
Director Of Law & Governance,Legal Services & Data Protect,Legal Services & Data Protect,Legal Fees,BRENTWOOD LEISURE TRUST,44397,REDACTED INVOICE NUMBER,145213,1625,Revenue,2809,Radcliffe Chambers,WC2A 3QB,0.00
Director Of Law & Governance,Legal Services & Data Protect,Legal Services & Data Protect,Legal Fees,ELECTRIC VEHICLE CHARGES CONTRACT,44404,REDACTED INVOICE NUMBER,146725,5672,Revenue,2809,Radcliffe Chambers,WC2A 3QB,0.00
Director Of Law & Governance,Legal Services & Data Protect,Legal Services & Data Protect,Legal Fees,General Queries,44404,REDACTED INVOICE NUMBER,146724,625,Revenue,2809,Radcliffe Chambers,WC2A 3QB,0.00
Director Of Law & Governance,Legal Services & Data Protect,Legal Services & Data Protect,Legal Fees,FIVE ACRE,44407,REDACTED INVOICE NUMBER,146292,400,Revenue,2809,Radcliffe Chambers,WC2A 3QB,0.00
Director Of Planning & Economy,Planning Development Managemt,Planning Development Managemt,Advertising - General,ADVERT PLACEMENT,44383,REDACTED INVOICE NUMBER,144806,363,Revenue,27928,Reach Publishing Services Ltd,E14 5AP,0.00
Director Of Planning & Economy,Planning Development Managemt,Planning Development Managemt,Advertising - General,ADVERT PLACEMENT,44390,REDACTED INVOICE NUMBER,145065,242,Revenue,27928,Reach Publishing Services Ltd,E14 5AP,0.00
Director Corporate Resources,Council Tax & Nndr,Council Tax Collection,Advertising - General,ADVERT PLACEMENT,44400,REDACTED INVOICE NUMBER,143665,363,Revenue,27928,Reach Publishing Services Ltd,E14 5AP,0.00
Director Of Planning & Economy,Planning Development Managemt,Planning Development Managemt,Advertising - General,ADVERT PLACEMENT,44404,REDACTED INVOICE NUMBER,145649,314.6,Revenue,27928,Reach Publishing Services Ltd,E14 5AP,0.00
Director Of Planning & Economy,Planning Development Managemt,Planning Development Managemt,Advertising - General,ADVERT PLACEMENT,44407,REDACTED INVOICE NUMBER,145884,314.6,Revenue,27928,Reach Publishing Services Ltd,E14 5AP,0.00
Director Housing & Enforcement,Homelessness,Private Sector Acc Leased,Rent/Hire Of Buildings,PRIVATE SECTOR LEASING,44383,REDACTED INVOICE NUMBER,145493,600,Revenue,2339,REDACTED PERSONAL DATA,REDACTED,0.00
Director Housing & Enforcement,Homelessness,Private Sector Acc Leased,Rent/Hire Of Buildings,PRIVATE SECTOR LEASING,44383,REDACTED INVOICE NUMBER,145492,725,Revenue,2968,REDACTED PERSONAL DATA,REDACTED,0.00
Director Housing & Enforcement,Homelessness,Private Sector Acc Leased,Rent/Hire Of Buildings,PRIVATE SECTOR LEASING,44397,REDACTED INVOICE NUMBER,145938,725,Revenue,2472,REDACTED PERSONAL DATA,REDACTED,0.00
Director Corporate Resources,Human Resources,Human Resources,Training Expenses,ASPIRING MANAGER TRAINING,44386,REDACTED INVOICE NUMBER,144850,3848.34,Revenue,28206,Richard Wills Training Assocition Ltd,NR18 0FT,0.00
Director Of Environment,Open Spaces,Recreation Areas,Purchases - Materials,Impact XP Drum,44383,REDACTED INVOICE NUMBER,144816,552,Revenue,4449,Rigby Taylor Ltd,BL6 5HP,0.00
Director Of Environment,Open Spaces,Sports Pitches,Purchases - Materials,CONSUMABLES,44407,REDACTED INVOICE NUMBER,145870,198.9,Revenue,4449,Rigby Taylor Ltd,BL6 5HP,0.00
Hra Expenditure,Supervision And Management,Policy And Management,Project Management Support,Advanced consultancy credits - JUL '21,44383,REDACTED INVOICE NUMBER,144530,6920,Revenue,26765,Right Data Ltd,IG4 5EX,0.00
Director Of Environment,Street Services,Street Cleansing,Sub-Contractors,LITTER PICKING - A12,44404,REDACTED INVOICE NUMBER,145581,8286.45,Revenue,28655,Ringway Infrastructure Services,RH12 2RW,0.00
Balance Sheet,Balance Sheet,Balance Sheet,Fuel Stores,DIESEL,44383,REDACTED INVOICE NUMBER,144737,9824.64,Revenue,28483,Rix Petroleum Ltd,HU8 7JR,0.00
Balance Sheet,Balance Sheet,Balance Sheet,Fuel Stores,DIESEL,44393,REDACTED INVOICE NUMBER,145101,9765.05,Revenue,28483,Rix Petroleum Ltd,HU8 7JR,0.00
Balance Sheet,Balance Sheet,Balance Sheet,Fuel Stores,DIESEL,44407,REDACTED INVOICE NUMBER,145731,9306,Revenue,28483,Rix Petroleum Ltd,HU8 7JR,0.00
Balance Sheet,Balance Sheet,Balance Sheet,Fuel Stores,GAS OIL,44407,REDACTED INVOICE NUMBER,145732,5147.1,Revenue,28483,Rix Petroleum Ltd,HU8 7JR,0.00
Hra Expenditure,Repairs And Maintenance,Planned Maintenance,R&M Fix & Fit - Fire Maintenan,FIRE CONSULTANCY DAY,44404,REDACTED INVOICE NUMBER,145473,3325,Revenue,27008,Rowans Fire Ltd,DN22 9NQ,0.00
Director Of Environment,Vehicle Fleet Management,Vehicle Fleet Management,Purchases - General Equipment,SERVICE CHARGE - JUN/JUL '21,44390,REDACTED INVOICE NUMBER,144939,247.68,Revenue,4527,Safetykleen Uk Ltd,SS15 6TR,0.00
Director Of Planning & Economy,Economic Development Total,Economic Development,Other Fees & Service,PLACE SHAPING - MAR '21,44397,REDACTED INVOICE NUMBER,146574,2750,Revenue,24162,Savills (Uk) Ltd,CB2 8PA,0.00
Director Of Environment,Vehicle Fleet Management,Vehicle Fleet Management,Vehicle Replacement Parts,PARTS,44386,REDACTED INVOICE NUMBER,144920,114.89,Revenue,4559,Scarab Sweepers Limited,TN12 9QD,0.00
Director Of Environment,Vehicle Fleet Management,Vehicle Fleet Management,Vehicle Replacement Parts,MACHINERY PARTS,44397,REDACTED INVOICE NUMBER,145242,351.22,Revenue,4559,Scarab Sweepers Limited,TN12 9QD,0.00
Director Of Environment,Vehicle Fleet Management,Vehicle Fleet Management,Vehicle Replacement Parts,MACHINERY PARTS,44397,REDACTED INVOICE NUMBER,145356,247.01,Revenue,4559,Scarab Sweepers Limited,TN12 9QD,0.00
Director Of Environment,Vehicle Fleet Management,Vehicle Fleet Management,Vehicle Replacement Parts,MACHINERY PARTS,44400,REDACTED INVOICE NUMBER,145456,104.59,Revenue,4559,Scarab Sweepers Limited,TN12 9QD,0.00
Director Of Environment,Vehicle Fleet Management,Vehicle Fleet Management,Vehicle R&M - External,MACHINERY PARTS,44400,REDACTED INVOICE NUMBER,145455,246.63,Revenue,4559,Scarab Sweepers Limited,TN12 9QD,0.00
Director Of Environment,Open Spaces,Countryside Recreation Mtnce,R&M Grounds - Treework,TREE WORKS,44400,REDACTED INVOICE NUMBER,145478,320,Revenue,26018,Scott Williams,RM18 8SU,0.00
Director Of Environment,Open Spaces,Recreation Areas,R&M Grounds - Treework,TREE WORKS,44404,REDACTED INVOICE NUMBER,145504,320,Revenue,26018,Scott Williams,RM18 8SU,0.00
Director Of Environment,Open Spaces,Countryside Recreation Mtnce,R&M Grounds - Treework,TREE WORKS,44379,REDACTED INVOICE NUMBER,145691,1540,Revenue,26924,Sds Tree Services,CM4 0RX,0.00
Director Of Environment,Open Spaces,Recreation Areas,R&M Grounds - Treework,TREE WORKS,44379,REDACTED INVOICE NUMBER,145692,650,Revenue,26924,Sds Tree Services,CM4 0RX,0.00
Director Of Environment,Cemeteries,Cemeteries,R&M Grounds - Treework,TREE WORKS,44386,REDACTED INVOICE NUMBER,146199,150,Revenue,26924,Sds Tree Services,CM4 0RX,0.00
Director Of Environment,Open Spaces,Countryside Recreation Mtnce,R&M Grounds - Treework,TREE WORKS,44386,REDACTED INVOICE NUMBER,146204,450,Revenue,26924,Sds Tree Services,CM4 0RX,0.00
Director Of Environment,Open Spaces,Recreation Areas,R&M Grounds - Treework,TREE WORKS,44386,REDACTED INVOICE NUMBER,146197,450,Revenue,26924,Sds Tree Services,CM4 0RX,0.00
Director Of Environment,Open Spaces,Recreation Areas,R&M Grounds - Treework,TREE WORKS ,44386,REDACTED INVOICE NUMBER,146200,1350,Revenue,26924,Sds Tree Services,CM4 0RX,0.00
Director Of Environment,Open Spaces,Recreation Areas,R&M Grounds - Treework,TREE WORKS,44393,REDACTED INVOICE NUMBER,145698,650,Revenue,26924,Sds Tree Services,CM4 0RX,0.00
Hra Expenditure,Special Services,Grounds Maintenance,R&M Grounds - Treework,TREE WORKS,44393,REDACTED INVOICE NUMBER,146201,475,Revenue,26924,Sds Tree Services,CM4 0RX,0.00
Hra Expenditure,Special Services,Grounds Maintenance,R&M Grounds - Treework,TREE WORKS,44393,REDACTED INVOICE NUMBER,146202,200,Revenue,26924,Sds Tree Services,CM4 0RX,0.00
Hra Expenditure,Special Services,Grounds Maintenance,R&M Grounds - Treework,TREE WORKS ,44393,REDACTED INVOICE NUMBER,146203,650,Revenue,26924,Sds Tree Services,CM4 0RX,0.00
Balance Sheet,Balance Sheet,Balance Sheet,Contractor Retentions Account,Coram Green Housing Demolition of Garage,44379,REDACTED INVOICE NUMBER,145198,-2859.01,Revenue,28406,Seh French Ltd,IP1 5LT,0.00
Capex Director Of Housing,Housing - Affordable Housing,Coram Green,Enhancements,Coram Green Housing Demolition of Garage,44379,REDACTED INVOICE NUMBER,145198,95300.28,Capital,28406,Seh French Ltd,IP1 5LT,0.00
Director Of Law & Governance,Legal Services & Data Protect,Legal Services & Data Protect,Project Management Support,PROJECT MANAGEMENT SUPPORT,44383,REDACTED INVOICE NUMBER,145482,1365.5,Revenue,4582,Sellick Partnership Group Ltd,M2 5HX,0.00
Director Of Law & Governance,Legal Services & Data Protect,Legal Services & Data Protect,Project Management Support,PROJECT MANAGEMENT SUPPORT,44390,REDACTED INVOICE NUMBER,145892,1365.5,Revenue,4582,Sellick Partnership Group Ltd,M2 5HX,0.00
